Workbook

Sheet PFP
A1: PROPOSTA FINANCEIRA DO PROJETO | J1: CODIGO:
J2: PFP
A3: NOME DA CONSULTORA:
A5: PROJETO: | F5: CONTRATANTE: | J5: Data base:
A6: Estudos e Projeto Básico do Sistema Adutor de Serra Verde, no Estado do Rio Grande do Norte | F6: 12ª SR CODEVASF | J6: 2024-06-01
A7: Base | B7: Cod2 | C7: Cod3 | D7: Categoria / Insumo | E7: Uni | F7: Qde | G7: CUD | H7: PU | I7: FatorK | J7: CT | K7: PT | M7: Encargos Comp e Adicionais
A8: SICRO | B8: MO | C8: P0 | D8: Engenheiro coordenador (P8061) | E8: mês | F8: ='CRO1_Ins-Pro'!D5 -> 3 | G8: ='DNIT TC - 102023'!D38 -> 17371.67 | H8: =ROUND(I8*G8,2) -> 24289.07 | I8: ='PFP2.3_FatorKc'!E36 -> 1.3982 | J8: =ROUND(F8*G8,2) -> 52115.01 | K8: =ROUND(F8*H8,2) -> 72867.21 | M8: ='DNIT TC - 102023'!AA38 -> 1026.74
A9: SICRO | B9: MO | C9: P1 | D9: Engenheiro de projeto pleno - Civil/Sanitarista (P8066) | E9: mês | F9: ='CRO1_Ins-Pro'!D6 -> 5 | G9: ='DNIT TC - 102023'!D43 -> 11895.06 | H9: 27537.06 | I9: ='PFP2.1_FatorKa'!E36 -> 2.315 | J9: =ROUND(F9*G9,2) -> 59475.3 | K9: =ROUND(F9*H9,2) -> 137685.3 | M9: ='DNIT TC - 102023'!AA43 -> 1028.89
A10: SICRO | B10: MO | C10: P2 | D10: Engenheiro ambiental pleno (P8058) | E10: mês | F10: ='CRO1_Ins-Pro'!D7 -> 3 | G10: ='DNIT TC - 102023'!D35 -> 11513.98 | H10: =ROUND(I10*G10,2) -> 19052.18 | I10: ='PFP2.2_FatorKb'!E36 -> 1.6547 | J10: 34541.94 | K10: 57156.54 | M10: ='DNIT TC - 102023'!AA35 -> 1028.89
A11: SICRO | B11: MO | C11: P3 | D11: Engenheiro pleno - demais esp. (P8066) | E11: mês | F11: ='CRO1_Ins-Pro'!D8 -> 2 | G11: ='DNIT TC - 102023'!D43 -> 11895.06 | H11: =ROUND(I11*G11,2) -> 19682.76 | I11: ='PFP2.2_FatorKb'!E36 -> 1.6547 | J11: 23790.12 | K11: 39365.52 | M11: ='DNIT TC - 102023'!AA43 -> 1028.89
A12: SICRO | B12: MO | C12: T1 | D12: Técnico de projetos/obra (P8147) | E12: mês | F12: ='CRO1_Ins-Pro'!D9 -> 7 | G12: ='DNIT TC - 102023'!D70 -> 3136.59 | H12: 7261.21 | I12: ='PFP2.1_FatorKa'!$E$36 -> 2.315 | J12: 21956.13 | K12: 50828.47 | M12: ='DNIT TC - 102023'!AA70 -> 1062.86
A13: SICRO | B13: MO | C13: A1 | D13: Auxiliar administrativo (P8026) | E13: mês | F13: ='CRO1_Ins-Pro'!D10 -> 7 | G13: ='DNIT TC - 102023'!D17 -> 1794.31 | H13: 4153.83 | I13: ='PFP2.1_FatorKa'!$E$36 -> 2.315 | J13: 12560.17 | K13: 29076.81 | M13: ='DNIT TC - 102023'!AA17 -> 1115.55
A14: SICRO | B14: EC | C14: ECA | D14: Encargos Comp. e Adicionais | E14: mês | F14: ='CRO1_Ins-Pro'!D11 -> 27 | G14: =AVERAGE(M8:M13) -> 1048.636667 | H14: 1345.09 | I14: =PFP3_FatorKd!$E$17 -> 1.2827 | J14: 28313.19 | K14: 36317.43
A15: COMP. | B15: LO | C15: V1 | D15: Diárias | E15: dia | F15: ='CRO1_Ins-Pro'!D12 -> 70 | G15: ='CPU Diária'!C19 -> 184.9719583 | H15: 237.26 | I15: =PFP3_FatorKd!$E$17 -> 1.2827 | J15: 12948.04 | K15: 16608.2
A16: PROP | B16: LO | C16: V2 | D16: Pick-up cabine dupla | E16: dia | F16: ='CRO1_Ins-Pro'!D13 -> 70 | G16: ='CPU Veículo'!C11 -> 325.6268258 | H16: 417.68 | I16: =PFP3_FatorKd!$E$17 -> 1.2827 | J16: 22793.88 | K16: 29237.6
A17: PROP | B17: LO | C17: V3 | D17: Passagens Aéreas (ida e volta) | E17: un | F17: ='CRO1_Ins-Pro'!D14 -> 3 | G17: ='Cotação aéreo (2)'!B9 -> 1281.5 | H17: 1643.78 | I17: =PFP3_FatorKd!$E$17 -> 1.2827 | J17: 3844.5 | K17: 4931.34
A18: CODE | B18: EM | C18: M1 | D18: Relatório Parcial | E18: un | F18: ='CRO1_Ins-Pro'!D15 -> 14 | G18: 40.33 | H18: 51.73 | I18: =PFP3_FatorKd!$E$17 -> 1.2827 | J18: 564.62 | K18: 724.22
A19: CODE | B19: EM | C19: M2 | D19: Relatório Final | E19: un | F19: ='CRO1_Ins-Pro'!D16 -> 4 | G19: 1788.19 | H19: 2293.71 | I19: =PFP3_FatorKd!$E$17 -> 1.2827 | J19: 7152.76 | K19: 9174.84
A20: COMP. | B20: SU | C20: TOP | D20: Total Serviços Cartográficos | E20: un | F20: ='CRO1_Ins-Pro'!D17 -> 1 | G20: - | H20: ='PFP1.1_Topo'!H23 -> 210487.1047 | I20: - | J20: - | K20: 210487.1
A21: COMP. | B21: SU | C21: GEO | D21: Total Serviços Geotécnicos | E21: un | F21: ='CRO1_Ins-Pro'!D18 -> 1 | G21: - | H21: ='PFP1.2_Geo'!H40 -> 147901.4 | I21: - | J21: - | K21: 147901.4
A22: EMBASA | B22: SU | C22: AMB | D22: Total Serviços Ambientais | E22: un | F22: ='CRO1_Ins-Pro'!D19 -> 1 | G22: - | H22: ='PFP1.3_Amb'!H37 -> 4076.681697 | I22: - | J22: - | K22: 4076.68
A23: TOTAL DOS CUSTOS DIRETOS | H23: =SUM(J8:J22) -> 280055.66
A24: TOTAL DOS ENCARGOS E DISPESAS DIVERSAS | H24: =H25-H23 -> 203917.82
A25: TOTAL DA PROPOSTA A PREÇO GLOBAL | H25: =SUM(K8:K19) -> 483973.48
A26: TOTAL DA PROPOSTA A PREÇO UNITÁRIO | H26: =SUM(K20:K22) -> 362465.18
A27: TOTAL DA PROPOSTA | H27: =H25+H26 -> 846438.66
A28: OBSERVAÇÃO:
A29: Alocar os Insumos MO, com respectivo FatorK, dentro da categoria de vínculo contratual (com ou sem) de cada tipo de profissional
A30: Uni - unidade de medição do insumo;
A31: Qde - Quantidade do Insumo (não pode ocorrer alteração pela Licitante)
A32: CUD - Custo Unitário Direto do Insumo (sem encargos, taxas e impostos, valor não pode ser maior que o Orçado pela Codevasf)
A33: CT - Custo Total (sem encargos, taxas e impostos) - CT = Qde x CUD
A34: FatorK - Taxa de Ressarcimento de Despesas e Encargos (detalhar composição nas Planilhas "PFP2.1", "PFP2.2", "PFP3")
A35: PU - Preço Unitário do Insumo (incluído encargos, taxas e impostos) - PU = CUD x FatorK
A36: PT - Preço Total do Insumo (incluído encargos, taxas e impostos) - PT = Qde x PU
A37: P - Profissionais nível superior nas áreas de Engenharia, Química, Arquitetura, Agronomia e Veterinária, conforme disposições da Lei 4.950-A/66
A38: S - Profissionais de nível superior nas demais áreas de atuação, incluindo Arqueólogo, Biólogo, Geógrafo e Socioólogo
A39: T - Profissionais de nível médio técnico nas diversas áreas de atuação
A40: A - Profissionais de nível médio de apoio técnico-administrativo

Sheet PFP1.1_Topo
A1: SERVIÇOS TOPOGRÁFICOS/CARTOGRÁFICOS | H1: CODIGO:
H2: PFP-1.1
A3: NOME DA EMPRESA:
A5: PROJETO: | E5: CONTRATANTE: | H5: CPOS - 03/2024 / EMOP - 04/2024 /ORSE - 03/2024 / Seinfra 028 / CODE - 12/2023
A6: =PFP!A6 -> Estudos e Projeto Básico do Sistema Adutor de Serra Verde, no Estado do Rio Grande do Norte | E6: 12ª SR CODEVASF | J6: MEMÓRIA DE CALCULO DO BDI DE FORNECIMENTO
A7: Cod. | B7: Base | C7: Insumos | D7: Uni | E7: Qde | F7: Custo Unitário (CU) | G7: Custo Total | H7: Preço Total (PT) | N7: preços considerar orça fascio
A8: TP08 | B8: CODE | C8: Nivelamento Geométrico classe IIN | D8: km | E8: =(52000/20)*0.02 -> 52 | F8: 607.85 | G8: =E8*F8 -> 31608.2 | H8: =G8*$L$28+G8 -> 36252.0806 | J8: ITEM | K8: DISCRIMINAÇÃO | L8: PERC. (%) | M8: 1 a cada km
A9: TP09 | B9: CODE | C9: Nivelamento Geométrico classe IIN (Secções) | D9: km | E9: =(52000/20)*0.012 -> 31.2 | F9: 607.85 | G9: =E9*F9 -> 18964.92 | H9: =G9*$L$28+G9 -> 21751.24836 | M9: 1 a cada km
A10: 01.016.0035-0 | B10: EMOP/COMPOSIÇÃO | C10: Poligonal Classe IIP (Locação) | D10: km | E10: =(52000/20)*0.02 -> 52 | F10: 1336.49 | G10: 69497.48 | H10: 79708.05824 | M10: 1 a cada km
A11: 01.20.921 | B11: CPOS/CDHU/COMPOSIÇÃO | C11: Pontos GPS de dupla frequencia (L1/L2) | D11: un | E11: 26 | F11: 1216.81 | G11: 31637.06 | H11: 36285.18071 | J11: 1.00 | K11: Despesas Indiretas | M11: 1 a cada 2 km
A12: TP20 | B12: CODE | C12: Levantamento Ecobatimetrico | D12: ha | E12: 1 | F12: 1662.56 | G12: 1662.56 | H12: 1906.823518 | J12: A1 | K12: Seguro e Garantia | L12: 0.008 | M12: 1
A13: TP21 | B13: CODE | C13: Levantamento Topobatimétrico | D13: km | E13: 1 | F13: 1192.05 | G13: 1192.05 | H13: 1367.186131 | J13: A2 | K13: Riscos e Imprevistos | L13: 0.0115 | M13: 1
A14: TP23 | B14: CODE | C14: Cadastro Físico (Faixa domínio e instalações) | D14: ha | E14: 62 | F14: 14.22 | G14: 881.64 | H14: 1011.170656 | J14: A3 | K14: Despesas Financeiras | L14: 0.0105 | M14: distancia total x 0,012
A15: TP24 | B15: CODE | C15: Cadastro Agrícola (Faixa domínio e instalações) | D15: ha | E15: 62 | F15: 4.74 | G15: 293.88 | H15: 337.0568854 | J15: A4 | K15: Administração Central | L15: 0.022 | M15: distancia total x 0,012
A16: TP25 | B16: CODE | C16: Cadastro Jurídico (Faixa domínio e instalações) | D16: ha | E16: 62 | F16: 9.48 | G16: 587.76 | H16: 674.1137709 | J16: Total do Grupo A = | L16: =SUM(L12:L15) -> 0.052 | M16: distancia total x 0,012
A17: TP26 | B17: CODE | C17: Cadastro Socioeconomico (Faixa domínio e instalações) | D17: ha | E17: 62 | F17: 3.16 | G17: 195.92 | H17: 224.7045903 | J17: 2.00 | K17: Benefício | M17: distancia total x 0,012
A18: 4369 | B18: ORSE/INSUMO | C18: Marco de Concreto (12x18x60cm) | D18: un | E18: 26 | F18: 73 | G18: 1898 | H18: 2176.854391 | J18: B1 | K18: LUCRO | L18: 0.05 | M18: 1 a cada 2 km
A19: TP28 | B19: CODE | C19: Estaca Testemunha de Madeira (2x4x70cm) | D19: un | E19: 260 | F19: 24.57 | G19: 6388.2 | H19: 7326.755123 | J19: Total do Grupo B = | L19: =L18 -> 0.05
A20: I1652 | B20: SEINFRA/INSUMO | C20: Piquetes de Madeira (2x2x20cm) | D20: un | E20: 2600 | F20: 2.08 | G20: 5408 | H20: 6202.54402 | J20: 3.00 | K20: Impostos
A21: PD06 | B21: CODE | C21: Picada Manual p/ levantamento TP | D21: km | E21: =(52000/20)*0.02 -> 52 | F21: 154.2 | G21: 8018.4 | H21: 9196.464306 | J21: C1 | K21: PIS / PASEP | L21: 0.0065 | M21: 1 a cada km
A22: PD08 | B22: CODE | C22: Picada c/ Trator de Esteira | D22: km | E22: 5 | F22: 1057.94 | G22: 5289.7 | H22: 6066.863369 | J22: C2 | K22: COFINS | L22: 0.03 | M22: 10% da rede adotada
A23: TOTAL SERVIÇOS TOPOGRÁFICOS | H23: =SUM(H8:H22) -> 210487.1047 | J23: C3 | K23: ISS | L23: 0
A24: OBSERVAÇÃO: | J24: Total do Grupo C = | L24: =SUM(L21:L23) -> 0.0365
A25: Uni - unidade de medição do insumo; | J25: Fórmula Para Cálculo do B.D.I
A26: Qde - Quantidade do Insumo (não pode ocorrer alteração pela Licitante) | J26: BDI =(((1+A4+A1+A2)*(1+A3)*(1+B))/(1-C))-1
A27: CU - Custo Unitário
A28: PT - Preço Total (incluído encargos, taxas e impostos). Foi utilizado BDI de fornecimento de 14,69% | J28: Bonificação Sobre Despesas indiretas (B.D.I) = | L28: =(((1+L15+L12+L13)*(1+L14)*(1+L19))/(1-L24))-1 -> 0.146920122

Sheet PFP1.2_Geo
A1: SERVIÇOS GEOLÓGICOS/GEOTÉCNICOS | H1: CODIGO: | U1: Maior Dist | V1: 43.5
H2: PFP-1.2 | V2: =V1*0.2 -> 8.7
A3: NOME DA EMPRESA: | O3: incc | V3: =V2+V1 -> 52.2
A5: PROJETO: | E5: CONTRATANTE: | H5: Data base: | J5: MEMÓRIA DE CALCULO DO BDI DE FORNECIMENTO
A6: =PFP!A6 -> Estudos e Projeto Básico do Sistema Adutor de Serra Verde, no Estado do Rio Grande do Norte | E6: 12ª SR CODEVASF | H6: CPOS - 03/2024 / EMOP - 04/2024 / SIURB - 07/2023 / EMBASA - 01/2024 / SETOP - 01/2024 / ORSE - 03/2024 / COMPESA - 07/2023 / CODE - 12/2023 / SUDECAP 10/2023 | R6: 2023-03-01 | S6: 2023-01-01 | T6: 2023-02-01 | U6: 2022-01-01 | V6: 2023-04-01 | W6: 2020-02-01
A7: Cod. | B7: Base | C7: Insumos | D7: Uni | E7: Qde | F7: Custo Unitário (CU) | G7: Custo Total | H7: Preço Total (PT) | J7: ITEM | K7: DISCRIMINAÇÃO | L7: PERC. (%)
A8: A.07.000.020350 | B8: CPOS | C8: Sondagem Rotativa: (Des)Mobilização | D8: un | E8: 1 | F8: 6382.49 | G8: =ROUND(F8*E8,2) -> 6382.49 | H8: =G8*$L$27+G8 -> 7320.206209
A9: 01.002.0015-0 | B9: EMOP | C9: Sondagem Rotativa: Ø N em rochas | D9: m | E9: =10*5 -> 50 | F9: 346.1 | G9: =ROUND(F9*E9,2) -> 17305 | H9: =G9*$L$27+G9 -> 19847.45271 | Q9: 2023-09-01 | R9: 324.77
A10: 01.002.0003-A | B10: EMOP | C10: Sondagem Rotativa: Ø N em solo | D10: m | E10: 30 | F10: 135.16 | G10: =ROUND(F10*E10,2) -> 4054.8 | H10: 4650.53171 | J10: 1.00 | K10: Despesas Indiretas | Q10: 2023-09-01 | R10: 126.77 | X10: Utilizado o conceito da memoria quantitativos
A11: GT04 | B11: CODE | C11: Sondagem Rotativa: Desl/Inst 0-200 m | D11: un | E11: 0 | F11: Já incluso* | G11: 0 | H11: 0 | J11: A1 | K11: Seguro e Garantia | L11: 0.008
A12: GT05 | B12: CODE | C12: Sondagem Rotativa: Desl/Inst 201-500 m | D12: un | E12: 0 | F12: Já incluso* | G12: 0 | H12: 0 | J12: A2 | K12: Riscos e Imprevistos | L12: 0.0115
A13: GT06 | B13: CODE | C13: Sondagem Rotativa: Desl/Inst >500 m | D13: un | E13: 0 | F13: Já incluso* | G13: 0 | H13: 0 | J13: A3 | K13: Despesas Financeiras | L13: 0.0105
A14: 01.21.010 | B14: CPOS | C14: Sondagem Percussão: (Des)Mobilização | D14: un | E14: 1 | F14: 1250.72 | G14: =ROUND(F14*E14,2) -> 1250.72 | H14: 1434.475935 | J14: A4 | K14: Administração Central | L14: 0.022
A15: 01.21.110 | B15: CPOS | C15: Sondagem Percursão: com SPT | D15: m | E15: =10*10 -> 100 | F15: 87.92 | G15: 8792 | H15: 10083.72171 | J15: Total do Grupo A = | L15: =SUM(L11:L14) -> 0.052
A16: 200204 | B16: SIURB | C16: Sondagem Percursão: Desloc/Instalação 0-200 m | D16: un | E16: 4 | F16: 191.34 | G16: 765.36 | H16: 877.8067845 | J16: 2.00 | K16: Benefício | Q16: 2023-07-01 | S16: 183.443
A17: 200205 | B17: SIURB | C17: Sondagem Percursão: Desloc/Instalação 201-500 m | D17: un | E17: 4 | F17: 287.01 | G17: 1148.04 | H17: 1316.710177 | J17: B1 | K17: LUCRO | L17: 0.05 | Q17: 2023-07-01 | S17: 275.16
A18: 32.01.01 | B18: EMBASA | C18: Sondagem Trado | D18: m | E18: =6*10*2 -> 120 | F18: 97.5 | G18: 11700 | H18: 13418.96543 | J18: Total do Grupo B = | L18: =L17 -> 0.05 | S18: 63.5
A19: 95.03.01 | B19: SUDECAP/INSUMO | C19: Poço de Inspeção | D19: m | E19: =52*2 -> 104 | F19: =680*K41 -> 204 | G19: 21216 | H19: 24333.05731 | J19: 3.00 | K19: Impostos | T19: 190.68 | X19: Trados e poços de inspeção (1km em 1km): 52 poços x 2m = 104 metros
C20: Ensaios de caractrização do solo | J20: C1 | K20: PIS / PASEP | L20: 0.0065
A21: 34.01.23 | B21: EMBASA | C21: Ensaio: Umidade Natural | D21: un | E21: =43+25 -> 68 | F21: 75 | G21: =ROUND(F21*E21,2) -> 5100 | H21: 5849.292622 | J21: C2 | K21: COFINS | L21: 0.03 | U21: 68.87
A22: 01.001.0091-A | B22: EMOP | C22: Ensaio: Densidade Natural | D22: un | E22: =43+25 -> 68 | F22: 50.71 | G22: 3448.28 | H22: 3954.901718 | J22: C3 | K22: ISS | L22: 0 | R22: 48.89
A23: ED-49553 | B23: SETOP | C23: Ensaio: Limite de Liquidez | D23: un | E23: 68 | F23: 79.81 | G23: 5427.08 | H23: 6224.427255 | J23: Total do Grupo C = | L23: =SUM(L20:L22) -> 0.0365 | S23: 76.68
A24: ED-49554 | B24: SETOP | C24: Ensaio: Limite de Plasticidade | D24: un | E24: 68 | F24: 79.82 | G24: 5427.76 | H24: 6225.207161 | J24: Fórmula Para Cálculo do B.D.I | S24: 77.64
A25: ED-49552 | B25: SETOP | C25: Ensaio: Granulometria por Peneiramento e Sedimentação | D25: un | E25: 68 | F25: 150.69 | G25: 10246.92 | H25: 11752.39874 | J25: BDI =(((1+A4+A1+A2)*(1+A3)*(1+B))/(1-C))-1 | S25: 147.31
A26: 4685 | B26: ORSE | C26: Ensaio: Compactação Proctor Normal | D26: un | E26: 68 | F26: 220 | G26: 14960 | H26: 17157.92502 | R26: 202
A27: 34.01.16 | B27: EMBASA | C27: Ensaio: Massa Especifica Real dos Grãos | D27: un | E27: 68 | F27: 65.78 | G27: 4473.04 | H27: 5130.219582 | J27: Bonificação Sobre Despesas indiretas (B.D.I) = | L27: =(((1+L14+L11+L12)*(1+L13)*(1+L18))/(1-L23))-1 -> 0.146920122 | S27: 65.78
C28: Ensaios de dispersão
A29: E200320120 | B29: EMBASA | C29: Ensaio: Dispersão Granulometria Comparativa | D29: un | E29: =3+(2*5) -> 13 | F29: 697 | G29: =ROUND(F29*E29,2) -> 9061 | H29: 10392.24323 | S29: 287.4
A30: E200320121 | B30: EMBASA | C30: Ensaio: Dispersão Crumb Test | D30: un | E30: =3+(2*5) -> 13 | F30: 250 | G30: =ROUND(F30*E30,2) -> 3250 | H30: 3727.490396 | S30: 122.19
C31: Ensaios de análise da areia
A32: GT6.1.16.1 | B32: CODE | C32: Ensaio: Análise Quimica da Areia | D32: un | E32: =5*2 -> 10 | F32: 617.81 | G32: =ROUND(F32*E32,2) -> 6178.1 | H32: 7085.787205 | W32: 459.82
A33: GT6.1.16.2 | B33: CODE | C33: Ensaio: Mineralogia da Areia | D33: un | E33: =5*2 -> 10 | F33: 710.09 | G33: =ROUND(F33*E33,2) -> 7100.9 | H33: 8144.165094 | W33: 529.2
A34: GT6.1.19 | B34: CODE | C34: Ensaio: Reatividade Potencial | D34: un | E34: 10 | F34: 1850.23 | G34: =ROUND(F34*E34,2) -> 18502.3 | H34: 21220.66017 | W34: 1382.66
A35: 01.001.0009-A | B35: EMOP | C35: Ensaio: Equivalente de Areia | D35: un | E35: 10 | F35: 215.17 | G35: =ROUND(F35*E35,2) -> 2151.7 | H35: 2467.828026 | R35: 224.69
A36: 34.05.30 | B36: EMBASA | C36: Ensaio: Teor de Matéria Orgânica | D36: un | E36: 10 | F36: 250 | G36: =ROUND(F36*E36,2) -> 2500 | H36: 2867.300305 | S36: 200
C37: Ensaios de material pétreo | J37: Estimativa para cálculo do poço de inspeção
A38: 01.07.13U | B38: COMPESA | C38: Ensaio: Abrasão Los Angeles | D38: un | E38: =5*2 -> 10 | F38: 289.45 | G38: =ROUND(F38*E38,2) -> 2894.5 | H38: 3319.760293 | J38: Comprimento: | K38: 1 | S38: 274.71
A39: 4690 | B39: ORSE | C39: Índice de forma | D39: un | E39: =5*2 -> 10 | F39: 230.77 | G39: =ROUND(F39*E39,2) -> 2307.7 | H39: 2646.747565 | J39: Pronfundidade: | K39: 1 | V39: 230.77
A40: TOTAL SERVIÇOS GEOTÉCNICOS | H40: =SUM(G14:G39) -> 147901.4 | J40: Base: | K40: 0.3
A41: LEGENDA: | J41: Volume (m³): | K41: =K40*K39*K38 -> 0.3
A42: Uni - unidade de medição do insumo; | J42: A largura da base é a mesma largura da concha de uma retroescavadeira
A43: Qde - Quantidade do Insumo (não pode ocorrer alteração pela Licitante)
A44: CU - Custo Unitário
A45: PT - Preço Total (incluído encargos, taxas e impostos). Foi utilizado BDI de fornecimento de 14,69%

Sheet PFP1.3_Amb
A1: SERVIÇOS ANÁLISE AMBIENTAL | H1: CODIGO:
H2: PFP-1.3
A3: NOME DA EMPRESA:
A5: PROJETO: | E5: CONTRATANTE: | H5: EMBASA - 01/2024
A6: =PFP!A6 -> Estudos e Projeto Básico do Sistema Adutor de Serra Verde, no Estado do Rio Grande do Norte | E6: 12ª SR CODEVASF
A7: Cod. | B7: Base | C7: Insumos | D7: Uni | E7: Qde | F7: Custo Unitário (CU) | G7: Custo Total | H7: Preço Total (PT) | K7: MEMÓRIA DE CALCULO DO BDI DE FORNECIMENTO
A8: 33.01.02 | B8: EMBASA/COMPOSIÇÃO | C8: Alcalinidade Total | D8: un | E8: 3 | F8: 30 | G8: =E8*F8 -> 90 | H8: =G8*$M$29+G8 -> 103.222811 | W8: 41.19
A9: 33.01.10 | B9: EMBASA/COMPOSIÇÃO | C9: Condutividade | D9: un | E9: 3 | F9: 18 | G9: =E9*F9 -> 54 | H9: =G9*$M$29+G9 -> 61.93368659 | K9: ITEM | L9: DISCRIMINAÇÃO | M9: PERC. (%) | W9: 42.18
A10: 33.01.13 | B10: EMBASA/COMPOSIÇÃO | C10: DBO | D10: un | E10: 3 | F10: 62 | G10: 186 | H10: 213.3271427 | W10: 40.67
A11: 33.01.13 | B11: EMBASA/COMPOSIÇÃO | C11: DQO | D11: un | E11: 3 | F11: 62 | G11: 186 | H11: 213.3271427 | W11: 49.55
A12: F099703031 | B12: EMBASA/INSUMO | C12: Salinidade | D12: un | E12: 3 | F12: 17.5 | G12: 52.5 | H12: 60.2133064 | K12: 1.00 | L12: Despesas Indiretas | W12: 46.69
A13: F099703048 | B13: EMBASA/INSUMO | C13: Sólidos Dissolvidos Totais | D13: un | E13: 3 | F13: 25 | G13: 75 | H13: 86.01900915 | K13: A1 | L13: Seguro e Garantia | M13: 0.008 | W13: 34.51 | AB13: 2021-07-01 | AC13: 251.077
A14: 33.02.71 | B14: EMBASA/COMPOSIÇÃO | C14: Sólidos Suspensos | D14: un | E14: 3 | F14: 24.18 | G14: 72.54 | H14: 83.19758565 | K14: A2 | L14: Riscos e Imprevistos | M14: 0.0115 | W14: 37.67 | AB14: 2023-12-01 | AC14: 290.189
A15: 33.01.48 | B15: EMBASA/COMPOSIÇÃO | C15: Sólidos Totais | D15: un | E15: 3 | F15: 22 | G15: 66 | H15: 75.69672805 | K15: A3 | L15: Despesas Financeiras | M15: 0.0105 | W15: 34.51 | AC15: =(AC14-AC13)/AC13 -> 0.1557769131
A16: 33.01.51 | B16: EMBASA/COMPOSIÇÃO | C16: Turbidez | D16: un | E16: 3 | F16: 20 | G16: 60 | H16: 68.81520732 | K16: A4 | L16: Administração Central | M16: 0.022 | W16: 25.7 | AC16: =1+AC15 -> 1.155776913
A17: 33.01.38 | B17: EMBASA/COMPOSIÇÃO | C17: Oxigênio Dissolvido | D17: un | E17: 3 | F17: 23 | G17: 69 | H17: 79.13748841 | K17: Total do Grupo A = | M17: =SUM(M13:M16) -> 0.052 | W17: 40.68
A18: E200330139 | B18: EMBASA/INSUMO | C18: pH | D18: un | E18: 3 | F18: 17 | G18: 51 | H18: 58.49292622 | K18: 2.00 | L18: Benefício | W18: 23.93
A19: F099703027 | B19: EMBASA/INSUMO | C19: Temperatura | D19: un | E19: 3 | F19: 11.16 | G19: 33.48 | H19: 38.39888568 | K19: B1 | L19: LUCRO | M19: 0.05 | W19: 23.8
A20: F099703046 | B20: EMBASA/INSUMO | C20: Fósforo Total | D20: un | E20: 3 | F20: 92.5 | G20: 277.5 | H20: 318.2703338 | K20: Total do Grupo B = | M20: =M19 -> 0.05 | W20: 45.97
A21: E200330130 | B21: EMBASA/INSUMO | C21: Nitrogênio Amoniacal | D21: un | E21: 3 | F21: 32 | G21: 96 | H21: 110.1043317 | K21: 3.00 | L21: Impostos | W21: 48.76
A22: E200330133 | B22: EMBASA/INSUMO | C22: Nitrogênio Nitrato | D22: un | E22: 3 | F22: 34 | G22: 102 | H22: 116.9858524 | K22: C1 | L22: PIS / PASEP | M22: 0.0065 | W22: 36.26
A23: E200330132 | B23: EMBASA/INSUMO | C23: Nitrogênio Total | D23: un | E23: 3 | F23: 32 | G23: 96 | H23: 110.1043317 | K23: C2 | L23: COFINS | M23: 0.03 | W23: 42.56
A24: F099703058 | B24: EMBASA/INSUMO | C24: Clorofila Alfa | D24: un | E24: 3 | F24: 30 | G24: 90 | H24: 103.222811 | K24: C3 | L24: ISS | M24: 0 | W24: 121.32
A25: F099703057 | B25: EMBASA/INSUMO | C25: Coliformes Termotolerantes | D25: un | E25: 3 | F25: 25 | G25: 75 | H25: 86.01900915 | K25: Total do Grupo C = | M25: =SUM(M22:M24) -> 0.0365
A26: F099703064 | B26: EMBASA/INSUMO | C26: Metais Pesados - Alumínio | D26: un | E26: 3 | F26: 19.5 | G26: 58.5 | H26: 67.09482713 | K26: Fórmula Para Cálculo do B.D.I
A27: F099703061 | B27: EMBASA/INSUMO | C27: Metais Pesados - Arsênio | D27: un | E27: 3 | F27: 25 | G27: 75 | H27: 86.01900915 | K27: BDI =(((1+A4+A1+A2)*(1+A3)*(1+B))/(1-C))-1
A28: F099703063 | B28: EMBASA/INSUMO | C28: Metais Pesados - Bário | D28: un | E28: 3 | F28: 19.5 | G28: 58.5 | H28: 67.09482713
A29: F099703068 | B29: EMBASA/INSUMO | C29: Metais Pesados - Cadmio | D29: un | E29: 3 | F29: 19.5 | G29: 58.5 | H29: 67.09482713 | K29: Bonificação Sobre Despesas indiretas (B.D.I) = | M29: =(((1+M16+M13+M14)*(1+M15)*(1+M20))/(1-M25))-1 -> 0.146920122
A30: F099703066 | B30: EMBASA/INSUMO | C30: Metais Pesados - Cromo | D30: un | E30: 3 | F30: 19.5 | G30: 58.5 | H30: 67.09482713
A31: F099703062 | B31: EMBASA/INSUMO | C31: Metais Pesados - Ferro | D31: un | E31: 3 | F31: 19.5 | G31: 58.5 | H31: 67.09482713
A32: F099703065 | B32: EMBASA/INSUMO | C32: Metais Pesados - Manganês | D32: un | E32: 3 | F32: 19.5 | G32: 58.5 | H32: 67.09482713 | W32: 34.13
A33: F099703069 | B33: EMBASA/INSUMO | C33: Metais Pesados - Mercúrio | D33: un | E33: 3 | F33: 25 | G33: 75 | H33: 86.01900915
A34: F099703067 | B34: EMBASA/INSUMO | C34: Metais Pesados - Zinco | D34: un | E34: 3 | F34: 19.5 | G34: 58.5 | H34: 67.09482713 | W34: 169.87
A35: E200330140 | B35: EMBASA/INSUMO | C35: Organoclorados | D35: un | E35: 3 | F35: 210.49 | G35: 631.47 | H35: 724.2456494
A36: E200330140 | B36: EMBASA/INSUMO | C36: Organofosforado | D36: un | E36: 3 | F36: =F35 -> 210.49 | G36: 631.47 | H36: 724.2456494 | W36: 90.57
A37: TOTAL SERVIÇOS GEOTÉCNICOS | H37: =SUM(H8:H36) -> 4076.681697
A38: LEGENDA:
A39: Uni - unidade de medição do insumo;
A40: Qde - Quantidade do Insumo (não pode ocorrer alteração pela Licitante)
A41: CU - Custo Unitário
A42: PT - Preço Total (incluído encargos, taxas e impostos). Foi utilizado BDI de fornecimento de 14,69%

Sheet CPU Veículo
A5: Composição de Preços de Locação de Veículo tipo pick-up
B6: Data de atualização: | C6: 2024-01-22 | E6: CV | F6: Média | G6: Mediana | K6: CV | L6: Média | M6: Mediana | V6: CV | W6: Média | X6: Mediana
A7: CODEVASF | E7: =_xlfn.STDEV.S(E10:H10)/AVERAGE(E10:H10) -> 0.09266792266 | F7: =AVERAGE(E10:H10) -> 179935.5 | G7: =MEDIAN(E10:H10) -> 184702 | K7: =_xlfn.STDEV.S(L9:S9)/AVERAGE(L9:S9) -> 0.2095249415 | L7: =AVERAGE(L9:S9) -> 31.09571429 | M7: =MEDIAN(L9:S9) -> 30.16 | V7: =_xlfn.STDEV.S(W9:AD9)/AVERAGE(W9:AD9) -> 0.1324098854 | W7: =AVERAGE(W9:AD9) -> 430.6009375 | X7: =MEDIAN(W9:AD9) -> 437.31625
A8: OBS: Preço sem BDI e sem motorista BDI= | E8: Preço FIPE | J8: PRODUTO | K8: MENOR (MÉDIA, MEDIANA) | L8: COT. 1 | M8: COT. 2 | N8: COT. 3 | O8: COT. 4 | P8: COT. 5 | Q8: COT. 6 | R8: COT. 7 | S8: COT. 8 | U8: PRODUTO | V8: MENOR (MÉDIA, MEDIANA) | W8: COT. 1 | X8: COT. 2 | Y8: COT. 3 | Z8: COT. 4 | AA8: COT. 5 | AB8: COT. 6 | AC8: COT. 7 | AD8: COT. 8
A9: Veículo tipo pick-up, cabine dupla - 2.0 16V 4x4 diesel Aut. | E9: Toro Ultra 2.0 16V 4x4 TB Diesel Aut. | F9: Toro Freedom 2.0 16V 4x4 TB Diesel Aut. | G9: Toro Volcano 2.0 16V 4x4 TB Diesel Aut. | H9: Toro Ranch 2.0 16V 4x4 TB Diesel Aut. | J9: LUBRIFICANTE 5W30 | K9: =SMALL(L7:M7,1) -> 30.16 | L9: 32.27 | M9: 28.9 | N9: 30.16 | O9: 37.7 | P9: 39.99 | Q9: 20.25 | R9: 28.4 | U9: Pneu 225/65 R17 | V9: =SMALL(W7:X7,1) -> 430.6009375 | W9: =1661.85/4 -> 415.4625 | X9: =1940.9/4 -> 485.225 | Y9: 399.88 | Z9: 330.46 | AA9: 479.6 | AB9: 386.23 | AC9: 459.17 | AD9: 488.78
B10: Custo Mensal (R$): | C10: =C51 -> 7163.790168 | E10: 193030 | F10: 157308 | G10: 177450 | H10: 191954
B11: Custo Diária (R$): | C11: =C10/22 -> 325.6268258
B12: Custo Horário (R$): | C12: =C10/176 -> 40.70335323
A13: A | B13: Depreciação mensal do equipamento
A14: A1 | B14: Preço de Aquisição | C14: =SMALL(F7:G7,1) -> 179935.5
A15: A2 | B15: Tempo previsto de vida útil (meses) | C15: 36
A16: A3 | B16: Previsão de recup. Na venda do bem usado | C16: 0.4
A17: A4 | B17: Custo mensal [A1-(A3xA1)]/A2 | C17: =(C14-(C16*C14))/C15 -> 2998.925
A18: B | B18: Juros pelo Capital empregado
A19: B1 | B19: Taxa mensal de Juros * | C19: =POWER(1+C56,1/12)-1 -> 0.009300823619
A20: B2 | B20: Juros s/depreciação/aluguel (B1xA4) | C20: =C19*C17 -> 27.89247247
A21: C | B21: Conservação e manutenção ** | C21: 0.75
A22: C1 | B22: Taxa de gastos s/a deprec. Inc. seguros (%) | C22: =C21 -> 0.75 | AF22: PREÇO DO DIESEL | AG22: 5.98
A23: C2 | B23: Incidência mensal (C1xA4) | C23: =C22*C17 -> 2249.19375 | AF23: https://precos.petrobras.com.br/sele%C3%A7%C3%A3o-de-estados-diesel
A24: D | B24: Combustível
A25: D1 | B25: Média mensal de quilômetro por veículo | C25: =130*22 -> 2860
A26: D2 | B26: Preço do litro de combustível | C26: =AG22 -> 5.98
A27: D3 | B27: Quilômetros rodados com um litro combustivel | C27: 10
A28: D4 | B28: Combustivel (D1/D3)*D2 | C28: =(C25/C27)*C26 -> 1710.28
A29: E | B29: Lubrificantes
A30: E1 | B30: Quilometragem do Contrato (D1*12) | C30: =C25*36 -> 102960
A31: E2 | B31: Franquia por troca de óleo (km) | C31: 10000
A32: E3 | B32: Preço do litro de óleo | C32: =K9 -> 30.16
A33: E4 | B33: Quantidade de litros de óleo por troca | C33: 5
A34: E5 | B34: Quantidade de dias do Contrato | C34: =365*3 -> 1095
A35: E6 | B35: Lubrificantes E = (E1*E3*E4*30)/E2*E5 | C35: =(C30*C32*C33*30)/(C31*C34) -> 42.53799452
A36: F | B36: Pneus
A37: F1 | B37: Quilometragem do Contrato | C37: =C30 -> 102960
A38: F2 | B38: Vida do Pneu em quilômetros | C38: 45000
A39: F3 | B39: Quantidade de pneus | C39: 5
A40: F4 | B40: Preço do Pneu | C40: =V9 -> 430.6009375
A41: F5 | B41: Quantidade de dias do contrato | C41: =C34 -> 1095
A42: F6 | B42: Pneus = (F1*F3*F4*30)/(F2*F5) | C42: =(C37*C39*C40*30)/(C38*C41) -> 134.9609514
A43: G | B43: Motorista
A44: G1 | B44: Salário com encargos sociais | C44: 0 | J44: https://www.google.com/search?q=lubrificante+5w30&sxsrf=AJOqlzUM514L6uswJHb1jIGpGgXchTtV5A:1677092590843&source=lnms&tbm=shop&sa=X&sqi=2&ved=
A45: H | B45: Custo Mensal
B46: Sem Motorista (A4+B2+C2+D4+E6+F6) | C46: =C17+C20+C23+C28+C35+C42 -> 7163.790168
B47: Com Motorista (A4+B2+C2+D4+E6+F6+G1) | C47: =C17+C20+C23+C28+C35+C42+C44 -> 7163.790168
A48: I | B48: Custo Direto p/ km Rodado
B49: Sem Motorista | C49: =C46/C25 -> 2.504821737
B50: Com Motorista | C50: =C47/C25 -> 2.504821737
A51: J | B51: Preço cobrado sem BDI | C51: =C46*(1+C8) -> 7163.790168
A52: J1 | B52: Sem Motorista | C52: =C51 -> 7163.790168
A53: J2 | B53: Com Motorista | C53: =C47 -> 7163.790168 | T53: https://www.google.com/search?q=pneu+225%2F65+R17&sa=X&biw=1600&bih=757&tbm=shop&sxsrf=AJOqlzWsb-d4PS1_OUOEhKmRc2RbtSg3RQ%3A1677092596279&ei=9Gb2Y9K5ENTa5OUPvLykGA&ved=0ahUKEwjSg9Pj6Kn9AhVULbkGHTweCQMQ4dUDCAg&uact=5&oq=pneu+225%2F65+R17&gs_lcp=Cgtwcm9kdWN0cy1jYxADMgsIABCABBCxAxCDATIFCAAQgAQyBwgAEIAEEAoyBwgAEIAEEAoyBwgAEIAEEAoyBwgAEIAEEAoyBwgAEIAEEAoyBQgAEIAEMgcIABCABBAKMgcIABCABBAKOgQIIxAnOgQIABBDSgQIQRgAUABYoTJgqUBoAHAAeACAAdIFiAGUKZIBDTAuMi42LjIuMi4yLjGYAQCgAQHAAQE&sclient=products-cc
B55: OBSERVAÇÕES:
A56: * | B56: Calculado com base na taxa SELIC JANEIRO/2024: | C56: 0.1175
B57: Taxa de Juros Selic — Português (Brasil) (www.gov.br)
A58: ** | B58: Conservação e manutenção - é calculado com o uso de um coeficiente multiplicador "k", conforme tabela abaixo, sobre a
B59: depreciação mensal do equipamento (Item A da planilha de composição de preços). Os valores de K são fornecidos por
B60: fabricantes.
B61: Metodologia conforme a bibliografia "Como Preparar Orçamentos de Obras", 3 edição, Aldo Dórea Mattos, 2019.

Sheet CPU Diária
B2: Engenharia Consultiva da Codevasf
B3: CPU - HOSPEDAGEM EQUIPE DE CAMPO (4 PESSOAS/MÊS) | D3: Código/Referencia
B4: ALUGUEL | C4: 3074.56 | D4: F020003334/EMBASA
B5: Aquisição de Mobiliário | C5: =43.89*C16 -> 175.56 | D5: B8954/DNIT
B6: Material de limpeza e diarista | C6: =126.93+(123*8) -> 1110.93 | D6: 10563/ORSE - E200300131/EMBASA
B7: manutenção da casa alugada - Serviços Gerais/Vigia | C7: 2529.62 | D7: 41096/SINAPI
B8: Energia | C8: 180 | D8: 10555/ORSE
B9: Água | C9: 394.99 | D9: 10554/ORSE
B10: telefone/Internet | C10: =154.99+89 -> 243.99 | D10: 10557/10558/ORSE
B11: IPTU (mês) | C11: =(C4*0.5)/12 -> 128.1066667
B12: Despesas Gerais - 10% | C12: =SUM(C4:C11)*0.1 -> 783.7756667
B13: Custo Mensal: | C13: =SUM(C4:C12) -> 8621.532333
B14: Custo Mensal por pessoa: | C14: =C13/C16 -> 2155.383083
B15: Custo diário por pessoa: | C15: =C14/22 -> 97.97195833
B16: número de pessoas: | C16: 4
B17: Alimentação: | C17: 87 | D17: Tabela Diária Codevasf
B19: Diária Total (alimentação + hospedagem): | C19: =C15+C17 -> 184.9719583

Sheet Cotação aéreo (2)
A1: Cotações - Ida 12/08 e Volta 16/08/24
A3: Comp | B3: 1 | C3: 2
A4: BSB - NAT | B4: 1346 | C4: 1590
A5: CWB - NAT | B5: 1610 | C5: 1669
A6: MAO - NAT | B6: 907 | C6: 1275
A7: GRU - NAT | B7: 1351 | C7: 1351
A8: SSA - NAT | B8: 811 | C8: 905
A9: Média | B9: =AVERAGE(B4:C8) -> 1281.5

Sheet PFP2.1_FatorKa
A1: DETALHAMENTO DOS ENCARGOS SOCIAIS: Ka | F1: CODIGO:
F2: PFP-2.1
A3: NOME DA CONSULTORA:
A5: PROJETO: | C5: CONTRATANTE: | F5: Data base: SINAPI dez/2023
A6: =PFP!A6 -> Estudos e Projeto Básico do Sistema Adutor de Serra Verde, no Estado do Rio Grande do Norte | C6: 12ª SR CODEVASF
A7: Cod | B7: DESCRIÇÃO | E7: % | F7: R$
A8: A | B8: ENCARGOS SOCIAIS BÁSICOS | E8: =ROUND(SUM(E9:E17),4) -> 0.368 | F8: =ROUND(E8*SUMIF(PFP!$B$8:$B$21,"MO1",PFP!$J$8:$J$21),2) -> 0
A9: A1 | B9: INSS | E9: 0.2 | F9: =ROUND(E9*SUMIF(PFP!$B$8:$B$21,"MO1",PFP!$J$8:$J$21),2) -> 0
A10: A2 | B10: SESI | E10: 0.015 | F10: =ROUND(E10*SUMIF(PFP!$B$8:$B$21,"MO1",PFP!$J$8:$J$21),2) -> 0
A11: A3 | B11: SENAI | E11: 0.01 | F11: =ROUND(E11*SUMIF(PFP!$B$8:$B$21,"MO1",PFP!$J$8:$J$21),2) -> 0
A12: A4 | B12: INCRA | E12: 0.002 | F12: =ROUND(E12*SUMIF(PFP!$B$8:$B$21,"MO1",PFP!$J$8:$J$21),2) -> 0
A13: A5 | B13: SEBRAE | E13: 0.006 | F13: =ROUND(E13*SUMIF(PFP!$B$8:$B$21,"MO1",PFP!$J$8:$J$21),2) -> 0
A14: A6 | B14: Salário Educação | E14: 0.025 | F14: =ROUND(E14*SUMIF(PFP!$B$8:$B$21,"MO1",PFP!$J$8:$J$21),2) -> 0
A15: A7 | B15: Seguro Contra Acidentes de Trabalho | E15: 0.03 | F15: =ROUND(E15*SUMIF(PFP!$B$8:$B$21,"MO1",PFP!$J$8:$J$21),2) -> 0
A16: A8 | B16: FGTS | E16: 0.08 | F16: =ROUND(E16*SUMIF(PFP!$B$8:$B$21,"MO1",PFP!$J$8:$J$21),2) -> 0
A17: A9 | B17: SECONCI | E17: 0 | F17: =ROUND(E17*SUMIF(PFP!$B$8:$B$21,"MO1",PFP!$J$8:$J$21),2) -> 0
A18: B | B18: ENCARGOS SOCIAIS QUE RECEBEM INCIDÊNCIA DE "A" | E18: =ROUND(SUM(E19:E25),4) -> 0.2012 | F18: =ROUND(E18*SUMIF(PFP!$B$8:$B$21,"MO1",PFP!$J$8:$J$21),2) -> 0
A19: B3 | B19: Auxílio Enfermidade | E19: 0.0064 | F19: =ROUND(E19*SUMIF(PFP!$B$8:$B$21,"MO1",PFP!$J$8:$J$21),2) -> 0
A20: B4 | B20: 13º Salário | E20: 0.0833 | F20: =ROUND(E20*SUMIF(PFP!$B$8:$B$21,"MO1",PFP!$J$8:$J$21),2) -> 0
A21: B5 | B21: Licença Paternidade | E21: 0.0004 | F21: =ROUND(E21*SUMIF(PFP!$B$8:$B$21,"MO1",PFP!$J$8:$J$21),2) -> 0
A22: B6 | B22: Faltas Justificadas | E22: 0.0056 | F22: =ROUND(E22*SUMIF(PFP!$B$8:$B$21,"MO1",PFP!$J$8:$J$21),2) -> 0
A23: B8 | B23: Auxílio Acidente de Trabalho | E23: 0.0008 | F23: =ROUND(E23*SUMIF(PFP!$B$8:$B$21,"MO1",PFP!$J$8:$J$21),2) -> 0
A24: B9 | B24: Férias Gozadas | E24: 0.1044 | F24: =ROUND(E24*SUMIF(PFP!$B$8:$B$21,"MO1",PFP!$J$8:$J$21),2) -> 0
A25: B10 | B25: Salário Maternidade | E25: 0.0003 | F25: =ROUND(E25*SUMIF(PFP!$B$8:$B$21,"MO1",PFP!$J$8:$J$21),2) -> 0
A26: C | B26: ENCARGOS SOCIAIS QUE NÃO RECEBEM INCIDÊNCIA DE "A" | E26: =ROUND(SUM(E27:E31),4) -> 0.0681 | F26: =ROUND(E26*SUMIF(PFP!$B$8:$B$21,"MO1",PFP!$J$8:$J$21),2) -> 0
A27: C1 | B27: Aviso Prévio Indenizado | E27: 0.0391 | F27: =ROUND(E27*SUMIF(PFP!$B$8:$B$21,"MO1",PFP!$J$8:$J$21),2) -> 0
A28: C2 | B28: Aviso Prévio Trabalhado | E28: 0.0009 | F28: =ROUND(E28*SUMIF(PFP!$B$8:$B$21,"MO1",PFP!$J$8:$J$21),2) -> 0
A29: C3 | B29: Férias Indenizadas | E29: 0.0066 | F29: =ROUND(E29*SUMIF(PFP!$B$8:$B$21,"MO1",PFP!$J$8:$J$21),2) -> 0
A30: C4 | B30: Depósito Rescisão Sem Justa Causa | E30: 0.0182 | F30: =ROUND(E30*SUMIF(PFP!$B$8:$B$21,"MO1",PFP!$J$8:$J$21),2) -> 0
A31: C5 | B31: Indenização Adicional | E31: 0.0033 | F31: =ROUND(E31*SUMIF(PFP!$B$8:$B$21,"MO1",PFP!$J$8:$J$21),2) -> 0
A32: D | B32: REINCIDÊNCIAS | E32: =ROUND(SUM(E33:E34),4) -> 0.0775 | F32: =ROUND(E32*SUMIF(PFP!$B$8:$B$21,"MO1",PFP!$J$8:$J$21),2) -> 0
A33: D1 | B33: Reincidência de "A" sobre "B" | E33: =ROUND(E8*E18,4) -> 0.074 | F33: =ROUND(E33*SUMIF(PFP!$B$8:$B$21,"MO1",PFP!$J$8:$J$21),2) -> 0
A34: D2 | B34: Reincidência de "A" sobre Aviso Prévio Trabalhado e reincidência do FGTS sobre Aviso Prévio Indenizado | E34: =ROUND((E28*E8)+(E27*E16),4) -> 0.0035 | F34: =ROUND(E34*SUMIF(PFP!$B$8:$B$21,"MO1",PFP!$J$8:$J$21),2) -> 0
A35: K1a | B35: ENCARGOS SOCIAIS | E35: =ROUND(E8+E18+E26+E32,4) -> 0.7148 | F35: =ROUND(E35*SUMIF(PFP!$B$8:$B$21,"MO1",PFP!$J$8:$J$21),2) -> 0
A36: Ka | B36: TAXA DE RESSARCIMENTO DE DESPESAS E ENCARGOS SOBRE MO1 | E36: =ROUND((1+E35+PFP3_FatorKd!E13)*(1+PFP3_FatorKd!E12)*(1+PFP3_FatorKd!E8),4) -> 2.315
A37: OBSERVAÇÃO: CELETISTAS E EQUIVALENTES
A38: 1 - DISCRIMINAR OS ENCARGOS SOCIAIS COM SEUS RESPECTIVOS PERCENTUAS TOTALIZANDO OS MESMOS.
A39: 2 - APLICAR O % TOTAL P/ CALCULAR OS E. SOCIAIS INCIDENTES NA MÃO-DE-OBRA CELETISTAS
A40: Ka - Taxa de Ressarcimento de Despesas e Encargos sobre a Mão de Obra CELETISTA (incide apenas no Insumo Codigo MO1)
A41: Ka = (1 + K1 + K2) x (1 + K3) x (1 + K4)

Sheet PFP2.2_FatorKb
A1: DETALHAMENTO DOS ENCARGOS SOCIAIS: Kb | F1: CODIGO:
F2: PFP-2.2
A3: NOME DA CONSULTORA:
A5: PROJETO: | C5: CONTRATANTE: | F5: Data base: SINAPI dez/2023
A6: =PFP!A6 -> Estudos e Projeto Básico do Sistema Adutor de Serra Verde, no Estado do Rio Grande do Norte | C6: 12ª SR CODEVASF
A7: Cod | B7: DESCRIÇÃO | E7: % | F7: R$
A8: A | B8: ENCARGOS SOCIAIS BÁSICOS | E8: =ROUND(SUM(E9:E17),4) -> 0.2 | F8: =ROUND(E8*SUMIF(PFP!$B$8:$B$21,"MO2",PFP!$J$8:$J$21),2) -> 0
A9: A1 | B9: INSS | E9: 0.2 | F9: =ROUND(E9*SUMIF(PFP!$B$8:$B$21,"MO2",PFP!$J$8:$J$21),2) -> 0
A10: A2 | B10: SESI | E10: 0 | F10: =ROUND(E10*SUMIF(PFP!$B$8:$B$21,"MO2",PFP!$J$8:$J$21),2) -> 0
A11: A3 | B11: SENAI | E11: 0 | F11: =ROUND(E11*SUMIF(PFP!$B$8:$B$21,"MO2",PFP!$J$8:$J$21),2) -> 0
A12: A4 | B12: INCRA | E12: 0 | F12: =ROUND(E12*SUMIF(PFP!$B$8:$B$21,"MO2",PFP!$J$8:$J$21),2) -> 0
A13: A5 | B13: SEBRAE | E13: 0 | F13: =ROUND(E13*SUMIF(PFP!$B$8:$B$21,"MO2",PFP!$J$8:$J$21),2) -> 0
A14: A6 | B14: Salário Educação | E14: 0 | F14: =ROUND(E14*SUMIF(PFP!$B$8:$B$21,"MO2",PFP!$J$8:$J$21),2) -> 0
A15: A7 | B15: Seguro Contra Acidentes de Trabalho | E15: 0 | F15: =ROUND(E15*SUMIF(PFP!$B$8:$B$21,"MO2",PFP!$J$8:$J$21),2) -> 0
A16: A8 | B16: FGTS | E16: 0 | F16: =ROUND(E16*SUMIF(PFP!$B$8:$B$21,"MO2",PFP!$J$8:$J$21),2) -> 0
A17: A9 | B17: SECONCI | E17: 0 | F17: =ROUND(E17*SUMIF(PFP!$B$8:$B$21,"MO2",PFP!$J$8:$J$21),2) -> 0
A18: B | B18: ENCARGOS SOCIAIS QUE RECEBEM INCIDÊNCIA DE "A" | E18: =ROUND(SUM(E19:E25),4) -> 0 | F18: =ROUND(E18*SUMIF(PFP!$B$8:$B$21,"MO2",PFP!$J$8:$J$21),2) -> 0
A19: B3 | B19: Auxílio Enfermidade | E19: 0 | F19: =ROUND(E19*SUMIF(PFP!$B$8:$B$21,"MO2",PFP!$J$8:$J$21),2) -> 0
A20: B4 | B20: 13º Salário | E20: 0 | F20: =ROUND(E20*SUMIF(PFP!$B$8:$B$21,"MO2",PFP!$J$8:$J$21),2) -> 0
A21: B5 | B21: Licença Paternidade | E21: 0 | F21: =ROUND(E21*SUMIF(PFP!$B$8:$B$21,"MO2",PFP!$J$8:$J$21),2) -> 0
A22: B6 | B22: Faltas Justificadas | E22: 0 | F22: =ROUND(E22*SUMIF(PFP!$B$8:$B$21,"MO2",PFP!$J$8:$J$21),2) -> 0
A23: B8 | B23: Auxílio Acidente de Trabalho | E23: 0 | F23: =ROUND(E23*SUMIF(PFP!$B$8:$B$21,"MO2",PFP!$J$8:$J$21),2) -> 0
A24: B9 | B24: Férias Gozadas | E24: 0 | F24: =ROUND(E24*SUMIF(PFP!$B$8:$B$21,"MO2",PFP!$J$8:$J$21),2) -> 0
A25: B10 | B25: Salário Maternidade | E25: 0 | F25: =ROUND(E25*SUMIF(PFP!$B$8:$B$21,"MO2",PFP!$J$8:$J$21),2) -> 0
A26: C | B26: ENCARGOS SOCIAIS QUE NÃO RECEBEM INCIDÊNCIA DE "A" | E26: =ROUND(SUM(E27:E31),4) -> 0 | F26: =ROUND(E26*SUMIF(PFP!$B$8:$B$21,"MO2",PFP!$J$8:$J$21),2) -> 0
A27: C1 | B27: Aviso Prévio Indenizado | E27: 0 | F27: =ROUND(E27*SUMIF(PFP!$B$8:$B$21,"MO2",PFP!$J$8:$J$21),2) -> 0
A28: C2 | B28: Aviso Prévio Trabalhado | E28: 0 | F28: =ROUND(E28*SUMIF(PFP!$B$8:$B$21,"MO2",PFP!$J$8:$J$21),2) -> 0
A29: C3 | B29: Férias Indenizadas | E29: 0 | F29: =ROUND(E29*SUMIF(PFP!$B$8:$B$21,"MO2",PFP!$J$8:$J$21),2) -> 0
A30: C4 | B30: Depósito Rescisão Sem Justa Causa | E30: 0 | F30: =ROUND(E30*SUMIF(PFP!$B$8:$B$21,"MO2",PFP!$J$8:$J$21),2) -> 0
A31: C5 | B31: Indenização Adicional | E31: 0 | F31: =ROUND(E31*SUMIF(PFP!$B$8:$B$21,"MO2",PFP!$J$8:$J$21),2) -> 0
A32: D | B32: REINCIDÊNCIAS | E32: =ROUND(SUM(E33:E34),4) -> 0 | F32: =ROUND(E32*SUMIF(PFP!$B$8:$B$21,"MO2",PFP!$J$8:$J$21),2) -> 0
A33: D1 | B33: Reincidência de "A" sobre "B" | E33: =ROUND(E8*E18,4) -> 0 | F33: =ROUND(E33*SUMIF(PFP!$B$8:$B$21,"MO2",PFP!$J$8:$J$21),2) -> 0
A34: D2 | B34: Reincidência de "A" sobre Aviso Prévio Trabalhado e reincidência do FGTS sobre Aviso Prévio Indenizado | E34: =ROUND(E8*E28,4)+ROUND(E27*E11,4) -> 0 | F34: =ROUND(E34*SUMIF(PFP!$B$8:$B$21,"MO2",PFP!$J$8:$J$21),2) -> 0
A35: K1b | B35: ENCARGOS SOCIAIS | E35: =ROUND(E8+E18+E26+E32,4) -> 0.2 | F35: =ROUND(E35*SUMIF(PFP!$B$8:$B$21,"MO2",PFP!$J$8:$J$21),2) -> 0
A36: Kb | B36: TAXA DE RESSARCIMENTO DE DESPESAS E ENCARGOS SOBRE MO2 | E36: =ROUND((1+E35+PFP3_FatorKd!E13)*(1+PFP3_FatorKd!E12)*(1+PFP3_FatorKd!E8),4) -> 1.6547
A37: OBSERVAÇÃO: AUTÔNOMOS E EQUIVALENTES
A38: 1 - DISCRIMINAR OS ENCARGOS SOCIAIS COM SEUS RESPECTIVOS PERCENTUAS TOTALIZANDO OS MESMOS.
A39: 2 - APLICAR O % TOTAL P/ CALCULAR OS E. SOCIAIS INCIDENTES NA MÃO-DE-OBRA AUTONÔMOS
A40: Kb - Taxa de Ressarcimento de Despesas e Encargos sobre a Mão de Obra AUTONÔMA (incide apenas no Insumo Codigo MO2)
A41: Kb = (1 + K1 + K2) x (1 + K3) x (1 + K4)

Sheet PFP2.3_FatorKc
A1: DETALHAMENTO DOS ENCARGOS SOCIAIS: Kc | F1: CODIGO:
F2: PFP-2.3
A3: NOME DA CONSULTORA:
A5: PROJETO: | C5: CONTRATANTE: | F5: Data base: SINAPI dez/2023
A6: =PFP!A6 -> Estudos e Projeto Básico do Sistema Adutor de Serra Verde, no Estado do Rio Grande do Norte | C6: 12ª SR CODEVASF
A7: Cod | B7: DESCRIÇÃO | E7: % | F7: R$
A8: A | B8: ENCARGOS SOCIAIS BÁSICOS | E8: =SUM(E9:E17) -> 0 | F8: =ROUND(E8*SUMIF(PFP!$B$8:$B$21,"MO3",PFP!$J$8:$J$21),2) -> 0
A9: A1 | B9: INSS | E9: 0 | F9: =ROUND(E9*SUMIF(PFP!$B$8:$B$21,"MO3",PFP!$J$8:$J$21),2) -> 0
A10: A2 | B10: SESI | E10: 0 | F10: =ROUND(E10*SUMIF(PFP!$B$8:$B$21,"MO3",PFP!$J$8:$J$21),2) -> 0
A11: A3 | B11: SENAI | E11: 0 | F11: =ROUND(E11*SUMIF(PFP!$B$8:$B$21,"MO3",PFP!$J$8:$J$21),2) -> 0
A12: A4 | B12: INCRA | E12: 0 | F12: =ROUND(E12*SUMIF(PFP!$B$8:$B$21,"MO3",PFP!$J$8:$J$21),2) -> 0
A13: A5 | B13: SEBRAE | E13: 0 | F13: =ROUND(E13*SUMIF(PFP!$B$8:$B$21,"MO3",PFP!$J$8:$J$21),2) -> 0
A14: A6 | B14: Salário Educação | E14: 0 | F14: =ROUND(E14*SUMIF(PFP!$B$8:$B$21,"MO3",PFP!$J$8:$J$21),2) -> 0
A15: A7 | B15: Seguro Contra Acidentes de Trabalho | E15: 0 | F15: =ROUND(E15*SUMIF(PFP!$B$8:$B$21,"MO3",PFP!$J$8:$J$21),2) -> 0
A16: A8 | B16: FGTS | E16: 0 | F16: =ROUND(E16*SUMIF(PFP!$B$8:$B$21,"MO3",PFP!$J$8:$J$21),2) -> 0
A17: A9 | B17: SECONCI | E17: 0 | F17: =ROUND(E17*SUMIF(PFP!$B$8:$B$21,"MO3",PFP!$J$8:$J$21),2) -> 0
A18: B | B18: ENCARGOS SOCIAIS QUE RECEBEM INCIDÊNCIA DE "A" | E18: =ROUND(SUM(E19:E25),4) -> 0 | F18: =ROUND(E18*SUMIF(PFP!$B$8:$B$21,"MO3",PFP!$J$8:$J$21),2) -> 0
A19: B3 | B19: Auxílio Enfermidade | E19: 0 | F19: =ROUND(E19*SUMIF(PFP!$B$8:$B$21,"MO3",PFP!$J$8:$J$21),2) -> 0
A20: B4 | B20: 13º Salário | E20: 0 | F20: =ROUND(E20*SUMIF(PFP!$B$8:$B$21,"MO3",PFP!$J$8:$J$21),2) -> 0
A21: B5 | B21: Licença Paternidade | E21: 0 | F21: =ROUND(E21*SUMIF(PFP!$B$8:$B$21,"MO3",PFP!$J$8:$J$21),2) -> 0
A22: B6 | B22: Faltas Justificadas | E22: 0 | F22: =ROUND(E22*SUMIF(PFP!$B$8:$B$21,"MO3",PFP!$J$8:$J$21),2) -> 0
A23: B8 | B23: Auxílio Acidente de Trabalho | E23: 0 | F23: =ROUND(E23*SUMIF(PFP!$B$8:$B$21,"MO3",PFP!$J$8:$J$21),2) -> 0
A24: B9 | B24: Férias Gozadas | E24: 0 | F24: =ROUND(E24*SUMIF(PFP!$B$8:$B$21,"MO3",PFP!$J$8:$J$21),2) -> 0
A25: B10 | B25: Salário Maternidade | E25: 0 | F25: =ROUND(E25*SUMIF(PFP!$B$8:$B$21,"MO3",PFP!$J$8:$J$21),2) -> 0
A26: C | B26: ENCARGOS SOCIAIS QUE NÃO RECEBEM INCIDÊNCIA DE "A" | E26: =ROUND(SUM(E27:E31),4) -> 0 | F26: =ROUND(E26*SUMIF(PFP!$B$8:$B$21,"MO3",PFP!$J$8:$J$21),2) -> 0
A27: C1 | B27: Aviso Prévio Indenizado | E27: 0 | F27: =ROUND(E27*SUMIF(PFP!$B$8:$B$21,"MO3",PFP!$J$8:$J$21),2) -> 0
A28: C2 | B28: Aviso Prévio Trabalhado | E28: 0 | F28: =ROUND(E28*SUMIF(PFP!$B$8:$B$21,"MO3",PFP!$J$8:$J$21),2) -> 0
A29: C3 | B29: Férias Indenizadas | E29: 0 | F29: =ROUND(E29*SUMIF(PFP!$B$8:$B$21,"MO3",PFP!$J$8:$J$21),2) -> 0
A30: C4 | B30: Depósito Rescisão Sem Justa Causa | E30: 0 | F30: =ROUND(E30*SUMIF(PFP!$B$8:$B$21,"MO3",PFP!$J$8:$J$21),2) -> 0
A31: C5 | B31: Indenização Adicional | E31: 0 | F31: =ROUND(E31*SUMIF(PFP!$B$8:$B$21,"MO3",PFP!$J$8:$J$21),2) -> 0
A32: D | B32: REINCIDÊNCIAS | E32: =ROUND(SUM(E33:E34),4) -> 0 | F32: =ROUND(E32*SUMIF(PFP!$B$8:$B$21,"MO3",PFP!$J$8:$J$21),2) -> 0
A33: D1 | B33: Reincidência de "A" sobre "B" | E33: =ROUND(E8*E18,4) -> 0 | F33: =ROUND(E33*SUMIF(PFP!$B$8:$B$21,"MO3",PFP!$J$8:$J$21),2) -> 0
A34: D2 | B34: Reincidência de "A" sobre Aviso Prévio Trabalhado e reincidência do FGTS sobre Aviso Prévio Indenizado | E34: =ROUND(E8*E28,4)+ROUND(E27*E11,4) -> 0 | F34: =ROUND(E34*SUMIF(PFP!$B$8:$B$21,"MO3",PFP!$J$8:$J$21),2) -> 0
A35: K1c | B35: ENCARGOS SOCIAIS | E35: =ROUND(E8+E18+E26+E32,4) -> 0 | F35: =ROUND(E35*SUMIF(PFP!$B$8:$B$21,"MO3",PFP!$J$8:$J$21),2) -> 0
A36: Kc | B36: TAXA DE RESSARCIMENTO DE DESPESAS E ENCARGOS SOBRE MO3 | E36: =ROUND((1+E35+PFP3_FatorKd!E13)*(1+PFP3_FatorKd!E12)*(1+PFP3_FatorKd!E8),4) -> 1.3982
A37: OBSERVAÇÃO: SOCIETÁRIOS E EQUIVALENTES
A38: 1 - DISCRIMINAR OS ENCARGOS SOCIAIS COM SEUS RESPECTIVOS PERCENTUAS TOTALIZANDO OS MESMOS.
A39: 2 - APLICAR O % TOTAL P/ CALCULAR OS E. SOCIAIS INCIDENTES NA MÃO-DE-OBRA DE SOCIETÁRIOS
A40: Kc - Taxa de Ressarcimento de Despesas e Encargos sobre a Mão de Obra SOCIETÁRIA (incide apenas no Insumo Codigo MO3)
A41: Kc = (1 + K1 + K2) x (1 + K3) x (1 + K4)

Sheet PFP3_FatorKd
A1: DESPESAS FISCAIS E CUSTOS DIVERSOS: Kc | F1: CODIGO:
F2: PFP-3
A3: NOME DA CONSULTORA:
A5: PROJETO: | C5: CONTRATANTE: | F5: Data base: SINAPI dez/2023
A6: =PFP!A6 -> Estudos e Projeto Básico do Sistema Adutor de Serra Verde, no Estado do Rio Grande do Norte | C6: 12ª SR CODEVASF
A7: Cod | B7: DESCRIÇÃO1 | D7: % preço2 | E7: % custo4
A8: K4 | B8: TRIBUTOS | D8: =ROUND(D9+D10+D11,4) -> 0.1425 | E8: =ROUND(E9+E10+E11,4) -> 0.1661 | F8: =E8*SUM(SUMIF(PFP!$B$8:$B$25,"MO1",PFP!$K$8:$K$25)*(1+'PFP2.1_FatorKa'!$E$35)+SUMIF(PFP!$B$8:$B$25,"MO2",PFP!$K$8:$K$25)*(1+'PFP2.2_FatorKb'!$E$35)+SUMIF(PFP!$B$8:$B$25,"<>MO*",PFP!$K$8:$K$25)+$F$13+$F$12) -> 80933.87554
A9: K4.1 | B9: ISS | D9: 0.05 | E9: =ROUND((1/(1-$D$8))*D9,4) -> 0.0583 | F9: =E9*SUM(SUMIF(PFP!$B$8:$B$25,"MO1",PFP!$K$8:$K$25)*(1+'PFP2.1_FatorKa'!$E$35)+SUMIF(PFP!$B$8:$B$25,"MO2",PFP!$K$8:$K$25)*(1+'PFP2.2_FatorKb'!$E$35)+SUMIF(PFP!$B$8:$B$25,"<>MO*",PFP!$K$8:$K$25)+$F$13+$F$12) -> 28407.25433
A10: K4.2 | B10: PIS3 - aliquota efetiva aplicavel percentual-desconto | D10: 0.0165 | E10: =ROUND((1/(1-$D$8))*D10,4) -> 0.0192 | F10: =E10*SUM(SUMIF(PFP!$B$8:$B$25,"MO1",PFP!$K$8:$K$25)*(1+'PFP2.1_FatorKa'!$E$35)+SUMIF(PFP!$B$8:$B$25,"MO2",PFP!$K$8:$K$25)*(1+'PFP2.2_FatorKb'!$E$35)+SUMIF(PFP!$B$8:$B$25,"<>MO*",PFP!$K$8:$K$25)+$F$13+$F$12) -> 9355.39079
A11: K4.3 | B11: COFINS3 - aliquota efetiva aplicavel percentual-desconto | D11: 0.076 | E11: =ROUND((1/(1-$D$8))*D11,4) -> 0.0886 | F11: =E11*SUM(SUMIF(PFP!$B$8:$B$25,"MO1",PFP!$K$8:$K$25)*(1+'PFP2.1_FatorKa'!$E$35)+SUMIF(PFP!$B$8:$B$25,"MO2",PFP!$K$8:$K$25)*(1+'PFP2.2_FatorKb'!$E$35)+SUMIF(PFP!$B$8:$B$25,"<>MO*",PFP!$K$8:$K$25)+$F$13+$F$12) -> 43171.23042
A12: K3 | B12: REMUNERAÇÃO DA EMPRESA (LUCRO) | E12: 0.1 | F12: =E12*SUM(SUMIF(PFP!$B$8:$B$21,"MO1",PFP!$J$8:$J$21)*(1+'PFP2.1_FatorKa'!$E$35)+SUMIF(PFP!$B$8:$B$21,"MO2",PFP!$J$8:$J$21)*(1+'PFP2.2_FatorKb'!$E$35)+SUMIF(PFP!$B$8:$B$21,"<>MO*",PFP!$J$8:$J$21)+$F$13) -> 9401.647
A13: K2 | B13: CUSTOS DA ADMINISTRAÇÃO CENTRAL | E13: 0.09 | F13: =ROUND(E13*SUMIF(PFP!$B$8:$B$21,"MO*",PFP!$J$8:$J$21),2) -> 18399.48
A14: K2.1 | B14: Custos da administração central da empresa (diretoria, pessoal técnico de apoio e pessoal administrativo não diretamente vinculado à prestação dos serviços) | E14: 0.05 | F14: =ROUND(E14*SUMIF(PFP!$B$8:$B$21,"MO*",PFP!$J$8:$J$21),2) -> 10221.93
A15: K2.2 | B15: Outras despesas que afetam o custo de produção como treinamento, biblioteca, programa de qualidade, programa de benefícios, auditoria interna e externa | E15: 0.02 | F15: =ROUND(E15*SUMIF(PFP!$B$8:$B$21,"MO*",PFP!$J$8:$J$21),2) -> 4088.77
A16: K2.3 | B16: Despesas fixas e variaveis com patrimônio, aluguéis, comunicação, manutenção e transporte não diretamente relacionados com o custo direto dos serviços | E16: 0.02 | F16: =ROUND(E16*SUMIF(PFP!$B$8:$B$21,"MO*",PFP!$J$8:$J$21),2) -> 4088.77
A17: Kd | B17: TAXA RESSARCIMENTO DE DESPESAS SOBRE CUSTOS DIVERSOS | E17: =ROUND((1+E12)*(1+E8),4) -> 1.2827
A18: NOME DO INFORMANTE: | E18: QUALIFICAÇÃO:
A20: ASSINATURA: | E20: DATA:
A22: Observação:
A23: 1 - RELACIONAR OS CUSTOS DE ADMINISTRAÇÃO COM RESPECTIVOS PERCENTUAIS INCIDENTES NA MÃO -DE-OBRA
A24: 1 - DISCRIMINAR OS TRIBUTOS QUE INCIDEM SOBRE OS CUSTOS DA PRESTAÇÃO DOS SERVIÇOS
A25: 2 - K4 = INDICAR % DE CADA TRIBUTO E A SOMA DOS MESMOS (ex: ISS 5% + PIS 1,65% + COFINS 7,60% = 14,25%)
A26: 3 - PIS e COFINS, Regime de Incidencia Acumulativa (0,65% e 3,00% - sem percentual de desconto) ou em Regime de Incidencia Não Acumulativa (1,65% e 7,60% - aplicável percentual de desconto) de acordo com a forma de apuração do lucro no IRPJ. APRESENTAR COMPROVANTES de aproveitamento de créditos tributários dos últimos 12 meses em caso de aplicação de "percentual de desconto".
A27: 4 - AS DESPESAS FISCAIS (K4) INCIDEM SOBRE O TOTAL DA FATURA E NÃO SOBRE OS CUSTOS INCORRIDOS,
A28: DEVENDO SER CALCULADO O K4' APLICANDO-SE A SEGUINTE FÓRMULA:
A29: K4' = { [ 1 / ( 1 - K4) ] - 1 } x 100
A30: =CONCATENATE(" K4' = { [ 1 / ( 1 - ",D8," ) ] - 1 } x 100") -> K4' = { [ 1 / ( 1 - 0,1425 ) ] - 1 } x 100
A31: Kc - Taxa de Ressarcimento de Despesas sobre Custos Diversos (incide sobre os Insumos Codigo DP e EM)
A32: Kc = (1 + K3) x (1 + K4)
A33: K2 - Incide sobre o Custo Total (CT) da Mão de Obra (MO* = MO1 + MO2)
A34: K3 - Incide sobre o Custo Total (CT) Mão de Obra com encargos (MO1 x Ka ou MO2 x Kb), demais Custos (DP e EM), e Custos da Administração Central (K2)
A35: K4 - Incide sobre o Custo Total (CT) Mão de Obra com encargos (MO1 x Ka ou MO2 x Kb), demais Custos (DP e EM), e Custos da Administração Central (K2) e Lucro (K3)

Sheet CRO1_Ins-Pro
A1: INSUMOS POR ETAPA/PRODUTO | I1: CODIGO:
I2: CRO-1
A3: Cod. | B3: Categoria / Insumo | C3: Uni | D3: Qde | E3: CUD | F3: PU | G3: FatorK | H3: EB | I3: EVTEA | J3: EA | K3: PB
G4: Meses | H4: 2 | I4: 2 | J4: 1 | K4: 2
A5: =PFP!C8 -> P0 | B5: =PFP!D8 -> Engenheiro coordenador (P8061) | C5: mês | D5: 3 | E5: =PFP!G8 -> 17371.67 | F5: =PFP!H8 -> 24289.07 | G5: =PFP!I8 -> 1.3982 | H5: 0.5 | I5: 1 | J5: 0.5 | K5: 1
A6: =PFP!C10 -> P2 | B6: =PFP!D9 -> Engenheiro de projeto pleno - Civil/Sanitarista (P8066) | C6: mês | D6: 5 | E6: =PFP!G9 -> 11895.06 | F6: =PFP!H9 -> 27537.06 | G6: =PFP!I9 -> 2.315 | H6: 1 | I6: 1.5 | J6: 1 | K6: 1.5
A7: P2 | B7: =PFP!D10 -> Engenheiro ambiental pleno (P8058) | C7: mês | D7: 3 | E7: =PFP!G10 -> 11513.98 | F7: =PFP!H10 -> 19052.18 | G7: =PFP!I10 -> 1.6547 | H7: 0.5 | I7: 1 | J7: 1 | K7: 0.5
A8: P2 | B8: =PFP!D11 -> Engenheiro pleno - demais esp. (P8066) | C8: mês | D8: 2 | E8: =PFP!G11 -> 11895.06 | F8: =PFP!H11 -> 19682.76 | G8: =PFP!I11 -> 1.6547 | H8: 0.5 | I8: 0.5 | J8: 0 | K8: 1
A9: =PFP!C12 -> T1 | B9: =PFP!D12 -> Técnico de projetos/obra (P8147) | C9: mês | D9: 7 | E9: =PFP!G12 -> 3136.59 | F9: =PFP!H12 -> 7261.21 | G9: =PFP!I12 -> 2.315 | H9: 2 | I9: 2 | J9: 1 | K9: 2
A10: A1 | B10: Auxiliar administrativo | C10: mês | D10: 7 | E10: =PFP!G13 -> 1794.31 | F10: =PFP!H13 -> 4153.83 | G10: =PFP!I13 -> 2.315 | H10: 2 | I10: 2 | J10: 1 | K10: 2
A11: =PFP!C14 -> ECA | B11: =PFP!D14 -> Encargos Comp. e Adicionais | C11: mês | D11: =SUM(H11:K11) -> 27 | E11: =PFP!G14 -> 1048.636667 | F11: =PFP!H14 -> 1345.09 | G11: =PFP!I14 -> 1.2827 | H11: =SUM(H5:H10) -> 6.5 | I11: =SUM(I5:I10) -> 8 | J11: =SUM(J5:J10) -> 4.5 | K11: =SUM(K5:K10) -> 8
A12: =PFP!C15 -> V1 | B12: =PFP!D15 -> Diárias | C12: dia | D12: =SUM(H12:K12) -> 70 | E12: =PFP!G15 -> 184.9719583 | F12: =PFP!H15 -> 237.26 | G12: =PFP!I15 -> 1.2827 | H12: =H4*5*2 -> 20 | I12: =I4*5*2 -> 20 | J12: =J4*5*2 -> 10 | K12: =K4*5*2 -> 20
A13: =PFP!C16 -> V2 | B13: =PFP!D16 -> Pick-up cabine dupla | C13: dia | D13: 70 | E13: =PFP!G16 -> 325.6268258 | F13: =PFP!H16 -> 417.68 | G13: =PFP!I16 -> 1.2827 | H13: 20 | I13: 20 | J13: 10 | K13: 20
A14: =PFP!C17 -> V3 | B14: =PFP!D17 -> Passagens Aéreas (ida e volta) | C14: un | D14: 3 | E14: =PFP!G17 -> 1281.5 | F14: =PFP!H17 -> 1643.78 | G14: =PFP!I17 -> 1.2827 | H14: 1 | I14: 1 | J14: 0 | K14: 1
A15: =PFP!C18 -> M1 | B15: =PFP!D18 -> Relatório Parcial | C15: un | D15: 14 | E15: =PFP!G18 -> 40.33 | F15: =PFP!H18 -> 51.73 | G15: =PFP!I18 -> 1.2827 | H15: 3 | I15: 5 | J15: 1 | K15: 5
A16: =PFP!C19 -> M2 | B16: =PFP!D19 -> Relatório Final | C16: un | D16: 4 | E16: =PFP!G19 -> 1788.19 | F16: =PFP!H19 -> 2293.71 | G16: =PFP!I19 -> 1.2827 | H16: 1 | I16: 1 | J16: 1 | K16: 1
A17: =PFP!C20 -> TOP | B17: =PFP!D20 -> Total Serviços Cartográficos | C17: un | D17: 1 | E17: =PFP!G20 -> - | F17: =PFP!H20 -> 210487.1047 | G17: =PFP!I20 -> - | H17: 1
A18: =PFP!C21 -> GEO | B18: =PFP!D21 -> Total Serviços Geotécnicos | C18: un | D18: 1 | E18: =PFP!G21 -> - | F18: =PFP!H21 -> 147901.4 | G18: =PFP!I21 -> - | H18: 1
A19: =PFP!C22 -> AMB | B19: =PFP!D22 -> Total Serviços Ambientais | C19: un | D19: 1 | E19: =PFP!G22 -> - | F19: =PFP!H22 -> 4076.681697 | G19: =PFP!I22 -> - | H19: 1
A20: TOTAL | B20: VALOR TOTAL POR PRODUTO | C20: R$ | D20: 846438.6664 | H20: =SUM(H5:H19*$F$5:$F$19) -> 470278.8964 | I20: =SUM(I5:I19*$F$5:$F$19) -> 145373.96 | J20: =SUM(J5:J19*$F$5:$F$19) -> 85096.56 | K20: =SUM(K5:K19*$F$5:$F$19) -> 145689.25
C21: % | D21: 1 | H21: =ROUND(H20/$D$20,5) -> 0.5556 | I21: =ROUND(I20/$D$20,5) -> 0.17175 | J21: =ROUND(J20/$D$20,5) -> 0.10053 | K21: =ROUND(K20/$D$20,5) -> 0.17212
A22: TOTAL | B22: VALOR DOS SUBPRODUTOS | C22: R$ | D22: 677150.9331 | H22: =H20*0.8 -> 376223.1171 | I22: =I20*0.8 -> 116299.168 | J22: =J20*0.8 -> 68077.248 | K22: =K20*0.8 -> 116551.4
B23: VALOR DO PRODUTO CONSOLIDADO | C23: R$ | D23: 169287.7333 | H23: =H20*0.2 -> 94055.77927 | I23: =I20*0.2 -> 29074.792 | J23: =J20*0.2 -> 17019.312 | K23: =K20*0.2 -> 29137.85

Sheet CRO2_Pro-Mes
A1: CRONOGRAMA FÍSICO-FINANCEIRO
A2: Cod1 | B2: Produto/ Mês | C2: 1 | D2: 2 | E2: 3 | F2: 4 | G2: 5 | H2: 6 | I2: 7 | J2: Total/Produto | XFB2: Valor | XFC2: %
A3: EVTEA | B3: Estudo de Viabilidade | D3: 1 | E3: 1 | J3: =SUM(C3:I3) -> 2 | XFB3: ='CRO1_Ins-Pro'!I20 -> 145373.96 | XFC3: =XFB3/$J$19 -> 0.1717477778
D4: =D5/XFB3 -> 0.5 | E4: =E5/XFB3 -> 0.5 | J4: =SUM(C4:I4) -> 1
D5: =XFB3/2 -> 72686.98 | E5: =XFB3/2 -> 72686.98 | J5: =SUM(C5:I5) -> 145373.96
A6: EB | B6: Estudos Básicos | C6: 1 | D6: 1 | J6: =SUM(C6:I6) -> 2 | XFB6: ='CRO1_Ins-Pro'!H20 -> 470278.8964 | XFC6: =XFB6/$J$19 -> 0.5555971331
C7: =C8/XFB6 -> 0.5 | D7: =D8/XFB6 -> 0.5 | J7: 1
C8: =XFB6/2 -> 235139.4482 | D8: =XFB6/2 -> 235139.4482 | J8: 470278.8964
A9: EA | B9: Estudos Ambientais | E9: 1 | J9: 1 | XFB9: ='CRO1_Ins-Pro'!J20 -> 85096.56 | XFC9: =XFB9/$J$19 -> 0.1005348212
E10: =E11/XFB9 -> 1 | J10: 1
E11: =XFB9 -> 85096.56 | J11: 85096.56
A12: LA | B12: Licenciamento Ambiental | F12: 0 | G12: 0 | J12: 0 | XFB12: 0 | XFC12: =XFB12/$J$19 -> 0
F13: 0 | G13: 0 | J13: 0
F14: =XFB12/2 -> 0 | G14: =XFC12/2 -> 0 | J14: 0
A15: PB | B15: Projeto Básico | H15: 1 | I15: 1 | J15: 2 | XFB15: ='CRO1_Ins-Pro'!K20 -> 145689.25 | XFC15: =XFB15/$J$19 -> 0.1721202679
H16: =H17/XFB15 -> 0.5 | I16: =I17/XFB15 -> 0.5 | J16: 1
H17: =XFB15/2 -> 72844.625 | I17: =XFB15/2 -> 72844.625 | J17: 145689.25
A18: Total Geral | C18: =C19/$J$19 -> 0.2777985665 | D18: 0.3636724554 | E18: 0.1864087101 | F18: 0 | G18: 0 | H18: 0.08606013394 | I18: 0.08606013394 | J18: =SUM(C18:I18) -> 1
C19: =C8 -> 235139.4482 | D19: =D5+D8 -> 307826.4282 | E19: =E5+E11 -> 157783.54 | F19: =F14 -> 0 | G19: =G14 -> 0 | H19: =H17 -> 72844.625 | I19: =I17 -> 72844.625 | J19: =SUM(XFB3:XFB15) -> 846438.6664
A20: Acumulado | C20: =C18 -> 0.2777985665 | D20: =C20+D18 -> 0.641471022 | E20: =D20+E18 -> 0.8278797321 | F20: 0.8278797321 | G20: 0.8278797321 | H20: 0.9139398661 | I20: 1
C21: =C19 -> 235139.4482 | D21: =C21+D19 -> 542965.8764 | E21: =D21+E19 -> 700749.4164 | F21: =E21+F19 -> 700749.4164 | G21: =F21+G19 -> 700749.4164 | H21: =G21+H19 -> 773594.0414 | I21: =H21+I19 -> 846438.6664

Sheet DNIT TC - 012023 (hidden)
A1: Código | B1: Categoria | C1: Unid. | D1: Salário | E1: Encargos Sociais | G1: Encargos Complementares | Q1: Encargos Adicionais | W1: Encargos Totais | Y1: Valor Total
G2: Alimentação | I2: EPI | K2: Ferramenta | M2: Transporte | O2: Exame Ocupacional | Q2: Cesta Básica | S2: Assistência Médica | U2: Seguro de Vida
D3: R$ | E3: % | F3: R$ | G3: % | H3: R$ | I3: % | J3: R$ | K3: % | L3: R$ | M3: % | N3: R$ | O3: % | P3: R$ | Q3: % | R3: R$ | S3: % | T3: R$ | U3: % | V3: R$ | W3: % | X3: R$ | Y3: R$
A4: P8001 | B4: Advogado júnior | C4: mês | D4: 4281.78 | E4: 0.7952 | F4: 3404.88 | G4: 0.1642 | H4: 702.89 | I4: 0.0058 | J4: 24.8 | K4: 0 | L4: 0 | M4: 0 | N4: 0 | O4: 0.0007 | P4: 3.02 | Q4: 0 | R4: 0 | S4: 0.0671 | T4: 287.2 | U4: 0.0023 | V4: 9.98 | W4: 1.0353 | X4: 4432.76 | Y4: 8714.55
A5: P8002 | B5: Advogado pleno | C5: mês | D5: 5709.05 | E5: 0.7952 | F5: 4539.83 | G5: 0.1231 | H5: 702.89 | I5: 0.0043 | J5: 24.8 | K5: 0 | L5: 0 | M5: 0 | N5: 0 | O5: 0.0005 | P5: 3.02 | Q5: 0 | R5: 0 | S5: 0.0503 | T5: 287.2 | U5: 0.0017 | V5: 9.98 | W5: 0.9752 | X5: 5567.72 | Y5: 11276.77
A6: P8003 | B6: Advogado sênior | C6: mês | D6: 10130.91 | E6: 0.7952 | F6: 8056.1 | G6: 0.0694 | H6: 702.89 | I6: 0.0024 | J6: 24.8 | K6: 0 | L6: 0 | M6: 0 | N6: 0 | O6: 0.0003 | P6: 3.02 | Q6: 0 | R6: 0 | S6: 0.0283 | T6: 287.2 | U6: 0.001 | V6: 9.98 | W6: 0.8967 | X6: 9083.99 | Y6: 19214.9
A7: P8007 | B7: Analista de desenvolvimento de sistemas júnior | C7: mês | D7: 4013.75 | E7: 0.7941 | F7: 3187.32 | G7: 0.1751 | H7: 702.89 | I7: 0 | J7: 0 | K7: 0 | L7: 0 | M7: 0 | N7: 0 | O7: 0.0009 | P7: 3.46 | Q7: 0 | R7: 0 | S7: 0.0716 | T7: 287.2 | U7: 0.0025 | V7: 9.98 | W7: 1.0441 | X7: 4190.85 | Y7: 8204.59
A8: P8008 | B8: Analista de desenvolvimento de sistemas pleno | C8: mês | D8: 5130.15 | E8: 0.7941 | F8: 4073.85 | G8: 0.137 | H8: 702.89 | I8: 0 | J8: 0 | K8: 0 | L8: 0 | M8: 0 | N8: 0 | O8: 0.0007 | P8: 3.46 | Q8: 0 | R8: 0 | S8: 0.056 | T8: 287.2 | U8: 0.0019 | V8: 9.98 | W8: 0.9897 | X8: 5077.38 | Y8: 10207.53
A9: P8009 | B9: Analista de desenvolvimento de sistemas sênior | C9: mês | D9: 9196.66 | E9: 0.7941 | F9: 7303.07 | G9: 0.0764 | H9: 702.89 | I9: 0 | J9: 0 | K9: 0 | L9: 0 | M9: 0 | N9: 0 | O9: 0.0004 | P9: 3.46 | Q9: 0 | R9: 0 | S9: 0.0312 | T9: 287.2 | U9: 0.0011 | V9: 9.98 | W9: 0.9032 | X9: 8306.6 | Y9: 17503.26
A10: P8013 | B10: Arquiteto júnior | C10: mês | D10: 11220 | E10: 0.793 | F10: 8897.46 | G10: 0.0626 | H10: 702.89 | I10: 0.0022 | J10: 24.8 | K10: 0 | L10: 0 | M10: 0 | N10: 0 | O10: 0.0003 | P10: 3.43 | Q10: 0 | R10: 0 | S10: 0.0256 | T10: 287.2 | U10: 0.0009 | V10: 9.98 | W10: 0.8846 | X10: 9925.76 | Y10: 21145.76
A11: P8014 | B11: Arquiteto pleno | C11: mês | D11: 11626.7 | E11: 0.793 | F11: 9219.97 | G11: 0.0605 | H11: 702.89 | I11: 0.0021 | J11: 24.8 | K11: 0 | L11: 0 | M11: 0 | N11: 0 | O11: 0.0003 | P11: 3.43 | Q11: 0 | R11: 0 | S11: 0.0247 | T11: 287.2 | U11: 0.0009 | V11: 9.98 | W11: 0.8814 | X11: 10248.27 | Y11: 21874.97
A12: P8015 | B12: Arquiteto sênior | C12: mês | D12: 14229.73 | E12: 0.793 | F12: 11284.18 | G12: 0.0494 | H12: 702.89 | I12: 0.0017 | J12: 24.8 | K12: 0 | L12: 0 | M12: 0 | N12: 0 | O12: 0.0002 | P12: 3.43 | Q12: 0 | R12: 0 | S12: 0.0202 | T12: 287.2 | U12: 0.0007 | V12: 9.98 | W12: 0.8653 | X12: 12312.48 | Y12: 26542.21
A13: P8019 | B13: Assistente social júnior | C13: mês | D13: 3020.78 | E13: 0.7998 | F13: 2416.02 | G13: 0.2327 | H13: 702.89 | I13: 0.0082 | J13: 24.8 | K13: 0 | L13: 0 | M13: 0.0125 | N13: 37.78 | O13: 0.0016 | P13: 4.7 | Q13: 0 | R13: 0 | S13: 0.0951 | T13: 287.2 | U13: 0.0033 | V13: 9.98 | W13: 1.1531 | X13: 3483.38 | Y13: 6504.16
A14: P8020 | B14: Assistente social pleno | C14: mês | D14: 4027.71 | E14: 0.7998 | F14: 3221.36 | G14: 0.1745 | H14: 702.89 | I14: 0.0062 | J14: 24.8 | K14: 0 | L14: 0 | M14: 0 | N14: 0 | O14: 0.0012 | P14: 4.7 | Q14: 0 | R14: 0 | S14: 0.0713 | T14: 287.2 | U14: 0.0025 | V14: 9.98 | W14: 1.0554 | X14: 4250.93 | Y14: 8278.64
A15: P8021 | B15: Assistente social sênior | C15: mês | D15: 6830.21 | E15: 0.7998 | F15: 5462.8 | G15: 0.1029 | H15: 702.89 | I15: 0.0036 | J15: 24.8 | K15: 0 | L15: 0 | M15: 0 | N15: 0 | O15: 0.0007 | P15: 4.7 | Q15: 0 | R15: 0 | S15: 0.042 | T15: 287.2 | U15: 0.0015 | V15: 9.98 | W15: 0.9505 | X15: 6492.37 | Y15: 13322.58
A16: P8025 | B16: Auxiliar | C16: mês | D16: 1467.63 | E16: 0.8047 | F16: 1181 | G16: 0.4789 | H16: 702.89 | I16: 0.0206 | J16: 30.19 | K16: 0.0011 | L16: 1.55 | M16: 0.0892 | N16: 130.97 | O16: 0.0045 | P16: 6.67 | Q16: 0 | R16: 0 | S16: 0.1957 | T16: 287.2 | U16: 0.0068 | V16: 9.98 | W16: 1.6015 | X16: 2350.46 | Y16: 3818.09
A17: P8026 | B17: Auxiliar administrativo | C17: mês | D17: 1772.08 | E17: 0.8012 | F17: 1419.79 | G17: 0.3966 | H17: 702.89 | I17: 0 | J17: 0 | K17: 0 | L17: 0 | M17: 0.0636 | N17: 112.71 | O17: 0.0022 | P17: 3.83 | Q17: 0 | R17: 0 | S17: 0.1621 | T17: 287.2 | U17: 0.0056 | V17: 9.98 | W17: 1.4313 | X17: 2536.41 | Y17: 4308.49
A18: P8027 | B18: Auxiliar de laboratório | C18: mês | D18: 1618.28 | E18: 0.8008 | F18: 1295.92 | G18: 0.4343 | H18: 702.89 | I18: 0.0187 | J18: 30.19 | K18: 0.002 | L18: 3.19 | M18: 0.0753 | N18: 121.94 | O18: 0.0027 | P18: 4.31 | Q18: 0 | R18: 0 | S18: 0.1775 | T18: 287.2 | U18: 0.0062 | V18: 9.98 | W18: 1.5174 | X18: 2455.62 | Y18: 4073.9
A19: P8028 | B19: Auxiliar de topografia | C19: mês | D19: 1467.63 | E19: 0.8017 | F19: 1176.6 | G19: 0.4789 | H19: 702.89 | I19: 0.0206 | J19: 30.19 | K19: 0.0009 | L19: 1.35 | M19: 0.0892 | N19: 130.97 | O19: 0.0032 | P19: 4.7 | Q19: 0 | R19: 0 | S19: 0.1957 | T19: 287.2 | U19: 0.0068 | V19: 9.98 | W19: 1.5971 | X19: 2343.88 | Y19: 3811.52
A20: P8032 | B20: Biólogo júnior | C20: mês | D20: 3175.35 | E20: 0.7956 | F20: 2526.31 | G20: 0.2214 | H20: 702.89 | I20: 0.0078 | J20: 24.8 | K20: 0 | L20: 0 | M20: 0.009 | N20: 28.51 | O20: 0.0012 | P20: 3.77 | Q20: 0 | R20: 0 | S20: 0.0904 | T20: 287.2 | U20: 0.0031 | V20: 9.98 | W20: 1.1285 | X20: 3583.46 | Y20: 6758.81
A21: P8033 | B21: Biólogo pleno | C21: mês | D21: 4233.8 | E21: 0.7956 | F21: 3368.41 | G21: 0.166 | H21: 702.89 | I21: 0.0059 | J21: 24.8 | K21: 0 | L21: 0 | M21: 0 | N21: 0 | O21: 0.0009 | P21: 3.77 | Q21: 0 | R21: 0 | S21: 0.0678 | T21: 287.2 | U21: 0.0024 | V21: 9.98 | W21: 1.0386 | X21: 4397.05 | Y21: 8630.85
A22: P8034 | B22: Biólogo sênior | C22: mês | D22: 7434.92 | E22: 0.7956 | F22: 5915.22 | G22: 0.0945 | H22: 702.89 | I22: 0.0033 | J22: 24.8 | K22: 0 | L22: 0 | M22: 0 | N22: 0 | O22: 0.0005 | P22: 3.77 | Q22: 0 | R22: 0 | S22: 0.0386 | T22: 287.2 | U22: 0.0013 | V22: 9.98 | W22: 0.934 | X22: 6943.86 | Y22: 14378.78
A23: P8038 | B23: Chefe de escritório | C23: mês | D23: 3370.83 | E23: 0.7957 | F23: 2682.17 | G23: 0.2085 | H23: 702.89 | I23: 0 | J23: 0 | K23: 0 | L23: 0 | M23: 0.005 | N23: 16.78 | O23: 0.0008 | P23: 2.74 | Q23: 0 | R23: 0 | S23: 0.0852 | T23: 287.2 | U23: 0.003 | V23: 9.98 | W23: 1.0982 | X23: 3701.76 | Y23: 7072.59
A24: P8040 | B24: Contador júnior | C24: mês | D24: 4031.96 | E24: 0.7953 | F24: 3206.62 | G24: 0.1743 | H24: 702.89 | I24: 0 | J24: 0 | K24: 0 | L24: 0 | M24: 0 | N24: 0 | O24: 0.0006 | P24: 2.61 | Q24: 0 | R24: 0 | S24: 0.0712 | T24: 287.2 | U24: 0.0025 | V24: 9.98 | W24: 1.044 | X24: 4209.31 | Y24: 8241.27
A25: P8041 | B25: Contador pleno | C25: mês | D25: 5375.95 | E25: 0.7953 | F25: 4275.49 | G25: 0.1307 | H25: 702.89 | I25: 0 | J25: 0 | K25: 0 | L25: 0 | M25: 0 | N25: 0 | O25: 0.0005 | P25: 2.61 | Q25: 0 | R25: 0 | S25: 0.0534 | T25: 287.2 | U25: 0.0019 | V25: 9.98 | W25: 0.9818 | X25: 5278.18 | Y25: 10654.13
A26: P8042 | B26: Contador sênior | C26: mês | D26: 10196.46 | E26: 0.7953 | F26: 8109.24 | G26: 0.0689 | H26: 702.89 | I26: 0 | J26: 0 | K26: 0 | L26: 0 | M26: 0 | N26: 0 | O26: 0.0003 | P26: 2.61 | Q26: 0 | R26: 0 | S26: 0.0282 | T26: 287.2 | U26: 0.001 | V26: 9.98 | W26: 0.8936 | X26: 9111.93 | Y26: 19308.39
A27: P8044 | B27: Coordenador ambiental | C27: mês | D27: 16968.79 | E27: 0.7948 | F27: 13486.79 | G27: 0.0414 | H27: 702.89 | I27: 0.0013 | J27: 22.65 | K27: 0 | L27: 0 | M27: 0 | N27: 0 | O27: 0.0002 | P27: 3.32 | Q27: 0 | R27: 0 | S27: 0.0169 | T27: 287.2 | U27: 0.0006 | V27: 9.98 | W27: 0.8553 | X27: 14512.83 | Y27: 31481.62
A28: P8045 | B28: Economista júnior | C28: mês | D28: 4633.61 | E28: 0.79 | F28: 3660.55 | G28: 0.1517 | H28: 702.89 | I28: 0 | J28: 0 | K28: 0 | L28: 0 | M28: 0 | N28: 0 | O28: 0.0004 | P28: 1.78 | Q28: 0 | R28: 0 | S28: 0.062 | T28: 287.2 | U28: 0.0022 | V28: 9.98 | W28: 1.0062 | X28: 4662.4 | Y28: 9296
A29: P8046 | B29: Economista pleno | C29: mês | D29: 6178.14 | E29: 0.79 | F29: 4880.73 | G29: 0.1138 | H29: 702.89 | I29: 0 | J29: 0 | K29: 0 | L29: 0 | M29: 0 | N29: 0 | O29: 0.0003 | P29: 1.78 | Q29: 0 | R29: 0 | S29: 0.0465 | T29: 287.2 | U29: 0.0016 | V29: 9.98 | W29: 0.9522 | X29: 5882.58 | Y29: 12060.72
A30: P8047 | B30: Economista sênior | C30: mês | D30: 10535.44 | E30: 0.79 | F30: 8323 | G30: 0.0667 | H30: 702.89 | I30: 0 | J30: 0 | K30: 0 | L30: 0 | M30: 0 | N30: 0 | O30: 0.0002 | P30: 1.78 | Q30: 0 | R30: 0 | S30: 0.0273 | T30: 287.2 | U30: 0.0009 | V30: 9.98 | W30: 0.8851 | X30: 9324.84 | Y30: 19860.28
A31: P8054 | B31: Engenheiro agrônomo júnior | C31: mês | D31: 11220 | E31: 0.7905 | F31: 8869.41 | G31: 0.0626 | H31: 702.89 | I31: 0.0022 | J31: 24.8 | K31: 0 | L31: 0 | M31: 0 | N31: 0 | O31: 0.0002 | P31: 2.64 | Q31: 0 | R31: 0 | S31: 0.0256 | T31: 287.2 | U31: 0.0009 | V31: 9.98 | W31: 0.8821 | X31: 9896.93 | Y31: 21116.93
A32: P8055 | B32: Engenheiro agrônomo pleno | C32: mês | D32: 11530.62 | E32: 0.7905 | F32: 9114.95 | G32: 0.061 | H32: 702.89 | I32: 0.0022 | J32: 24.8 | K32: 0 | L32: 0 | M32: 0 | N32: 0 | O32: 0.0002 | P32: 2.64 | Q32: 0 | R32: 0 | S32: 0.0249 | T32: 287.2 | U32: 0.0009 | V32: 9.98 | W32: 0.8796 | X32: 10142.47 | Y32: 21673.09
A33: P8056 | B33: Engenheiro agrônomo sênior | C33: mês | D33: 13314.45 | E33: 0.7905 | F33: 10525.07 | G33: 0.0528 | H33: 702.89 | I33: 0.0019 | J33: 24.8 | K33: 0 | L33: 0 | M33: 0 | N33: 0 | O33: 0.0002 | P33: 2.64 | Q33: 0 | R33: 0 | S33: 0.0216 | T33: 287.2 | U33: 0.0007 | V33: 9.98 | W33: 0.8677 | X33: 11552.59 | Y33: 24867.03
A34: P8057 | B34: Engenheiro ambiental júnior | C34: mês | D34: 11220 | E34: 0.7958 | F34: 8928.88 | G34: 0.0626 | H34: 702.89 | I34: 0.0022 | J34: 24.8 | K34: 0 | L34: 0 | M34: 0 | N34: 0 | O34: 0.0003 | P34: 3.6 | Q34: 0 | R34: 0 | S34: 0.0256 | T34: 287.2 | U34: 0.0009 | V34: 9.98 | W34: 0.8875 | X34: 9957.34 | Y34: 21177.34
A35: P8058 | B35: Engenheiro ambiental pleno | C35: mês | D35: 11266.87 | E35: 0.7958 | F35: 8966.17 | G35: 0.0624 | H35: 702.89 | I35: 0.0022 | J35: 24.8 | K35: 0 | L35: 0 | M35: 0 | N35: 0 | O35: 0.0003 | P35: 3.6 | Q35: 0 | R35: 0 | S35: 0.0255 | T35: 287.2 | U35: 0.0009 | V35: 9.98 | W35: 0.8871 | X35: 9994.64 | Y35: 21261.51
A36: P8059 | B36: Engenheiro ambiental sênior | C36: mês | D36: 13578.83 | E36: 0.7958 | F36: 10806.03 | G36: 0.0518 | H36: 702.89 | I36: 0.0018 | J36: 24.8 | K36: 0 | L36: 0 | M36: 0 | N36: 0 | O36: 0.0003 | P36: 3.6 | Q36: 0 | R36: 0 | S36: 0.0212 | T36: 287.2 | U36: 0.0007 | V36: 9.98 | W36: 0.8715 | X36: 11834.5 | Y36: 25413.33
A37: P8060 | B37: Engenheiro consultor especial | C37: mês | D37: 20551.86 | E37: 0.7945 | F37: 16328.45 | G37: 0.0342 | H37: 702.89 | I37: 0.0011 | J37: 22.65 | K37: 0 | L37: 0 | M37: 0 | N37: 0 | O37: 0.0002 | P37: 3.66 | Q37: 0 | R37: 0 | S37: 0.014 | T37: 287.2 | U37: 0.0005 | V37: 9.98 | W37: 0.8444 | X37: 17354.83 | Y37: 37906.68
A38: P8061 | B38: Engenheiro coordenador | C38: mês | D38: 17126.55 | E38: 0.7945 | F38: 13607.04 | G38: 0.041 | H38: 702.89 | I38: 0.0013 | J38: 22.65 | K38: 0 | L38: 0 | M38: 0 | N38: 0 | O38: 0.0002 | P38: 3.66 | Q38: 0 | R38: 0 | S38: 0.0168 | T38: 287.2 | U38: 0.0006 | V38: 9.98 | W38: 0.8544 | X38: 14633.42 | Y38: 31759.96
A39: P8062 | B39: Engenheiro de pesca júnior | C39: mês | D39: 11220 | E39: 0.8012 | F39: 8989.46 | G39: 0.0626 | H39: 702.89 | I39: 0.0022 | J39: 24.8 | K39: 0 | L39: 0 | M39: 0 | N39: 0 | O39: 0.0004 | P39: 4.63 | Q39: 0 | R39: 0 | S39: 0.0256 | T39: 287.2 | U39: 0.0009 | V39: 9.98 | W39: 0.893 | X39: 10018.97 | Y39: 21238.97
A40: P8063 | B40: Engenheiro de pesca pleno | C40: mês | D40: 11526.37 | E40: 0.8012 | F40: 9234.93 | G40: 0.061 | H40: 702.89 | I40: 0.0022 | J40: 24.8 | K40: 0 | L40: 0 | M40: 0 | N40: 0 | O40: 0.0004 | P40: 4.63 | Q40: 0 | R40: 0 | S40: 0.0249 | T40: 287.2 | U40: 0.0009 | V40: 9.98 | W40: 0.8905 | X40: 10264.43 | Y40: 21790.8
A41: P8064 | B41: Engenheiro de pesca sênior | C41: mês | D41: 13764.58 | E41: 0.8012 | F41: 11028.19 | G41: 0.0511 | H41: 702.89 | I41: 0.0018 | J41: 24.8 | K41: 0 | L41: 0 | M41: 0 | N41: 0 | O41: 0.0003 | P41: 4.63 | Q41: 0 | R41: 0 | S41: 0.0209 | T41: 287.2 | U41: 0.0007 | V41: 9.98 | W41: 0.876 | X41: 12057.69 | Y41: 25822.27
A42: P8065 | B42: Engenheiro de projetos júnior | C42: mês | D42: 11220 | E42: 0.7945 | F42: 8914.29 | G42: 0.0626 | H42: 702.89 | I42: 0.0022 | J42: 24.8 | K42: 0 | L42: 0 | M42: 0 | N42: 0 | O42: 0.0003 | P42: 3.66 | Q42: 0 | R42: 0 | S42: 0.0256 | T42: 287.2 | U42: 0.0009 | V42: 9.98 | W42: 0.8862 | X42: 9942.82 | Y42: 21162.82
A43: P8066 | B43: Engenheiro de projetos pleno | C43: mês | D43: 11669.34 | E43: 0.7945 | F43: 9271.29 | G43: 0.0602 | H43: 702.89 | I43: 0.0021 | J43: 24.8 | K43: 0 | L43: 0 | M43: 0 | N43: 0 | O43: 0.0003 | P43: 3.66 | Q43: 0 | R43: 0 | S43: 0.0246 | T43: 287.2 | U43: 0.0009 | V43: 9.98 | W43: 0.8826 | X43: 10299.82 | Y43: 21969.16
A44: P8067 | B44: Engenheiro de projetos sênior | C44: mês | D44: 14809.88 | E44: 0.7945 | F44: 11766.45 | G44: 0.0475 | H44: 702.89 | I44: 0.0017 | J44: 24.8 | K44: 0 | L44: 0 | M44: 0 | N44: 0 | O44: 0.0002 | P44: 3.66 | Q44: 0 | R44: 0 | S44: 0.0194 | T44: 287.2 | U44: 0.0007 | V44: 9.98 | W44: 0.8639 | X44: 12794.98 | Y44: 27604.86
A45: P8068 | B45: Engenheiro florestal júnior | C45: mês | D45: 11220 | E45: 0.8012 | F45: 8989.46 | G45: 0.0626 | H45: 702.89 | I45: 0.0022 | J45: 24.8 | K45: 0 | L45: 0 | M45: 0 | N45: 0 | O45: 0.0004 | P45: 4.63 | Q45: 0 | R45: 0 | S45: 0.0256 | T45: 287.2 | U45: 0.0009 | V45: 9.98 | W45: 0.893 | X45: 10018.97 | Y45: 21238.97
A46: P8069 | B46: Engenheiro florestal pleno | C46: mês | D46: 11526.37 | E46: 0.8012 | F46: 9234.93 | G46: 0.061 | H46: 702.89 | I46: 0.0022 | J46: 24.8 | K46: 0 | L46: 0 | M46: 0 | N46: 0 | O46: 0.0004 | P46: 4.63 | Q46: 0 | R46: 0 | S46: 0.0249 | T46: 287.2 | U46: 0.0009 | V46: 9.98 | W46: 0.8905 | X46: 10264.43 | Y46: 21790.8
A47: P8070 | B47: Engenheiro florestal sênior | C47: mês | D47: 13764.58 | E47: 0.8012 | F47: 11028.19 | G47: 0.0511 | H47: 702.89 | I47: 0.0018 | J47: 24.8 | K47: 0 | L47: 0 | M47: 0 | N47: 0 | O47: 0.0003 | P47: 4.63 | Q47: 0 | R47: 0 | S47: 0.0209 | T47: 287.2 | U47: 0.0007 | V47: 9.98 | W47: 0.876 | X47: 12057.69 | Y47: 25822.27
A48: P8080 | B48: Geólogo júnior | C48: mês | D48: 10004.5 | E48: 0.7985 | F48: 7988.59 | G48: 0.0703 | H48: 702.89 | I48: 0.0025 | J48: 24.8 | K48: 0 | L48: 0 | M48: 0 | N48: 0 | O48: 0.0004 | P48: 3.91 | Q48: 0 | R48: 0 | S48: 0.0287 | T48: 287.2 | U48: 0.001 | V48: 9.98 | W48: 0.9013 | X48: 9017.38 | Y48: 19021.88
A49: P8081 | B49: Geólogo pleno | C49: mês | D49: 11482.37 | E49: 0.7985 | F49: 9168.67 | G49: 0.0612 | H49: 702.89 | I49: 0.0022 | J49: 24.8 | K49: 0 | L49: 0 | M49: 0 | N49: 0 | O49: 0.0003 | P49: 3.91 | Q49: 0 | R49: 0 | S49: 0.025 | T49: 287.2 | U49: 0.0009 | V49: 9.98 | W49: 0.8881 | X49: 10197.46 | Y49: 21679.83
A50: P8082 | B50: Geólogo sênior | C50: mês | D50: 13792.18 | E50: 0.7985 | F50: 11013.06 | G50: 0.051 | H50: 702.89 | I50: 0.0018 | J50: 24.8 | K50: 0 | L50: 0 | M50: 0 | N50: 0 | O50: 0.0003 | P50: 3.91 | Q50: 0 | R50: 0 | S50: 0.0208 | T50: 287.2 | U50: 0.0007 | V50: 9.98 | W50: 0.8731 | X50: 12041.84 | Y50: 25834.02
A51: P8092 | B51: Jornalista júnior | C51: mês | D51: 2779.77 | E51: 0.7961 | F51: 2212.97 | G51: 0.2529 | H51: 702.89 | I51: 0.0089 | J51: 24.8 | K51: 0 | L51: 0 | M51: 0.0188 | N51: 52.25 | O51: 0.001 | P51: 2.92 | Q51: 0 | R51: 0 | S51: 0.1033 | T51: 287.2 | U51: 0.0036 | V51: 9.98 | W51: 1.1846 | X51: 3293 | Y51: 6072.77
A52: P8093 | B52: Jornalista pleno | C52: mês | D52: 3706.35 | E52: 0.7961 | F52: 2950.63 | G52: 0.1896 | H52: 702.89 | I52: 0.0067 | J52: 24.8 | K52: 0 | L52: 0 | M52: 0 | N52: 0 | O52: 0.0008 | P52: 2.92 | Q52: 0 | R52: 0 | S52: 0.0775 | T52: 287.2 | U52: 0.0027 | V52: 9.98 | W52: 1.0734 | X52: 3978.42 | Y52: 7684.77
A53: P8094 | B53: Jornalista sênior | C53: mês | D53: 7205.54 | E53: 0.7961 | F53: 5736.33 | G53: 0.0975 | H53: 702.89 | I53: 0.0034 | J53: 24.8 | K53: 0 | L53: 0 | M53: 0 | N53: 0 | O53: 0.0004 | P53: 2.92 | Q53: 0 | R53: 0 | S53: 0.0399 | T53: 287.2 | U53: 0.0014 | V53: 9.98 | W53: 0.9387 | X53: 6764.12 | Y53: 13969.66
A54: P8098 | B54: Laboratorista | C54: mês | D54: 2157.71 | E54: 0.8008 | F54: 1727.89 | G54: 0.3258 | H54: 702.89 | I54: 0.0129 | J54: 27.8 | K54: 0 | L54: 0 | M54: 0.0415 | N54: 89.57 | O54: 0.002 | P54: 4.31 | Q54: 0 | R54: 0 | S54: 0.1331 | T54: 287.2 | U54: 0.0046 | V54: 9.98 | W54: 1.3207 | X54: 2849.65 | Y54: 5007.36
A55: P8102 | B55: Médico veterinário | C55: mês | D55: 11220 | E55: 0.7922 | F55: 8888.48 | G55: 0.0626 | H55: 702.89 | I55: 0.0022 | J55: 24.8 | K55: 0 | L55: 0 | M55: 0 | N55: 0 | O55: 0.0003 | P55: 3.08 | Q55: 0 | R55: 0 | S55: 0.0256 | T55: 287.2 | U55: 0.0009 | V55: 9.98 | W55: 0.8838 | X55: 9916.43 | Y55: 21136.43
A56: P8106 | B56: Meteorologista júnior | C56: mês | D56: 4941.05 | E56: 0.7932 | F56: 3919.24 | G56: 0.1423 | H56: 702.89 | I56: 0.005 | J56: 24.8 | K56: 0 | L56: 0 | M56: 0 | N56: 0 | O56: 0.0004 | P56: 2.18 | Q56: 0 | R56: 0 | S56: 0.0581 | T56: 287.2 | U56: 0.002 | V56: 9.98 | W56: 1.0011 | X56: 4946.29 | Y56: 9887.34
A57: P8107 | B57: Meteorologista pleno | C57: mês | D57: 6588.06 | E57: 0.7932 | F57: 5225.65 | G57: 0.1067 | H57: 702.89 | I57: 0.0038 | J57: 24.8 | K57: 0 | L57: 0 | M57: 0 | N57: 0 | O57: 0.0003 | P57: 2.18 | Q57: 0 | R57: 0 | S57: 0.0436 | T57: 287.2 | U57: 0.0015 | V57: 9.98 | W57: 0.9491 | X57: 6252.7 | Y57: 12840.76
A58: P8108 | B58: Meteorologista sênior | C58: mês | D58: 11069.44 | E58: 0.7932 | F58: 8780.28 | G58: 0.0635 | H58: 702.89 | I58: 0.0022 | J58: 24.8 | K58: 0 | L58: 0 | M58: 0 | N58: 0 | O58: 0.0002 | P58: 2.18 | Q58: 0 | R58: 0 | S58: 0.0259 | T58: 287.2 | U58: 0.0009 | V58: 9.98 | W58: 0.886 | X58: 9807.33 | Y58: 20876.78
A59: P8112 | B59: Motorista de caminhão | C59: mês | D59: 2154.65 | E59: 0.8021 | F59: 1728.24 | G59: 0.3262 | H59: 702.89 | I59: 0.014 | J59: 30.19 | K59: 0 | L59: 0 | M59: 0.0417 | N59: 89.75 | O59: 0.0022 | P59: 4.63 | Q59: 0 | R59: 0 | S59: 0.1333 | T59: 287.2 | U59: 0.0046 | V59: 9.98 | W59: 1.3241 | X59: 2852.89 | Y59: 5007.54
A60: P8113 | B60: Motorista de veículo leve | C60: mês | D60: 1953.12 | E60: 0.7992 | F60: 1560.93 | G60: 0.3599 | H60: 702.89 | I60: 0.0155 | J60: 30.19 | K60: 0 | L60: 0 | M60: 0.0521 | N60: 101.84 | O60: 0.0022 | P60: 4.35 | Q60: 0 | R60: 0 | S60: 0.147 | T60: 287.2 | U60: 0.0051 | V60: 9.98 | W60: 1.3811 | X60: 2697.39 | Y60: 4650.51
A61: P8117 | B61: Oceanógrafo júnior | C61: mês | D61: 4548.81 | E61: 0.8002 | F61: 3639.95 | G61: 0.1545 | H61: 702.89 | I61: 0.0055 | J61: 24.8 | K61: 0 | L61: 0 | M61: 0 | N61: 0 | O61: 0.0008 | P61: 3.5 | Q61: 0 | R61: 0 | S61: 0.0631 | T61: 287.2 | U61: 0.0022 | V61: 9.98 | W61: 1.0263 | X61: 4668.32 | Y61: 9217.13
A62: P8118 | B62: Oceanógrafo pleno | C62: mês | D62: 6065.08 | E62: 0.8002 | F62: 4853.27 | G62: 0.1159 | H62: 702.89 | I62: 0.0041 | J62: 24.8 | K62: 0 | L62: 0 | M62: 0 | N62: 0 | O62: 0.0006 | P62: 3.5 | Q62: 0 | R62: 0 | S62: 0.0474 | T62: 287.2 | U62: 0.0016 | V62: 9.98 | W62: 0.9698 | X62: 5881.64 | Y62: 11946.72
A63: P8119 | B63: Oceanógrafo sênior | C63: mês | D63: 10920.23 | E63: 0.8002 | F63: 8738.37 | G63: 0.0644 | H63: 702.89 | I63: 0.0023 | J63: 24.8 | K63: 0 | L63: 0 | M63: 0 | N63: 0 | O63: 0.0003 | P63: 3.5 | Q63: 0 | R63: 0 | S63: 0.0263 | T63: 287.2 | U63: 0.0009 | V63: 9.98 | W63: 0.8944 | X63: 9766.74 | Y63: 20686.96
A64: P8129 | B64: Pedagogo júnior | C64: mês | D64: 2395.68 | E64: 0.8095 | F64: 1939.31 | G64: 0.2934 | H64: 702.89 | I64: 0.0104 | J64: 24.8 | K64: 0 | L64: 0 | M64: 0.0314 | N64: 75.29 | O64: 0.0033 | P64: 7.79 | Q64: 0 | R64: 0 | S64: 0.1199 | T64: 287.2 | U64: 0.0042 | V64: 9.98 | W64: 1.272 | X64: 3047.26 | Y64: 5442.94
A65: P8130 | B65: Pedagogo pleno | C65: mês | D65: 3194.25 | E65: 0.8095 | F65: 2585.74 | G65: 0.22 | H65: 702.89 | I65: 0.0078 | J65: 24.8 | K65: 0 | L65: 0 | M65: 0.0086 | N65: 27.38 | O65: 0.0024 | P65: 7.79 | Q65: 0 | R65: 0 | S65: 0.0899 | T65: 287.2 | U65: 0.0031 | V65: 9.98 | W65: 1.1414 | X65: 3645.78 | Y65: 6840.03
A66: P8131 | B66: Pedagogo sênior | C66: mês | D66: 4952.66 | E66: 0.8095 | F66: 4009.18 | G66: 0.1419 | H66: 702.89 | I66: 0.005 | J66: 24.8 | K66: 0 | L66: 0 | M66: 0 | N66: 0 | O66: 0.0016 | P66: 7.79 | Q66: 0 | R66: 0 | S66: 0.058 | T66: 287.2 | U66: 0.002 | V66: 9.98 | W66: 1.018 | X66: 5041.84 | Y66: 9994.5
A67: P8135 | B67: Secretária | C67: mês | D67: 2434.74 | E67: 0.7988 | F67: 1944.87 | G67: 0.2887 | H67: 702.89 | I67: 0 | J67: 0 | K67: 0 | L67: 0 | M67: 0.03 | N67: 72.95 | O67: 0.0017 | P67: 4.15 | Q67: 0 | R67: 0 | S67: 0.118 | T67: 287.2 | U67: 0.0041 | V67: 9.98 | W67: 1.2412 | X67: 3022.03 | Y67: 5456.77
A68: P8139 | B68: Sondador | C68: mês | D68: 1882.18 | E68: 0.7978 | F68: 1501.6 | G68: 0.3734 | H68: 702.89 | I68: 0.0148 | J68: 27.8 | K68: 0 | L68: 0 | M68: 0.0564 | N68: 106.1 | O68: 0.0019 | P68: 3.57 | Q68: 0 | R68: 0 | S68: 0.1526 | T68: 287.2 | U68: 0.0053 | V68: 9.98 | W68: 1.4022 | X68: 2639.15 | Y68: 4521.33
A69: P8143 | B69: Técnico ambiental | C69: mês | D69: 2719.96 | E69: 0.801 | F69: 2178.69 | G69: 0.2584 | H69: 702.89 | I69: 0.0102 | J69: 27.8 | K69: 0 | L69: 0 | M69: 0.0205 | N69: 55.83 | O69: 0.002 | P69: 5.45 | Q69: 0 | R69: 0 | S69: 0.1056 | T69: 287.2 | U69: 0.0037 | V69: 9.98 | W69: 1.2014 | X69: 3267.85 | Y69: 5987.81
A70: P8147 | B70: Técnico de obras | C70: mês | D70: 3118.31 | E70: 0.7985 | F70: 2489.97 | G70: 0.2254 | H70: 702.89 | I70: 0.0089 | J70: 27.8 | K70: 0 | L70: 0 | M70: 0.0102 | N70: 31.93 | O70: 0.0012 | P70: 3.85 | Q70: 0 | R70: 0 | S70: 0.0921 | T70: 287.2 | U70: 0.0032 | V70: 9.98 | W70: 1.1396 | X70: 3553.62 | Y70: 6671.93
A71: P8151 | B71: Técnico de segurança do trabalho | C71: mês | D71: 4457.84 | E71: 0.8044 | F71: 3585.89 | G71: 0.1577 | H71: 702.89 | I71: 0.0062 | J71: 27.8 | K71: 0 | L71: 0 | M71: 0 | N71: 0 | O71: 0.0011 | P71: 4.87 | Q71: 0 | R71: 0 | S71: 0.0644 | T71: 287.2 | U71: 0.0022 | V71: 9.98 | W71: 1.0361 | X71: 4618.63 | Y71: 9076.47
A72: P8155 | B72: Técnico em geoprocessamento | C72: mês | D72: 2591.14 | E72: 0.7955 | F72: 2061.26 | G72: 0.2713 | H72: 702.89 | I72: 0.0107 | J72: 27.8 | K72: 0 | L72: 0 | M72: 0.0245 | N72: 63.56 | O72: 0.0016 | P72: 4.15 | Q72: 0 | R72: 0 | S72: 0.1108 | T72: 287.2 | U72: 0.0039 | V72: 9.98 | W72: 1.2183 | X72: 3156.85 | Y72: 5747.99
A73: P8159 | B73: Técnico em informática - programador | C73: mês | D73: 4013.75 | E73: 0.7982 | F73: 3203.77 | G73: 0.1751 | H73: 702.89 | I73: 0 | J73: 0 | K73: 0 | L73: 0 | M73: 0 | N73: 0 | O73: 0.0009 | P73: 3.8 | Q73: 0 | R73: 0 | S73: 0.0716 | T73: 287.2 | U73: 0.0025 | V73: 9.98 | W73: 1.0483 | X73: 4207.64 | Y73: 8221.39
A74: P8163 | B74: Topógrafo | C74: mês | D74: 2290.75 | E74: 0.8017 | F74: 1836.49 | G74: 0.3068 | H74: 702.89 | I74: 0.0121 | J74: 27.8 | K74: 0 | L74: 0 | M74: 0.0356 | N74: 81.59 | O74: 0.0021 | P74: 4.7 | Q74: 0 | R74: 0 | S74: 0.1254 | T74: 287.2 | U74: 0.0044 | V74: 9.98 | W74: 1.2881 | X74: 2950.65 | Y74: 5241.4
A75: P8167 | B75: Arquivista júnior | C75: mês | D75: 2182.42 | E75: 0.7984 | F75: 1742.44 | G75: 0.3221 | H75: 702.89 | I75: 0 | J75: 0 | K75: 0 | L75: 0 | M75: 0.0404 | N75: 88.09 | O75: 0.0016 | P75: 3.58 | Q75: 0 | R75: 0 | S75: 0.1316 | T75: 287.2 | U75: 0.0046 | V75: 9.98 | W75: 1.2986 | X75: 2834.19 | Y75: 5016.61
A76: P8168 | B76: Arquivista pleno | C76: mês | D76: 2909.89 | E76: 0.7984 | F76: 2323.26 | G76: 0.2416 | H76: 702.89 | I76: 0 | J76: 0 | K76: 0 | L76: 0 | M76: 0.0153 | N76: 44.44 | O76: 0.0012 | P76: 3.58 | Q76: 0 | R76: 0 | S76: 0.0987 | T76: 287.2 | U76: 0.0034 | V76: 9.98 | W76: 1.1586 | X76: 3371.35 | Y76: 6281.25
A77: P8169 | B77: Arquivista sênior | C77: mês | D77: 4542.09 | E77: 0.7984 | F77: 3626.41 | G77: 0.1548 | H77: 702.89 | I77: 0 | J77: 0 | K77: 0 | L77: 0 | M77: 0 | N77: 0 | O77: 0.0008 | P77: 3.58 | Q77: 0 | R77: 0 | S77: 0.0632 | T77: 287.2 | U77: 0.0022 | V77: 9.98 | W77: 1.0194 | X77: 4630.06 | Y77: 9172.15
A78: P8173 | B78: Administrador júnior | C78: mês | D78: 3166.55 | E78: 0.7972 | F78: 2524.37 | G78: 0.222 | H78: 702.89 | I78: 0 | J78: 0 | K78: 0 | L78: 0 | M78: 0.0092 | N78: 29.04 | O78: 0.0012 | P78: 3.87 | Q78: 0 | R78: 0 | S78: 0.0907 | T78: 287.2 | U78: 0.0032 | V78: 9.98 | W78: 1.1234 | X78: 3557.36 | Y78: 6723.91
A79: P8174 | B79: Administrador pleno | C79: mês | D79: 4222.07 | E79: 0.7972 | F79: 3365.83 | G79: 0.1665 | H79: 702.89 | I79: 0 | J79: 0 | K79: 0 | L79: 0 | M79: 0 | N79: 0 | O79: 0.0009 | P79: 3.87 | Q79: 0 | R79: 0 | S79: 0.068 | T79: 287.2 | U79: 0.0024 | V79: 9.98 | W79: 1.035 | X79: 4369.78 | Y79: 8591.84
A80: P8175 | B80: Administrador sênior | C80: mês | D80: 7442.19 | E80: 0.7972 | F80: 5932.92 | G80: 0.0944 | H80: 702.89 | I80: 0 | J80: 0 | K80: 0 | L80: 0 | M80: 0 | N80: 0 | O80: 0.0005 | P80: 3.87 | Q80: 0 | R80: 0 | S80: 0.0386 | T80: 287.2 | U80: 0.0013 | V80: 9.98 | W80: 0.9321 | X80: 6936.86 | Y80: 14379.06
A81: P8180 | B81: Engenheiro agrimensor júnior | C81: mês | D81: 11220 | E81: 0.7943 | F81: 8912.05 | G81: 0.0626 | H81: 702.89 | I81: 0.0022 | J81: 24.8 | K81: 0 | L81: 0 | M81: 0 | N81: 0 | O81: 0.0003 | P81: 3.87 | Q81: 0 | R81: 0 | S81: 0.0256 | T81: 287.2 | U81: 0.0009 | V81: 9.98 | W81: 0.886 | X81: 9940.79 | Y81: 21160.79
A82: P8181 | B82: Engenheiro agrimensor pleno | C82: mês | D82: 11491.01 | E82: 0.7943 | F82: 9127.31 | G82: 0.0612 | H82: 702.89 | I82: 0.0022 | J82: 24.8 | K82: 0 | L82: 0 | M82: 0 | N82: 0 | O82: 0.0003 | P82: 3.87 | Q82: 0 | R82: 0 | S82: 0.025 | T82: 287.2 | U82: 0.0009 | V82: 9.98 | W82: 0.8838 | X82: 10156.06 | Y82: 21647.07
A83: P8182 | B83: Engenheiro agrimensor sênior | C83: mês | D83: 12631.91 | E83: 0.7943 | F83: 10033.52 | G83: 0.0556 | H83: 702.89 | I83: 0.002 | J83: 24.8 | K83: 0 | L83: 0 | M83: 0 | N83: 0 | O83: 0.0003 | P83: 3.87 | Q83: 0 | R83: 0 | S83: 0.0227 | T83: 287.2 | U83: 0.0008 | V83: 9.98 | W83: 0.8757 | X83: 11062.27 | Y83: 23694.17
A84: P8183 | B84: Geógrafo júnior | C84: mês | D84: 3416.59 | E84: 0.7942 | F84: 2713.45 | G84: 0.2057 | H84: 702.89 | I84: 0.0073 | J84: 24.8 | K84: 0 | L84: 0 | M84: 0.0041 | N84: 14.04 | O84: 0.0008 | P84: 2.73 | Q84: 0 | R84: 0 | S84: 0.0841 | T84: 287.2 | U84: 0.0029 | V84: 9.98 | W84: 1.0991 | X84: 3755.09 | Y84: 7171.68
A85: P8184 | B85: Geógrafo pleno | C85: mês | D85: 4555.45 | E85: 0.7942 | F85: 3617.94 | G85: 0.1543 | H85: 702.89 | I85: 0.0054 | J85: 24.8 | K85: 0 | L85: 0 | M85: 0 | N85: 0 | O85: 0.0006 | P85: 2.73 | Q85: 0 | R85: 0 | S85: 0.063 | T85: 287.2 | U85: 0.0022 | V85: 9.98 | W85: 1.0198 | X85: 4645.54 | Y85: 9200.99
A86: P8185 | B86: Geógrafo sênior | C86: mês | D86: 8786.76 | E86: 0.7942 | F86: 6978.44 | G86: 0.08 | H86: 702.89 | I86: 0.0028 | J86: 24.8 | K86: 0 | L86: 0 | M86: 0 | N86: 0 | O86: 0.0003 | P86: 2.73 | Q86: 0 | R86: 0 | S86: 0.0327 | T86: 287.2 | U86: 0.0011 | V86: 9.98 | W86: 0.9111 | X86: 8006.04 | Y86: 16792.8
A87: P8186 | B87: Antropólogo júnior | C87: mês | D87: 3129 | E87: 0.82 | F87: 2565.78 | G87: 0.2246 | H87: 702.89 | I87: 0.0079 | J87: 24.8 | K87: 0 | L87: 0 | M87: 0.01 | N87: 31.29 | O87: 0.0018 | P87: 5.5 | Q87: 0 | R87: 0 | S87: 0.0918 | T87: 287.2 | U87: 0.0032 | V87: 9.98 | W87: 1.1593 | X87: 3627.44 | Y87: 6756.44
A88: P8187 | B88: Antropólogo pleno | C88: mês | D88: 4172 | E88: 0.82 | F88: 3421.04 | G88: 0.1685 | H88: 702.89 | I88: 0.0059 | J88: 24.8 | K88: 0 | L88: 0 | M88: 0 | N88: 0 | O88: 0.0013 | P88: 5.5 | Q88: 0 | R88: 0 | S88: 0.0688 | T88: 287.2 | U88: 0.0024 | V88: 9.98 | W88: 1.067 | X88: 4451.41 | Y88: 8623.41
A89: P8188 | B89: Antropólogo sênior | C89: mês | D89: 6159.78 | E89: 0.82 | F89: 5051.02 | G89: 0.1141 | H89: 702.89 | I89: 0.004 | J89: 24.8 | K89: 0 | L89: 0 | M89: 0 | N89: 0 | O89: 0.0009 | P89: 5.5 | Q89: 0 | R89: 0 | S89: 0.0466 | T89: 287.2 | U89: 0.0016 | V89: 9.98 | W89: 0.9873 | X89: 6081.39 | Y89: 12241.17
A90: P8189 | B90: Arqueólogo júnior | C90: mês | D90: 2980.05 | E90: 0.8051 | F90: 2399.24 | G90: 0.2359 | H90: 702.89 | I90: 0.0083 | J90: 24.8 | K90: 0 | L90: 0 | M90: 0.0135 | N90: 40.23 | O90: 0.0013 | P90: 3.74 | Q90: 0 | R90: 0 | S90: 0.0964 | T90: 287.2 | U90: 0.0033 | V90: 9.98 | W90: 1.1638 | X90: 3468.08 | Y90: 6448.13
A91: P8190 | B91: Arqueólogo pleno | C91: mês | D91: 3973.4 | E91: 0.8051 | F91: 3198.98 | G91: 0.1769 | H91: 702.89 | I91: 0.0062 | J91: 24.8 | K91: 0 | L91: 0 | M91: 0 | N91: 0 | O91: 0.0009 | P91: 3.74 | Q91: 0 | R91: 0 | S91: 0.0723 | T91: 287.2 | U91: 0.0025 | V91: 9.98 | W91: 1.064 | X91: 4227.6 | Y91: 8201
A92: P8191 | B92: Arqueólogo sênior | C92: mês | D92: 5890.45 | E92: 0.8051 | F92: 4742.4 | G92: 0.1193 | H92: 702.89 | I92: 0.0042 | J92: 24.8 | K92: 0 | L92: 0 | M92: 0 | N92: 0 | O92: 0.0006 | P92: 3.74 | Q92: 0 | R92: 0 | S92: 0.0488 | T92: 287.2 | U92: 0.0017 | V92: 9.98 | W92: 0.9797 | X92: 5771.02 | Y92: 11661.48
A93: P8192 | B93: Historiador júnior | C93: mês | D93: 3434.55 | E93: 0.8014 | F93: 2752.45 | G93: 0.2047 | H93: 702.89 | I93: 0.0072 | J93: 24.8 | K93: 0 | L93: 0 | M93: 0.0038 | N93: 12.96 | O93: 0.0013 | P93: 4.54 | Q93: 0 | R93: 0 | S93: 0.0836 | T93: 287.2 | U93: 0.0029 | V93: 9.98 | W93: 1.1049 | X93: 3794.82 | Y93: 7229.37
A94: P8193 | B94: Historiador pleno | C94: mês | D94: 4579.4 | E94: 0.8014 | F94: 3669.93 | G94: 0.1535 | H94: 702.89 | I94: 0.0054 | J94: 24.8 | K94: 0 | L94: 0 | M94: 0 | N94: 0 | O94: 0.001 | P94: 4.54 | Q94: 0 | R94: 0 | S94: 0.0627 | T94: 287.2 | U94: 0.0022 | V94: 9.98 | W94: 1.0262 | X94: 4699.34 | Y94: 9278.74
A95: P8194 | B95: Historiador sênior | C95: mês | D95: 7561.4 | E95: 0.8014 | F95: 6059.71 | G95: 0.093 | H95: 702.89 | I95: 0.0033 | J95: 24.8 | K95: 0 | L95: 0 | M95: 0 | N95: 0 | O95: 0.0006 | P95: 4.54 | Q95: 0 | R95: 0 | S95: 0.038 | T95: 287.2 | U95: 0.0013 | V95: 9.98 | W95: 0.9375 | X95: 7089.12 | Y95: 14650.53
A96: P8195 | B96: Paleontólogo júnior | C96: mês | D96: 3129 | E96: 0.8279 | F96: 2590.5 | G96: 0.2246 | H96: 702.89 | I96: 0.0079 | J96: 24.8 | K96: 0 | L96: 0 | M96: 0.01 | N96: 31.29 | O96: 0.0018 | P96: 5.5 | Q96: 0 | R96: 0 | S96: 0.0918 | T96: 287.2 | U96: 0.0032 | V96: 9.98 | W96: 1.1672 | X96: 3652.16 | Y96: 6781.16
A97: P8196 | B97: Paleontólogo pleno | C97: mês | D97: 4172 | E97: 0.8279 | F97: 3454 | G97: 0.1685 | H97: 702.89 | I97: 0.0059 | J97: 24.8 | K97: 0 | L97: 0 | M97: 0 | N97: 0 | O97: 0.0013 | P97: 5.5 | Q97: 0 | R97: 0 | S97: 0.0688 | T97: 287.2 | U97: 0.0024 | V97: 9.98 | W97: 1.0749 | X97: 4484.37 | Y97: 8656.37
A98: P8197 | B98: Paleontólogo sênior | C98: mês | D98: 6159.78 | E98: 0.8279 | F98: 5099.68 | G98: 0.1141 | H98: 702.89 | I98: 0.004 | J98: 24.8 | K98: 0 | L98: 0 | M98: 0 | N98: 0 | O98: 0.0009 | P98: 5.5 | Q98: 0 | R98: 0 | S98: 0.0466 | T98: 287.2 | U98: 0.0016 | V98: 9.98 | W98: 0.9952 | X98: 6130.05 | Y98: 12289.83
A99: P8198 | B99: Sociólogo júnior | C99: mês | D99: 3607.77 | E99: 0.8014 | F99: 2891.26 | G99: 0.1948 | H99: 702.89 | I99: 0.0069 | J99: 24.8 | K99: 0 | L99: 0 | M99: 0.0007 | N99: 2.57 | O99: 0.0013 | P99: 4.54 | Q99: 0 | R99: 0 | S99: 0.0796 | T99: 287.2 | U99: 0.0028 | V99: 9.98 | W99: 1.0874 | X99: 3923.24 | Y99: 7531.01
A100: P8199 | B100: Sociólogo pleno | C100: mês | D100: 4810.36 | E100: 0.8014 | F100: 3855.02 | G100: 0.1461 | H100: 702.89 | I100: 0.0052 | J100: 24.8 | K100: 0 | L100: 0 | M100: 0 | N100: 0 | O100: 0.0009 | P100: 4.54 | Q100: 0 | R100: 0 | S100: 0.0597 | T100: 287.2 | U100: 0.0021 | V100: 9.98 | W100: 1.0154 | X100: 4884.43 | Y100: 9694.79
A101: P8200 | B101: Sociólogo sênior | C101: mês | D101: 7731.83 | E101: 0.8014 | F101: 6196.29 | G101: 0.0909 | H101: 702.89 | I101: 0.0032 | J101: 24.8 | K101: 0 | L101: 0 | M101: 0 | N101: 0 | O101: 0.0006 | P101: 4.54 | Q101: 0 | R101: 0 | S101: 0.0371 | T101: 287.2 | U101: 0.0013 | V101: 9.98 | W101: 0.9345 | X101: 7225.7 | Y101: 14957.54
A102: Fonte: FGV IBRE

Sheet DNIT TC -072023 (hidden)
A1: Código | B1: Categoria | C1: Unid. | D1: Salário | E1: Encargos Sociais | G1: Encargos Complementares | Q1: Encargos Adicionais | W1: Encargos Totais | Y1: Valor Total
G2: Alimentação | I2: EPI | K2: Ferramenta | M2: Transporte | O2: Exame Ocupacional | Q2: Cesta Básica | S2: Assistência Médica | U2: Seguro de Vida
D3: R$ | E3: % | F3: R$ | G3: % | H3: R$ | I3: % | J3: R$ | K3: % | L3: R$ | M3: % | N3: R$ | O3: % | P3: R$ | Q3: % | R3: R$ | S3: % | T3: R$ | U3: % | V3: R$ | W3: % | X3: R$ | Y3: R$
A4: P8001 | B4: Advogado júnior | C4: mês | D4: 4222.14 | E4: 0.7963 | F4: 3362.09 | G4: 0.1603 | H4: 677.01 | I4: 0.0062 | J4: 26.03 | K4: 0 | L4: 0 | M4: 0 | N4: 0 | O4: 0.0008 | P4: 3.47 | Q4: 0 | R4: 0 | S4: 0.0714 | T4: 301.42 | U4: 0.0024 | V4: 9.98 | W4: 1.0374 | X4: 4379.99 | Y4: 8602.13
A5: P8002 | B5: Advogado pleno | C5: mês | D5: 5629.52 | E5: 0.7963 | F5: 4482.78 | G5: 0.1203 | H5: 677.01 | I5: 0.0046 | J5: 26.03 | K5: 0 | L5: 0 | M5: 0 | N5: 0 | O5: 0.0006 | P5: 3.47 | Q5: 0 | R5: 0 | S5: 0.0535 | T5: 301.42 | U5: 0.0018 | V5: 9.98 | W5: 0.9771 | X5: 5500.69 | Y5: 11130.21
A6: P8003 | B6: Advogado sênior | C6: mês | D6: 9740.87 | E6: 0.7963 | F6: 7756.65 | G6: 0.0695 | H6: 677.01 | I6: 0.0027 | J6: 26.03 | K6: 0 | L6: 0 | M6: 0 | N6: 0 | O6: 0.0004 | P6: 3.47 | Q6: 0 | R6: 0 | S6: 0.0309 | T6: 301.42 | U6: 0.001 | V6: 9.98 | W6: 0.9008 | X6: 8774.56 | Y6: 18515.43
A7: P8007 | B7: Analista de desenvolvimento de sistemas júnior | C7: mês | D7: 3731.91 | E7: 0.7938 | F7: 2962.39 | G7: 0.1814 | H7: 677.01 | I7: 0 | J7: 0 | K7: 0 | L7: 0 | M7: 0 | N7: 0 | O7: 0.0009 | P7: 3.29 | Q7: 0 | R7: 0 | S7: 0.0808 | T7: 301.42 | U7: 0.0027 | V7: 9.98 | W7: 1.0595 | X7: 3954.09 | Y7: 7686
A8: P8008 | B8: Analista de desenvolvimento de sistemas pleno | C8: mês | D8: 4975.88 | E8: 0.7938 | F8: 3949.85 | G8: 0.1361 | H8: 677.01 | I8: 0 | J8: 0 | K8: 0 | L8: 0 | M8: 0 | N8: 0 | O8: 0.0007 | P8: 3.29 | Q8: 0 | R8: 0 | S8: 0.0606 | T8: 301.42 | U8: 0.002 | V8: 9.98 | W8: 0.9931 | X8: 4941.55 | Y8: 9917.43
A9: P8009 | B9: Analista de desenvolvimento de sistemas sênior | C9: mês | D9: 8853.75 | E9: 0.7938 | F9: 7028.1 | G9: 0.0765 | H9: 677.01 | I9: 0 | J9: 0 | K9: 0 | L9: 0 | M9: 0 | N9: 0 | O9: 0.0004 | P9: 3.29 | Q9: 0 | R9: 0 | S9: 0.034 | T9: 301.42 | U9: 0.0011 | V9: 9.98 | W9: 0.9058 | X9: 8019.8 | Y9: 16873.55
A10: P8013 | B10: Arquiteto júnior | C10: mês | D10: 11067 | E10: 0.7924 | F10: 8769.49 | G10: 0.0612 | H10: 677.01 | I10: 0.0024 | J10: 26.03 | K10: 0 | L10: 0 | M10: 0 | N10: 0 | O10: 0.0002 | P10: 2.6 | Q10: 0 | R10: 0 | S10: 0.0272 | T10: 301.42 | U10: 0.0009 | V10: 9.98 | W10: 0.8843 | X10: 9786.52 | Y10: 20853.52
A11: P8014 | B11: Arquiteto pleno | C11: mês | D11: 11492.2 | E11: 0.7924 | F11: 9106.42 | G11: 0.0589 | H11: 677.01 | I11: 0.0023 | J11: 26.03 | K11: 0 | L11: 0 | M11: 0 | N11: 0 | O11: 0.0002 | P11: 2.6 | Q11: 0 | R11: 0 | S11: 0.0262 | T11: 301.42 | U11: 0.0009 | V11: 9.98 | W11: 0.8809 | X11: 10123.45 | Y11: 21615.65
A12: P8015 | B12: Arquiteto sênior | C12: mês | D12: 14185.72 | E12: 0.7924 | F12: 11240.77 | G12: 0.0477 | H12: 677.01 | I12: 0.0018 | J12: 26.03 | K12: 0 | L12: 0 | M12: 0 | N12: 0 | O12: 0.0002 | P12: 2.6 | Q12: 0 | R12: 0 | S12: 0.0212 | T12: 301.42 | U12: 0.0007 | V12: 9.98 | W12: 0.8641 | X12: 12257.8 | Y12: 26443.52
A13: P8019 | B13: Assistente social júnior | C13: mês | D13: 2867.66 | E13: 0.7997 | F13: 2293.27 | G13: 0.2361 | H13: 677.01 | I13: 0.0091 | J13: 26.03 | K13: 0 | L13: 0 | M13: 0.0164 | N13: 46.97 | O13: 0.0013 | P13: 3.82 | Q13: 0 | R13: 0 | S13: 0.1051 | T13: 301.42 | U13: 0.0035 | V13: 9.98 | W13: 1.1712 | X13: 3358.5 | Y13: 6226.16
A14: P8020 | B14: Assistente social pleno | C14: mês | D14: 3823.55 | E14: 0.7997 | F14: 3057.69 | G14: 0.1771 | H14: 677.01 | I14: 0.0068 | J14: 26.03 | K14: 0 | L14: 0 | M14: 0 | N14: 0 | O14: 0.001 | P14: 3.82 | Q14: 0 | R14: 0 | S14: 0.0788 | T14: 301.42 | U14: 0.0026 | V14: 9.98 | W14: 1.066 | X14: 4075.95 | Y14: 7899.5
A15: P8021 | B15: Assistente social sênior | C15: mês | D15: 6517.04 | E15: 0.7997 | F15: 5211.68 | G15: 0.1039 | H15: 677.01 | I15: 0.004 | J15: 26.03 | K15: 0 | L15: 0 | M15: 0 | N15: 0 | O15: 0.0006 | P15: 3.82 | Q15: 0 | R15: 0 | S15: 0.0463 | T15: 301.42 | U15: 0.0015 | V15: 9.98 | W15: 0.9559 | X15: 6229.93 | Y15: 12746.97
A16: P8025 | B16: Auxiliar | C16: mês | D16: 1428.53 | E16: 0.7998 | F16: 1142.54 | G16: 0.4739 | H16: 677.01 | I16: 0.0222 | J16: 31.69 | K16: 0.0011 | L16: 1.62 | M16: 0.0933 | N16: 133.32 | O16: 0.0025 | P16: 3.57 | Q16: 0 | R16: 0 | S16: 0.211 | T16: 301.42 | U16: 0.007 | V16: 9.98 | W16: 1.6109 | X16: 2301.15 | Y16: 3729.68
A17: P8026 | B17: Auxiliar administrativo | C17: mês | D17: 1708.51 | E17: 0.8011 | F17: 1368.69 | G17: 0.3963 | H17: 677.01 | I17: 0 | J17: 0 | K17: 0 | L17: 0 | M17: 0.0682 | N17: 116.52 | O17: 0.0025 | P17: 4.28 | Q17: 0 | R17: 0 | S17: 0.1764 | T17: 301.42 | U17: 0.0058 | V17: 9.98 | W17: 1.4503 | X17: 2477.89 | Y17: 4186.4
A18: P8027 | B18: Auxiliar de laboratório | C18: mês | D18: 1609.67 | E18: 0.7988 | F18: 1285.81 | G18: 0.4206 | H18: 677.01 | I18: 0.0197 | J18: 31.69 | K18: 0.0021 | L18: 3.35 | M18: 0.0761 | N18: 122.45 | O18: 0.0027 | P18: 4.37 | Q18: 0 | R18: 0 | S18: 0.1873 | T18: 301.42 | U18: 0.0062 | V18: 9.98 | W18: 1.5134 | X18: 2436.08 | Y18: 4045.75
A19: P8028 | B19: Auxiliar de topografia | C19: mês | D19: 1428.53 | E19: 0.7994 | F19: 1141.97 | G19: 0.4739 | H19: 677.01 | I19: 0.0222 | J19: 31.69 | K19: 0.001 | L19: 1.41 | M19: 0.0933 | N19: 133.32 | O19: 0.0031 | P19: 4.48 | Q19: 0 | R19: 0 | S19: 0.211 | T19: 301.42 | U19: 0.007 | V19: 9.98 | W19: 1.6109 | X19: 2301.27 | Y19: 3729.8
A20: P8032 | B20: Biólogo júnior | C20: mês | D20: 3084.04 | E20: 0.7948 | F20: 2451.2 | G20: 0.2195 | H20: 677.01 | I20: 0.0084 | J20: 26.03 | K20: 0 | L20: 0 | M20: 0.011 | N20: 33.99 | O20: 0.0011 | P20: 3.31 | Q20: 0 | R20: 0 | S20: 0.0977 | T20: 301.42 | U20: 0.0032 | V20: 9.98 | W20: 1.1358 | X20: 3502.93 | Y20: 6586.97
A21: P8033 | B21: Biólogo pleno | C21: mês | D21: 4112.06 | E21: 0.7948 | F21: 3268.26 | G21: 0.1646 | H21: 677.01 | I21: 0.0063 | J21: 26.03 | K21: 0 | L21: 0 | M21: 0 | N21: 0 | O21: 0.0008 | P21: 3.31 | Q21: 0 | R21: 0 | S21: 0.0733 | T21: 301.42 | U21: 0.0024 | V21: 9.98 | W21: 1.0423 | X21: 4286.01 | Y21: 8398.06
A22: P8034 | B22: Biólogo sênior | C22: mês | D22: 7148.83 | E22: 0.7948 | F22: 5681.89 | G22: 0.0947 | H22: 677.01 | I22: 0.0036 | J22: 26.03 | K22: 0 | L22: 0 | M22: 0 | N22: 0 | O22: 0.0005 | P22: 3.31 | Q22: 0 | R22: 0 | S22: 0.0422 | T22: 301.42 | U22: 0.0014 | V22: 9.98 | W22: 0.9372 | X22: 6699.64 | Y22: 13848.47
A23: P8038 | B23: Chefe de escritório | C23: mês | D23: 3122.68 | E23: 0.7972 | F23: 2489.4 | G23: 0.2168 | H23: 677.01 | I23: 0 | J23: 0 | K23: 0 | L23: 0 | M23: 0.0101 | N23: 31.67 | O23: 0.001 | P23: 3.05 | Q23: 0 | R23: 0 | S23: 0.0965 | T23: 301.42 | U23: 0.0032 | V23: 9.98 | W23: 1.1248 | X23: 3512.52 | Y23: 6635.2
A24: P8040 | B24: Contador júnior | C24: mês | D24: 3909.36 | E24: 0.7961 | F24: 3112.24 | G24: 0.1732 | H24: 677.01 | I24: 0 | J24: 0 | K24: 0 | L24: 0 | M24: 0 | N24: 0 | O24: 0.0008 | P24: 3.14 | Q24: 0 | R24: 0 | S24: 0.0771 | T24: 301.42 | U24: 0.0026 | V24: 9.98 | W24: 1.0497 | X24: 4103.79 | Y24: 8013.14
A25: P8041 | B25: Contador pleno | C25: mês | D25: 5212.47 | E25: 0.7961 | F25: 4149.65 | G25: 0.1299 | H25: 677.01 | I25: 0 | J25: 0 | K25: 0 | L25: 0 | M25: 0 | N25: 0 | O25: 0.0006 | P25: 3.14 | Q25: 0 | R25: 0 | S25: 0.0578 | T25: 301.42 | U25: 0.0019 | V25: 9.98 | W25: 0.9863 | X25: 5141.2 | Y25: 10353.67
A26: P8042 | B26: Contador sênior | C26: mês | D26: 9737.02 | E26: 0.7961 | F26: 7751.64 | G26: 0.0695 | H26: 677.01 | I26: 0 | J26: 0 | K26: 0 | L26: 0 | M26: 0 | N26: 0 | O26: 0.0003 | P26: 3.14 | Q26: 0 | R26: 0 | S26: 0.031 | T26: 301.42 | U26: 0.001 | V26: 9.98 | W26: 0.8979 | X26: 8743.19 | Y26: 18480.22
A27: P8044 | B27: Coordenador ambiental | C27: mês | D27: 15552.43 | E27: 0.7945 | F27: 12356.4 | G27: 0.0435 | H27: 677.01 | I27: 0.0015 | J27: 23.77 | K27: 0 | L27: 0 | M27: 0 | N27: 0 | O27: 0.0002 | P27: 3.38 | Q27: 0 | R27: 0 | S27: 0.0194 | T27: 301.42 | U27: 0.0006 | V27: 9.98 | W27: 0.8598 | X27: 13371.96 | Y27: 28924.39
A28: P8045 | B28: Economista júnior | C28: mês | D28: 4306.55 | E28: 0.7922 | F28: 3411.65 | G28: 0.1572 | H28: 677.01 | I28: 0 | J28: 0 | K28: 0 | L28: 0 | M28: 0 | N28: 0 | O28: 0.0007 | P28: 3.03 | Q28: 0 | R28: 0 | S28: 0.07 | T28: 301.42 | U28: 0.0023 | V28: 9.98 | W28: 1.0224 | X28: 4403.09 | Y28: 8709.64
A29: P8046 | B29: Economista pleno | C29: mês | D29: 5742.07 | E29: 0.7922 | F29: 4548.87 | G29: 0.1179 | H29: 677.01 | I29: 0 | J29: 0 | K29: 0 | L29: 0 | M29: 0 | N29: 0 | O29: 0.0005 | P29: 3.03 | Q29: 0 | R29: 0 | S29: 0.0525 | T29: 301.42 | U29: 0.0017 | V29: 9.98 | W29: 0.9649 | X29: 5540.31 | Y29: 11282.38
A30: P8047 | B30: Economista sênior | C30: mês | D30: 9853.56 | E30: 0.7922 | F30: 7805.99 | G30: 0.0687 | H30: 677.01 | I30: 0 | J30: 0 | K30: 0 | L30: 0 | M30: 0 | N30: 0 | O30: 0.0003 | P30: 3.03 | Q30: 0 | R30: 0 | S30: 0.0306 | T30: 301.42 | U30: 0.001 | V30: 9.98 | W30: 0.8928 | X30: 8797.43 | Y30: 18650.99
A31: P8054 | B31: Engenheiro agrônomo júnior | C31: mês | D31: 11067 | E31: 0.7903 | F31: 8746.25 | G31: 0.0612 | H31: 677.01 | I31: 0.0024 | J31: 26.03 | K31: 0 | L31: 0 | M31: 0 | N31: 0 | O31: 0.0003 | P31: 3.08 | Q31: 0 | R31: 0 | S31: 0.0272 | T31: 301.42 | U31: 0.0009 | V31: 9.98 | W31: 0.8822 | X31: 9763.76 | Y31: 20830.76
A32: P8055 | B32: Engenheiro agrônomo pleno | C32: mês | D32: 12027.17 | E32: 0.7903 | F32: 9505.07 | G32: 0.0563 | H32: 677.01 | I32: 0.0022 | J32: 26.03 | K32: 0 | L32: 0 | M32: 0 | N32: 0 | O32: 0.0003 | P32: 3.08 | Q32: 0 | R32: 0 | S32: 0.0251 | T32: 301.42 | U32: 0.0008 | V32: 9.98 | W32: 0.8749 | X32: 10522.59 | Y32: 22549.76
A33: P8056 | B33: Engenheiro agrônomo sênior | C33: mês | D33: 12987.35 | E33: 0.7903 | F33: 10263.9 | G33: 0.0521 | H33: 677.01 | I33: 0.002 | J33: 26.03 | K33: 0 | L33: 0 | M33: 0 | N33: 0 | O33: 0.0002 | P33: 3.08 | Q33: 0 | R33: 0 | S33: 0.0232 | T33: 301.42 | U33: 0.0008 | V33: 9.98 | W33: 0.8686 | X33: 11281.41 | Y33: 24268.76
A34: P8057 | B34: Engenheiro ambiental júnior | C34: mês | D34: 11067 | E34: 0.7957 | F34: 8806.01 | G34: 0.0612 | H34: 677.01 | I34: 0.0024 | J34: 26.03 | K34: 0 | L34: 0 | M34: 0 | N34: 0 | O34: 0.0003 | P34: 3.45 | Q34: 0 | R34: 0 | S34: 0.0272 | T34: 301.42 | U34: 0.0009 | V34: 9.98 | W34: 0.8877 | X34: 9823.9 | Y34: 20890.9
A35: P8058 | B35: Engenheiro ambiental pleno | C35: mês | D35: 11113.77 | E35: 0.7957 | F35: 8843.23 | G35: 0.0609 | H35: 677.01 | I35: 0.0023 | J35: 26.03 | K35: 0 | L35: 0 | M35: 0 | N35: 0 | O35: 0.0003 | P35: 3.45 | Q35: 0 | R35: 0 | S35: 0.0271 | T35: 301.42 | U35: 0.0009 | V35: 9.98 | W35: 0.8873 | X35: 9861.12 | Y35: 20974.89
A36: P8059 | B36: Engenheiro ambiental sênior | C36: mês | D36: 13306.5 | E36: 0.7957 | F36: 10587.98 | G36: 0.0509 | H36: 677.01 | I36: 0.002 | J36: 26.03 | K36: 0 | L36: 0 | M36: 0 | N36: 0 | O36: 0.0003 | P36: 3.45 | Q36: 0 | R36: 0 | S36: 0.0227 | T36: 301.42 | U36: 0.0008 | V36: 9.98 | W36: 0.8722 | X36: 11605.87 | Y36: 24912.36
A37: P8060 | B37: Engenheiro consultor especial | C37: mês | D37: 20421.76 | E37: 0.7939 | F37: 16212.84 | G37: 0.0332 | H37: 677.01 | I37: 0.0012 | J37: 23.77 | K37: 0 | L37: 0 | M37: 0 | N37: 0 | O37: 0.0002 | P37: 3.32 | Q37: 0 | R37: 0 | S37: 0.0148 | T37: 301.42 | U37: 0.0005 | V37: 9.98 | W37: 0.8436 | X37: 17228.34 | Y37: 37650.1
A38: P8061 | B38: Engenheiro coordenador | C38: mês | D38: 17018.13 | E38: 0.7939 | F38: 13510.7 | G38: 0.0398 | H38: 677.01 | I38: 0.0014 | J38: 23.77 | K38: 0 | L38: 0 | M38: 0 | N38: 0 | O38: 0.0002 | P38: 3.32 | Q38: 0 | R38: 0 | S38: 0.0177 | T38: 301.42 | U38: 0.0006 | V38: 9.98 | W38: 0.8536 | X38: 14526.2 | Y38: 31544.33
A39: P8062 | B39: Engenheiro de pesca júnior | C39: mês | D39: 11067 | E39: 0.7971 | F39: 8821.51 | G39: 0.0612 | H39: 677.01 | I39: 0.0024 | J39: 26.03 | K39: 0 | L39: 0 | M39: 0 | N39: 0 | O39: 0.0004 | P39: 3.89 | Q39: 0 | R39: 0 | S39: 0.0272 | T39: 301.42 | U39: 0.0009 | V39: 9.98 | W39: 0.8891 | X39: 9839.83 | Y39: 20906.83
A40: P8063 | B40: Engenheiro de pesca pleno | C40: mês | D40: 11199.09 | E40: 0.7971 | F40: 8926.8 | G40: 0.0605 | H40: 677.01 | I40: 0.0023 | J40: 26.03 | K40: 0 | L40: 0 | M40: 0 | N40: 0 | O40: 0.0003 | P40: 3.89 | Q40: 0 | R40: 0 | S40: 0.0269 | T40: 301.42 | U40: 0.0009 | V40: 9.98 | W40: 0.888 | X40: 9945.12 | Y40: 21144.22
A41: P8064 | B41: Engenheiro de pesca sênior | C41: mês | D41: 12672.11 | E41: 0.7971 | F41: 10100.94 | G41: 0.0534 | H41: 677.01 | I41: 0.0021 | J41: 26.03 | K41: 0 | L41: 0 | M41: 0 | N41: 0 | O41: 0.0003 | P41: 3.89 | Q41: 0 | R41: 0 | S41: 0.0238 | T41: 301.42 | U41: 0.0008 | V41: 9.98 | W41: 0.8775 | X41: 11119.27 | Y41: 23791.38
A42: P8065 | B42: Engenheiro de projetos júnior | C42: mês | D42: 11067 | E42: 0.7939 | F42: 8786.09 | G42: 0.0612 | H42: 677.01 | I42: 0.0024 | J42: 26.03 | K42: 0 | L42: 0 | M42: 0 | N42: 0 | O42: 0.0003 | P42: 3.32 | Q42: 0 | R42: 0 | S42: 0.0272 | T42: 301.42 | U42: 0.0009 | V42: 9.98 | W42: 0.8859 | X42: 9803.85 | Y42: 20870.85
A43: P8066 | B43: Engenheiro de projetos pleno | C43: mês | D43: 11469.24 | E43: 0.7939 | F43: 9105.43 | G43: 0.059 | H43: 677.01 | I43: 0.0023 | J43: 26.03 | K43: 0 | L43: 0 | M43: 0 | N43: 0 | O43: 0.0003 | P43: 3.32 | Q43: 0 | R43: 0 | S43: 0.0263 | T43: 301.42 | U43: 0.0009 | V43: 9.98 | W43: 0.8826 | X43: 10123.19 | Y43: 21592.42
A44: P8067 | B44: Engenheiro de projetos sênior | C44: mês | D44: 14672.91 | E44: 0.7939 | F44: 11648.82 | G44: 0.0461 | H44: 677.01 | I44: 0.0018 | J44: 26.03 | K44: 0 | L44: 0 | M44: 0 | N44: 0 | O44: 0.0002 | P44: 3.32 | Q44: 0 | R44: 0 | S44: 0.0205 | T44: 301.42 | U44: 0.0007 | V44: 9.98 | W44: 0.8633 | X44: 12666.58 | Y44: 27339.49
A45: P8068 | B45: Engenheiro florestal júnior | C45: mês | D45: 11067 | E45: 0.7971 | F45: 8821.51 | G45: 0.0612 | H45: 677.01 | I45: 0.0024 | J45: 26.03 | K45: 0 | L45: 0 | M45: 0 | N45: 0 | O45: 0.0004 | P45: 3.89 | Q45: 0 | R45: 0 | S45: 0.0272 | T45: 301.42 | U45: 0.0009 | V45: 9.98 | W45: 0.8891 | X45: 9839.83 | Y45: 20906.83
A46: P8069 | B46: Engenheiro florestal pleno | C46: mês | D46: 11199.11 | E46: 0.7971 | F46: 8926.81 | G46: 0.0605 | H46: 677.01 | I46: 0.0023 | J46: 26.03 | K46: 0 | L46: 0 | M46: 0 | N46: 0 | O46: 0.0003 | P46: 3.89 | Q46: 0 | R46: 0 | S46: 0.0269 | T46: 301.42 | U46: 0.0009 | V46: 9.98 | W46: 0.888 | X46: 9945.14 | Y46: 21144.25
A47: P8070 | B47: Engenheiro florestal sênior | C47: mês | D47: 12672.11 | E47: 0.7971 | F47: 10100.94 | G47: 0.0534 | H47: 677.01 | I47: 0.0021 | J47: 26.03 | K47: 0 | L47: 0 | M47: 0 | N47: 0 | O47: 0.0003 | P47: 3.89 | Q47: 0 | R47: 0 | S47: 0.0238 | T47: 301.42 | U47: 0.0008 | V47: 9.98 | W47: 0.8775 | X47: 11119.27 | Y47: 23791.38
A48: P8080 | B48: Geólogo júnior | C48: mês | D48: 10004.5 | E48: 0.7959 | F48: 7962.58 | G48: 0.0677 | H48: 677.01 | I48: 0.0026 | J48: 26.03 | K48: 0 | L48: 0 | M48: 0 | N48: 0 | O48: 0.0004 | P48: 3.55 | Q48: 0 | R48: 0 | S48: 0.0301 | T48: 301.42 | U48: 0.001 | V48: 9.98 | W48: 0.8977 | X48: 8980.57 | Y48: 18985.07
A49: P8081 | B49: Geólogo pleno | C49: mês | D49: 10526.36 | E49: 0.7959 | F49: 8377.93 | G49: 0.0643 | H49: 677.01 | I49: 0.0025 | J49: 26.03 | K49: 0 | L49: 0 | M49: 0 | N49: 0 | O49: 0.0003 | P49: 3.55 | Q49: 0 | R49: 0 | S49: 0.0286 | T49: 301.42 | U49: 0.0009 | V49: 9.98 | W49: 0.8926 | X49: 9395.92 | Y49: 19922.28
A50: P8082 | B50: Geólogo sênior | C50: mês | D50: 14001.61 | E50: 0.7959 | F50: 11143.88 | G50: 0.0484 | H50: 677.01 | I50: 0.0019 | J50: 26.03 | K50: 0 | L50: 0 | M50: 0 | N50: 0 | O50: 0.0003 | P50: 3.55 | Q50: 0 | R50: 0 | S50: 0.0215 | T50: 301.42 | U50: 0.0007 | V50: 9.98 | W50: 0.8686 | X50: 12161.87 | Y50: 26163.48
A51: P8092 | B51: Jornalista júnior | C51: mês | D51: 2682.71 | E51: 0.7963 | F51: 2136.24 | G51: 0.2524 | H51: 677.01 | I51: 0.0097 | J51: 26.03 | K51: 0 | L51: 0 | M51: 0.0216 | N51: 58.07 | O51: 0.0011 | P51: 2.95 | Q51: 0 | R51: 0 | S51: 0.1124 | T51: 301.42 | U51: 0.0037 | V51: 9.98 | W51: 1.1972 | X51: 3211.7 | Y51: 5894.4
A52: P8093 | B52: Jornalista pleno | C52: mês | D52: 3576.94 | E52: 0.7963 | F52: 2848.32 | G52: 0.1893 | H52: 677.01 | I52: 0.0073 | J52: 26.03 | K52: 0 | L52: 0 | M52: 0.0012 | N52: 4.42 | O52: 0.0008 | P52: 2.95 | Q52: 0 | R52: 0 | S52: 0.0843 | T52: 301.42 | U52: 0.0028 | V52: 9.98 | W52: 1.082 | X52: 3870.12 | Y52: 7447.06
A53: P8094 | B53: Jornalista sênior | C53: mês | D53: 6931.43 | E53: 0.7963 | F53: 5519.5 | G53: 0.0977 | H53: 677.01 | I53: 0.0038 | J53: 26.03 | K53: 0 | L53: 0 | M53: 0 | N53: 0 | O53: 0.0004 | P53: 2.95 | Q53: 0 | R53: 0 | S53: 0.0435 | T53: 301.42 | U53: 0.0014 | V53: 9.98 | W53: 0.9431 | X53: 6536.88 | Y53: 13468.31
A54: P8098 | B54: Laboratorista | C54: mês | D54: 2146.23 | E54: 0.7988 | F54: 1714.41 | G54: 0.3154 | H54: 677.01 | I54: 0.0136 | J54: 29.18 | K54: 0 | L54: 0 | M54: 0.0421 | N54: 90.26 | O54: 0.002 | P54: 4.37 | Q54: 0 | R54: 0 | S54: 0.1404 | T54: 301.42 | U54: 0.0047 | V54: 9.98 | W54: 1.317 | X54: 2826.63 | Y54: 4972.86
A55: P8102 | B55: Médico veterinário | C55: mês | D55: 11067 | E55: 0.792 | F55: 8765.06 | G55: 0.0612 | H55: 677.01 | I55: 0.0024 | J55: 26.03 | K55: 0 | L55: 0 | M55: 0 | N55: 0 | O55: 0.0003 | P55: 2.98 | Q55: 0 | R55: 0 | S55: 0.0272 | T55: 301.42 | U55: 0.0009 | V55: 9.98 | W55: 0.8839 | X55: 9782.48 | Y55: 20849.48
A56: P8106 | B56: Meteorologista júnior | C56: mês | D56: 4696.66 | E56: 0.7956 | F56: 3736.66 | G56: 0.1441 | H56: 677.01 | I56: 0.0055 | J56: 26.03 | K56: 0 | L56: 0 | M56: 0 | N56: 0 | O56: 0.0006 | P56: 2.8 | Q56: 0 | R56: 0 | S56: 0.0642 | T56: 301.42 | U56: 0.0021 | V56: 9.98 | W56: 1.0122 | X56: 4753.9 | Y56: 9450.55
A57: P8107 | B57: Meteorologista pleno | C57: mês | D57: 6262.21 | E57: 0.7956 | F57: 4982.21 | G57: 0.1081 | H57: 677.01 | I57: 0.0042 | J57: 26.03 | K57: 0 | L57: 0 | M57: 0 | N57: 0 | O57: 0.0004 | P57: 2.8 | Q57: 0 | R57: 0 | S57: 0.0481 | T57: 301.42 | U57: 0.0016 | V57: 9.98 | W57: 0.958 | X57: 5999.45 | Y57: 12261.66
A58: P8108 | B58: Meteorologista sênior | C58: mês | D58: 10569.08 | E58: 0.7956 | F58: 8408.76 | G58: 0.0641 | H58: 677.01 | I58: 0.0025 | J58: 26.03 | K58: 0 | L58: 0 | M58: 0 | N58: 0 | O58: 0.0003 | P58: 2.8 | Q58: 0 | R58: 0 | S58: 0.0285 | T58: 301.42 | U58: 0.0009 | V58: 9.98 | W58: 0.8918 | X58: 9425.99 | Y58: 19995.07
A59: P8112 | B59: Motorista de caminhão | C59: mês | D59: 2096.81 | E59: 0.7998 | F59: 1677.03 | G59: 0.3229 | H59: 677.01 | I59: 0.0151 | J59: 31.69 | K59: 0 | L59: 0 | M59: 0.0445 | N59: 93.22 | O59: 0.0021 | P59: 4.41 | Q59: 0 | R59: 0 | S59: 0.1438 | T59: 301.42 | U59: 0.0048 | V59: 9.98 | W59: 1.3329 | X59: 2794.76 | Y59: 4891.57
A60: P8113 | B60: Motorista de veículo leve | C60: mês | D60: 1918.44 | E60: 0.7971 | F60: 1529.19 | G60: 0.3529 | H60: 677.01 | I60: 0.0165 | J60: 31.69 | K60: 0 | L60: 0 | M60: 0.0542 | N60: 103.93 | O60: 0.002 | P60: 3.88 | Q60: 0 | R60: 0 | S60: 0.1571 | T60: 301.42 | U60: 0.0052 | V60: 9.98 | W60: 1.385 | X60: 2657.09 | Y60: 4575.53
A61: P8117 | B61: Oceanógrafo júnior | C61: mês | D61: 4509.57 | E61: 0.8358 | F61: 3769.1 | G61: 0.1501 | H61: 677.01 | I61: 0.0058 | J61: 26.03 | K61: 0 | L61: 0 | M61: 0 | N61: 0 | O61: 0.0016 | P61: 7.38 | Q61: 0 | R61: 0 | S61: 0.0668 | T61: 301.42 | U61: 0.0022 | V61: 9.98 | W61: 1.0624 | X61: 4790.92 | Y61: 9300.5
A62: P8118 | B62: Oceanógrafo pleno | C62: mês | D62: 6012.77 | E62: 0.8358 | F62: 5025.47 | G62: 0.1126 | H62: 677.01 | I62: 0.0043 | J62: 26.03 | K62: 0 | L62: 0 | M62: 0 | N62: 0 | O62: 0.0012 | P62: 7.38 | Q62: 0 | R62: 0 | S62: 0.0501 | T62: 301.42 | U62: 0.0017 | V62: 9.98 | W62: 1.0057 | X62: 6047.29 | Y62: 12060.05
A63: P8119 | B63: Oceanógrafo sênior | C63: mês | D63: 9797.51 | E63: 0.8358 | F63: 8188.76 | G63: 0.0691 | H63: 677.01 | I63: 0.0027 | J63: 26.03 | K63: 0 | L63: 0 | M63: 0 | N63: 0 | O63: 0.0008 | P63: 7.38 | Q63: 0 | R63: 0 | S63: 0.0308 | T63: 301.42 | U63: 0.001 | V63: 9.98 | W63: 0.9401 | X63: 9210.58 | Y63: 19008.09
A64: P8129 | B64: Pedagogo júnior | C64: mês | D64: 2605.46 | E64: 0.7969 | F64: 2076.29 | G64: 0.2598 | H64: 677.01 | I64: 0.01 | J64: 26.03 | K64: 0 | L64: 0 | M64: 0.0241 | N64: 62.7 | O64: 0.0016 | P64: 4.22 | Q64: 0 | R64: 0 | S64: 0.1157 | T64: 301.42 | U64: 0.0038 | V64: 9.98 | W64: 1.2119 | X64: 3157.64 | Y64: 5763.1
A65: P8130 | B65: Pedagogo pleno | C65: mês | D65: 3473.94 | E65: 0.7969 | F65: 2768.38 | G65: 0.1949 | H65: 677.01 | I65: 0.0075 | J65: 26.03 | K65: 0 | L65: 0 | M65: 0.003 | N65: 10.6 | O65: 0.0012 | P65: 4.22 | Q65: 0 | R65: 0 | S65: 0.0868 | T65: 301.42 | U65: 0.0029 | V65: 9.98 | W65: 1.0932 | X65: 3797.63 | Y65: 7271.57
A66: P8131 | B66: Pedagogo sênior | C66: mês | D66: 5794.12 | E66: 0.7969 | F66: 4617.34 | G66: 0.1168 | H66: 677.01 | I66: 0.0045 | J66: 26.03 | K66: 0 | L66: 0 | M66: 0 | N66: 0 | O66: 0.0007 | P66: 4.22 | Q66: 0 | R66: 0 | S66: 0.052 | T66: 301.42 | U66: 0.0017 | V66: 9.98 | W66: 0.9727 | X66: 5635.99 | Y66: 11430.11
A67: P8135 | B67: Secretária | C67: mês | D67: 2335.81 | E67: 0.7972 | F67: 1862.11 | G67: 0.2898 | H67: 677.01 | I67: 0 | J67: 0 | K67: 0 | L67: 0 | M67: 0.0338 | N67: 78.88 | O67: 0.0013 | P67: 3.05 | Q67: 0 | R67: 0 | S67: 0.129 | T67: 301.42 | U67: 0.0043 | V67: 9.98 | W67: 1.2554 | X67: 2932.45 | Y67: 5268.26
A68: P8139 | B68: Sondador | C68: mês | D68: 1843.72 | E68: 0.7967 | F68: 1468.89 | G68: 0.3672 | H68: 677.01 | I68: 0.0158 | J68: 29.18 | K68: 0 | L68: 0 | M68: 0.0588 | N68: 108.41 | O68: 0.0022 | P68: 4.01 | Q68: 0 | R68: 0 | S68: 0.1635 | T68: 301.42 | U68: 0.0054 | V68: 9.98 | W68: 1.4096 | X68: 2598.9 | Y68: 4442.62
A69: P8143 | B69: Técnico ambiental | C69: mês | D69: 2751.31 | E69: 0.7985 | F69: 2196.92 | G69: 0.2461 | H69: 677.01 | I69: 0.0106 | J69: 29.18 | K69: 0 | L69: 0 | M69: 0.0196 | N69: 53.95 | O69: 0.0015 | P69: 4.05 | Q69: 0 | R69: 0 | S69: 0.1096 | T69: 301.42 | U69: 0.0036 | V69: 9.98 | W69: 1.1894 | X69: 3272.51 | Y69: 6023.83
A70: P8147 | B70: Técnico de obras | C70: mês | D70: 3091.07 | E70: 0.7968 | F70: 2462.97 | G70: 0.219 | H70: 677.01 | I70: 0.0094 | J70: 29.18 | K70: 0 | L70: 0 | M70: 0.0109 | N70: 33.57 | O70: 0.0012 | P70: 3.84 | Q70: 0 | R70: 0 | S70: 0.0975 | T70: 301.42 | U70: 0.0032 | V70: 9.98 | W70: 1.1381 | X70: 3517.96 | Y70: 6609.04
A71: P8151 | B71: Técnico de segurança do trabalho | C71: mês | D71: 4293.4 | E71: 0.8018 | F71: 3442.45 | G71: 0.1577 | H71: 677.01 | I71: 0.0068 | J71: 29.18 | K71: 0 | L71: 0 | M71: 0 | N71: 0 | O71: 0.0011 | P71: 4.61 | Q71: 0 | R71: 0 | S71: 0.0702 | T71: 301.42 | U71: 0.0023 | V71: 9.98 | W71: 1.0399 | X71: 4464.64 | Y71: 8758.04
A72: P8155 | B72: Técnico em geoprocessamento | C72: mês | D72: 2522.76 | E72: 0.7945 | F72: 2004.33 | G72: 0.2684 | H72: 677.01 | I72: 0.0116 | J72: 29.18 | K72: 0 | L72: 0 | M72: 0.0268 | N72: 67.67 | O72: 0.0013 | P72: 3.27 | Q72: 0 | R72: 0 | S72: 0.1195 | T72: 301.42 | U72: 0.004 | V72: 9.98 | W72: 1.226 | X72: 3092.86 | Y72: 5615.61
A73: P8159 | B73: Técnico em informática - programador | C73: mês | D73: 3610.93 | E73: 0.7965 | F73: 2876.1 | G73: 0.1875 | H73: 677.01 | I73: 0 | J73: 0 | K73: 0 | L73: 0 | M73: 0.0007 | N73: 2.38 | O73: 0.0011 | P73: 3.86 | Q73: 0 | R73: 0 | S73: 0.0835 | T73: 301.42 | U73: 0.0028 | V73: 9.98 | W73: 1.072 | X73: 3870.75 | Y73: 7481.67
A74: P8163 | B74: Topógrafo | C74: mês | D74: 2323.3 | E74: 0.7994 | F74: 1857.25 | G74: 0.2914 | H74: 677.01 | I74: 0.0126 | J74: 29.18 | K74: 0 | L74: 0 | M74: 0.0343 | N74: 79.63 | O74: 0.0019 | P74: 4.48 | Q74: 0 | R74: 0 | S74: 0.1297 | T74: 301.42 | U74: 0.0043 | V74: 9.98 | W74: 1.2736 | X74: 2958.95 | Y74: 5282.25
A75: P8167 | B75: Arquivista júnior | C75: mês | D75: 2018.26 | E75: 0.7981 | F75: 1610.77 | G75: 0.3354 | H75: 677.01 | I75: 0 | J75: 0 | K75: 0 | L75: 0 | M75: 0.0485 | N75: 97.94 | O75: 0.0017 | P75: 3.48 | Q75: 0 | R75: 0 | S75: 0.1493 | T75: 301.42 | U75: 0.0049 | V75: 9.98 | W75: 1.3381 | X75: 2700.6 | Y75: 4718.86
A76: P8168 | B76: Arquivista pleno | C76: mês | D76: 2691.02 | E76: 0.7981 | F76: 2147.7 | G76: 0.2516 | H76: 677.01 | I76: 0 | J76: 0 | K76: 0 | L76: 0 | M76: 0.0214 | N76: 57.57 | O76: 0.0013 | P76: 3.48 | Q76: 0 | R76: 0 | S76: 0.112 | T76: 301.42 | U76: 0.0037 | V76: 9.98 | W76: 1.1881 | X76: 3197.16 | Y76: 5888.17
A77: P8169 | B77: Arquivista sênior | C77: mês | D77: 4219.38 | E77: 0.7981 | F77: 3367.49 | G77: 0.1605 | H77: 677.01 | I77: 0 | J77: 0 | K77: 0 | L77: 0 | M77: 0 | N77: 0 | O77: 0.0008 | P77: 3.48 | Q77: 0 | R77: 0 | S77: 0.0714 | T77: 301.42 | U77: 0.0024 | V77: 9.98 | W77: 1.0332 | X77: 4359.37 | Y77: 8578.76
A78: P8173 | B78: Administrador júnior | C78: mês | D78: 3097.97 | E78: 0.7961 | F78: 2466.29 | G78: 0.2185 | H78: 677.01 | I78: 0 | J78: 0 | K78: 0 | L78: 0 | M78: 0.0107 | N78: 33.15 | O78: 0.001 | P78: 3.11 | Q78: 0 | R78: 0 | S78: 0.0973 | T78: 301.42 | U78: 0.0032 | V78: 9.98 | W78: 1.1269 | X78: 3490.96 | Y78: 6588.93
A79: P8174 | B79: Administrador pleno | C79: mês | D79: 4130.62 | E79: 0.7961 | F79: 3288.39 | G79: 0.1639 | H79: 677.01 | I79: 0 | J79: 0 | K79: 0 | L79: 0 | M79: 0 | N79: 0 | O79: 0.0008 | P79: 3.11 | Q79: 0 | R79: 0 | S79: 0.073 | T79: 301.42 | U79: 0.0024 | V79: 9.98 | W79: 1.0361 | X79: 4279.91 | Y79: 8410.53
A80: P8175 | B80: Administrador sênior | C80: mês | D80: 7233.66 | E80: 0.7961 | F80: 5758.72 | G80: 0.0936 | H80: 677.01 | I80: 0 | J80: 0 | K80: 0 | L80: 0 | M80: 0 | N80: 0 | O80: 0.0004 | P80: 3.11 | Q80: 0 | R80: 0 | S80: 0.0417 | T80: 301.42 | U80: 0.0014 | V80: 9.98 | W80: 0.9332 | X80: 6750.24 | Y80: 13983.9
A81: P8180 | B81: Engenheiro agrimensor júnior | C81: mês | D81: 11067 | E81: 0.7933 | F81: 8779.45 | G81: 0.0612 | H81: 677.01 | I81: 0.0024 | J81: 26.03 | K81: 0 | L81: 0 | M81: 0 | N81: 0 | O81: 0.0002 | P81: 2.71 | Q81: 0 | R81: 0 | S81: 0.0272 | T81: 301.42 | U81: 0.0009 | V81: 9.98 | W81: 0.8852 | X81: 9796.59 | Y81: 20863.59
A82: P8181 | B82: Engenheiro agrimensor pleno | C82: mês | D82: 11198.11 | E82: 0.7933 | F82: 8883.46 | G82: 0.0605 | H82: 677.01 | I82: 0.0023 | J82: 26.03 | K82: 0 | L82: 0 | M82: 0 | N82: 0 | O82: 0.0002 | P82: 2.71 | Q82: 0 | R82: 0 | S82: 0.0269 | T82: 301.42 | U82: 0.0009 | V82: 9.98 | W82: 0.8841 | X82: 9900.6 | Y82: 21098.71
A83: P8182 | B83: Engenheiro agrimensor sênior | C83: mês | D83: 12047.23 | E83: 0.7933 | F83: 9557.07 | G83: 0.0562 | H83: 677.01 | I83: 0.0022 | J83: 26.03 | K83: 0 | L83: 0 | M83: 0 | N83: 0 | O83: 0.0002 | P83: 2.71 | Q83: 0 | R83: 0 | S83: 0.025 | T83: 301.42 | U83: 0.0008 | V83: 9.98 | W83: 0.8777 | X83: 10574.21 | Y83: 22621.44
A84: P8183 | B84: Geógrafo júnior | C84: mês | D84: 3351.22 | E84: 0.7943 | F84: 2661.87 | G84: 0.202 | H84: 677.01 | I84: 0.0078 | J84: 26.03 | K84: 0 | L84: 0 | M84: 0.0054 | N84: 17.96 | O84: 0.0008 | P84: 2.71 | Q84: 0 | R84: 0 | S84: 0.0899 | T84: 301.42 | U84: 0.003 | V84: 9.98 | W84: 1.1032 | X84: 3696.98 | Y84: 7048.19
A85: P8184 | B85: Geógrafo pleno | C85: mês | D85: 4468.29 | E85: 0.7943 | F85: 3549.16 | G85: 0.1515 | H85: 677.01 | I85: 0.0058 | J85: 26.03 | K85: 0 | L85: 0 | M85: 0 | N85: 0 | O85: 0.0006 | P85: 2.71 | Q85: 0 | R85: 0 | S85: 0.0675 | T85: 301.42 | U85: 0.0022 | V85: 9.98 | W85: 1.0219 | X85: 4566.31 | Y85: 9034.6
A86: P8185 | B86: Geógrafo sênior | C86: mês | D86: 8514.33 | E86: 0.7943 | F86: 6762.93 | G86: 0.0795 | H86: 677.01 | I86: 0.0031 | J86: 26.03 | K86: 0 | L86: 0 | M86: 0 | N86: 0 | O86: 0.0003 | P86: 2.71 | Q86: 0 | R86: 0 | S86: 0.0354 | T86: 301.42 | U86: 0.0012 | V86: 9.98 | W86: 0.9138 | X86: 7780.08 | Y86: 16294.41
A87: P8186 | B87: Antropólogo júnior | C87: mês | D87: 3165.46 | E87: 0.8072 | F87: 2555.16 | G87: 0.2139 | H87: 677.01 | I87: 0.0082 | J87: 26.03 | K87: 0 | L87: 0 | M87: 0.0092 | N87: 29.1 | O87: 0.0015 | P87: 4.66 | Q87: 0 | R87: 0 | S87: 0.0952 | T87: 301.42 | U87: 0.0032 | V87: 9.98 | W87: 1.1383 | X87: 3603.36 | Y87: 6768.82
A88: P8187 | B88: Antropólogo pleno | C88: mês | D88: 4220.61 | E88: 0.8072 | F88: 3406.88 | G88: 0.1604 | H88: 677.01 | I88: 0.0062 | J88: 26.03 | K88: 0 | L88: 0 | M88: 0 | N88: 0 | O88: 0.0011 | P88: 4.66 | Q88: 0 | R88: 0 | S88: 0.0714 | T88: 301.42 | U88: 0.0024 | V88: 9.98 | W88: 1.0487 | X88: 4425.97 | Y88: 8646.58
A89: P8188 | B89: Antropólogo sênior | C89: mês | D89: 6078.95 | E89: 0.8072 | F89: 4906.93 | G89: 0.1114 | H89: 677.01 | I89: 0.0043 | J89: 26.03 | K89: 0 | L89: 0 | M89: 0 | N89: 0 | O89: 0.0008 | P89: 4.66 | Q89: 0 | R89: 0 | S89: 0.0496 | T89: 301.42 | U89: 0.0016 | V89: 9.98 | W89: 0.9748 | X89: 5926.02 | Y89: 12004.97
A90: P8189 | B90: Arqueólogo júnior | C90: mês | D90: 3085.16 | E90: 0.8271 | F90: 2551.74 | G90: 0.2194 | H90: 677.01 | I90: 0.0084 | J90: 26.03 | K90: 0 | L90: 0 | M90: 0.011 | N90: 33.92 | O90: 0.002 | P90: 6.32 | Q90: 0 | R90: 0 | S90: 0.0977 | T90: 301.42 | U90: 0.0032 | V90: 9.98 | W90: 1.169 | X90: 3606.42 | Y90: 6691.58
A91: P8190 | B91: Arqueólogo pleno | C91: mês | D91: 4113.55 | E91: 0.8271 | F91: 3402.32 | G91: 0.1646 | H91: 677.01 | I91: 0.0063 | J91: 26.03 | K91: 0 | L91: 0 | M91: 0 | N91: 0 | O91: 0.0015 | P91: 6.32 | Q91: 0 | R91: 0 | S91: 0.0733 | T91: 301.42 | U91: 0.0024 | V91: 9.98 | W91: 1.0752 | X91: 4423.07 | Y91: 8536.62
A92: P8191 | B92: Arqueólogo sênior | C92: mês | D92: 5832.14 | E92: 0.8271 | F92: 4823.76 | G92: 0.1161 | H92: 677.01 | I92: 0.0045 | J92: 26.03 | K92: 0 | L92: 0 | M92: 0 | N92: 0 | O92: 0.0011 | P92: 6.32 | Q92: 0 | R92: 0 | S92: 0.0517 | T92: 301.42 | U92: 0.0017 | V92: 9.98 | W92: 1.0021 | X92: 5844.52 | Y92: 11676.66
A93: P8192 | B93: Historiador júnior | C93: mês | D93: 3325.64 | E93: 0.7967 | F93: 2649.54 | G93: 0.2036 | H93: 677.01 | I93: 0.0078 | J93: 26.03 | K93: 0 | L93: 0 | M93: 0.0059 | N93: 19.49 | O93: 0.0011 | P93: 3.69 | Q93: 0 | R93: 0 | S93: 0.0906 | T93: 301.42 | U93: 0.003 | V93: 9.98 | W93: 1.1087 | X93: 3687.15 | Y93: 7012.79
A94: P8193 | B94: Historiador pleno | C94: mês | D94: 4434.18 | E94: 0.7967 | F94: 3532.71 | G94: 0.1527 | H94: 677.01 | I94: 0.0059 | J94: 26.03 | K94: 0 | L94: 0 | M94: 0 | N94: 0 | O94: 0.0008 | P94: 3.69 | Q94: 0 | R94: 0 | S94: 0.068 | T94: 301.42 | U94: 0.0023 | V94: 9.98 | W94: 1.0263 | X94: 4550.84 | Y94: 8985.02
A95: P8194 | B95: Historiador sênior | C95: mês | D95: 7403.84 | E95: 0.7967 | F95: 5898.64 | G95: 0.0914 | H95: 677.01 | I95: 0.0035 | J95: 26.03 | K95: 0 | L95: 0 | M95: 0 | N95: 0 | O95: 0.0005 | P95: 3.69 | Q95: 0 | R95: 0 | S95: 0.0407 | T95: 301.42 | U95: 0.0013 | V95: 9.98 | W95: 0.9342 | X95: 6916.76 | Y95: 14320.6
A96: P8195 | B96: Paleontólogo júnior | C96: mês | D96: 3141.84 | E96: 0.7981 | F96: 2507.51 | G96: 0.2155 | H96: 677.01 | I96: 0.0083 | J96: 26.03 | K96: 0 | L96: 0 | M96: 0.0097 | N96: 30.52 | O96: 0.0012 | P96: 3.91 | Q96: 0 | R96: 0 | S96: 0.0959 | T96: 301.42 | U96: 0.0032 | V96: 9.98 | W96: 1.1319 | X96: 3556.37 | Y96: 6698.22
A97: P8196 | B97: Paleontólogo pleno | C97: mês | D97: 4189.13 | E97: 0.7981 | F97: 3343.34 | G97: 0.1616 | H97: 677.01 | I97: 0.0062 | J97: 26.03 | K97: 0 | L97: 0 | M97: 0 | N97: 0 | O97: 0.0009 | P97: 3.91 | Q97: 0 | R97: 0 | S97: 0.072 | T97: 301.42 | U97: 0.0024 | V97: 9.98 | W97: 1.0412 | X97: 4361.69 | Y97: 8550.81
A98: P8197 | B98: Paleontólogo sênior | C98: mês | D98: 6069.84 | E98: 0.7981 | F98: 4844.34 | G98: 0.1115 | H98: 677.01 | I98: 0.0043 | J98: 26.03 | K98: 0 | L98: 0 | M98: 0 | N98: 0 | O98: 0.0006 | P98: 3.91 | Q98: 0 | R98: 0 | S98: 0.0497 | T98: 301.42 | U98: 0.0016 | V98: 9.98 | W98: 0.9659 | X98: 5862.69 | Y98: 11932.53
A99: P8198 | B99: Sociólogo júnior | C99: mês | D99: 3782.76 | E99: 0.8191 | F99: 3098.46 | G99: 0.179 | H99: 677.01 | I99: 0.0069 | J99: 26.03 | K99: 0 | L99: 0 | M99: 0 | N99: 0 | O99: 0.0015 | P99: 5.55 | Q99: 0 | R99: 0 | S99: 0.0797 | T99: 301.42 | U99: 0.0026 | V99: 9.98 | W99: 1.0887 | X99: 4118.44 | Y99: 7901.19
A100: P8199 | B100: Sociólogo pleno | C100: mês | D100: 5043.67 | E100: 0.8191 | F100: 4131.27 | G100: 0.1342 | H100: 677.01 | I100: 0.0052 | J100: 26.03 | K100: 0 | L100: 0 | M100: 0 | N100: 0 | O100: 0.0011 | P100: 5.55 | Q100: 0 | R100: 0 | S100: 0.0598 | T100: 301.42 | U100: 0.002 | V100: 9.98 | W100: 1.0213 | X100: 5151.26 | Y100: 10194.93
A101: P8200 | B101: Sociólogo sênior | C101: mês | D101: 7915.13 | E101: 0.8191 | F101: 6483.28 | G101: 0.0855 | H101: 677.01 | I101: 0.0033 | J101: 26.03 | K101: 0 | L101: 0 | M101: 0 | N101: 0 | O101: 0.0007 | P101: 5.55 | Q101: 0 | R101: 0 | S101: 0.0381 | T101: 301.42 | U101: 0.0013 | V101: 9.98 | W101: 0.948 | X101: 7503.26 | Y101: 15418.39
A102: Fonte: FGV IBRE

Sheet DNIT TC - 102023
A1: Código | B1: Categoria | C1: Unid. | D1: Salário | E1: Encargos Sociais | G1: Encargos Complementares | Q1: Encargos Adicionais | W1: Encargos Totais | Y1: Valor Total
G2: Alimentação | I2: EPI | K2: Ferramenta | M2: Transporte | O2: Exame Ocupacional | Q2: Cesta Básica | S2: Assistência Médica | U2: Seguro de Vida | AA2: Encargos Adicionais e Complementares
D3: R$ | E3: % | F3: R$ | G3: % | H3: R$ | I3: % | J3: R$ | K3: % | L3: R$ | M3: % | N3: R$ | O3: % | P3: R$ | Q3: % | R3: R$ | S3: % | T3: R$ | U3: % | V3: R$ | W3: % | X3: R$ | Y3: R$ | AA3: R$
A4: P8001 | B4: Advogado júnior | C4: mês | D4: 4328.07 | E4: 0.7941 | F4: 3436.92 | G4: 0.1624 | H4: 702.89 | I4: 0.0057 | J4: 24.82 | K4: 0 | L4: 0 | M4: 0 | N4: 0 | O4: 0.0007 | P4: 2.9 | Q4: 0 | R4: 0 | S4: 0.0664 | T4: 287.48 | U4: 0.0023 | V4: 9.98 | W4: 1.0316 | X4: 4465 | Y4: 8793.07 | AA4: =Y4-F4-D4 -> 1028.08
A5: P8002 | B5: Advogado pleno | C5: mês | D5: 5770.76 | E5: 0.7941 | F5: 4582.56 | G5: 0.1218 | H5: 702.89 | I5: 0.0043 | J5: 24.82 | K5: 0 | L5: 0 | M5: 0 | N5: 0 | O5: 0.0005 | P5: 2.9 | Q5: 0 | R5: 0 | S5: 0.0498 | T5: 287.48 | U5: 0.0017 | V5: 9.98 | W5: 0.9723 | X5: 5610.64 | Y5: 11381.4 | AA5: =Y5-F5-D5 -> 1028.08
A6: P8003 | B6: Advogado sênior | C6: mês | D6: 10385.12 | E6: 0.7941 | F6: 8246.82 | G6: 0.0677 | H6: 702.89 | I6: 0.0024 | J6: 24.82 | K6: 0 | L6: 0 | M6: 0 | N6: 0 | O6: 0.0003 | P6: 2.9 | Q6: 0 | R6: 0 | S6: 0.0277 | T6: 287.48 | U6: 0.001 | V6: 9.98 | W6: 0.8931 | X6: 9274.9 | Y6: 19660.02 | AA6: 1028.08
A7: P8007 | B7: Analista de desenvolvimento de sistemas júnior | C7: mês | D7: 4362.56 | E7: 0.7946 | F7: 3466.49 | G7: 0.1611 | H7: 702.89 | I7: 0 | J7: 0 | K7: 0 | L7: 0 | M7: 0 | N7: 0 | O7: 0.0008 | P7: 3.62 | Q7: 0 | R7: 0 | S7: 0.0659 | T7: 287.48 | U7: 0.0023 | V7: 9.98 | W7: 1.0247 | X7: 4470.46 | Y7: 8833.02 | AA7: 1003.97
A8: P8008 | B8: Analista de desenvolvimento de sistemas pleno | C8: mês | D8: 5257.05 | E8: 0.7946 | F8: 4177.25 | G8: 0.1337 | H8: 702.89 | I8: 0 | J8: 0 | K8: 0 | L8: 0 | M8: 0 | N8: 0 | O8: 0.0007 | P8: 3.62 | Q8: 0 | R8: 0 | S8: 0.0547 | T8: 287.48 | U8: 0.0019 | V8: 9.98 | W8: 0.9856 | X8: 5181.22 | Y8: 10438.27 | AA8: 1003.97
A9: P8009 | B9: Analista de desenvolvimento de sistemas sênior | C9: mês | D9: 9343.88 | E9: 0.7946 | F9: 7424.64 | G9: 0.0752 | H9: 702.89 | I9: 0 | J9: 0 | K9: 0 | L9: 0 | M9: 0 | N9: 0 | O9: 0.0004 | P9: 3.62 | Q9: 0 | R9: 0 | S9: 0.0308 | T9: 287.48 | U9: 0.0011 | V9: 9.98 | W9: 0.902 | X9: 8428.62 | Y9: 17772.49 | AA9: 1003.97
A10: P8013 | B10: Arquiteto júnior | C10: mês | D10: 11220 | E10: 0.7936 | F10: 8904.19 | G10: 0.0626 | H10: 702.89 | I10: 0.0022 | J10: 24.82 | K10: 0 | L10: 0 | M10: 0 | N10: 0 | O10: 0.0003 | P10: 3.29 | Q10: 0 | R10: 0 | S10: 0.0256 | T10: 287.48 | U10: 0.0009 | V10: 9.98 | W10: 0.8853 | X10: 9932.66 | Y10: 21152.66 | AA10: 1028.47
A11: P8014 | B11: Arquiteto pleno | C11: mês | D11: 11758.79 | E11: 0.7936 | F11: 9331.77 | G11: 0.0598 | H11: 702.89 | I11: 0.0021 | J11: 24.82 | K11: 0 | L11: 0 | M11: 0 | N11: 0 | O11: 0.0003 | P11: 3.29 | Q11: 0 | R11: 0 | S11: 0.0244 | T11: 287.48 | U11: 0.0008 | V11: 9.98 | W11: 0.8811 | X11: 10360.24 | Y11: 22119.03 | AA11: 1028.47
A12: P8015 | B12: Arquiteto sênior | C12: mês | D12: 14256.53 | E12: 0.7936 | F12: 11313.98 | G12: 0.0493 | H12: 702.89 | I12: 0.0017 | J12: 24.82 | K12: 0 | L12: 0 | M12: 0 | N12: 0 | O12: 0.0002 | P12: 3.29 | Q12: 0 | R12: 0 | S12: 0.0202 | T12: 287.48 | U12: 0.0007 | V12: 9.98 | W12: 0.8657 | X12: 12342.45 | Y12: 26598.98 | AA12: 1028.47
A13: P8019 | B13: Assistente social júnior | C13: mês | D13: 3151.76 | E13: 0.8006 | F13: 2523.3 | G13: 0.223 | H13: 702.89 | I13: 0.0079 | J13: 24.82 | K13: 0 | L13: 0 | M13: 0.0095 | N13: 29.93 | O13: 0.0015 | P13: 4.69 | Q13: 0 | R13: 0 | S13: 0.0912 | T13: 287.48 | U13: 0.0032 | V13: 9.98 | W13: 1.1369 | X13: 3583.09 | Y13: 6734.85 | AA13: 1059.79
A14: P8020 | B14: Assistente social pleno | C14: mês | D14: 4202.35 | E14: 0.8006 | F14: 3364.4 | G14: 0.1673 | H14: 702.89 | I14: 0.0059 | J14: 24.82 | K14: 0 | L14: 0 | M14: 0 | N14: 0 | O14: 0.0011 | P14: 4.69 | Q14: 0 | R14: 0 | S14: 0.0684 | T14: 287.48 | U14: 0.0024 | V14: 9.98 | W14: 1.0457 | X14: 4394.27 | Y14: 8596.61 | AA14: 1029.86
A15: P8021 | B15: Assistente social sênior | C15: mês | D15: 7005.06 | E15: 0.8006 | F15: 5608.25 | G15: 0.1003 | H15: 702.89 | I15: 0.0035 | J15: 24.82 | K15: 0 | L15: 0 | M15: 0 | N15: 0 | O15: 0.0007 | P15: 4.69 | Q15: 0 | R15: 0 | S15: 0.041 | T15: 287.48 | U15: 0.0014 | V15: 9.98 | W15: 0.9476 | X15: 6638.12 | Y15: 13643.18 | AA15: 1029.87
A16: P8025 | B16: Auxiliar | C16: mês | D16: 1496.52 | E16: 0.8093 | F16: 1211.13 | G16: 0.4697 | H16: 702.89 | I16: 0.0202 | J16: 30.22 | K16: 0.001 | L16: 1.55 | M16: 0.0864 | N16: 129.24 | O16: 0.0044 | P16: 6.65 | Q16: 0 | R16: 0 | S16: 0.1921 | T16: 287.48 | U16: 0.0067 | V16: 9.98 | W16: 1.5898 | X16: 2379.14 | Y16: 3875.66 | AA16: 1168.01
A17: P8026 | B17: Auxiliar administrativo | C17: mês | D17: 1794.31 | E17: 0.8015 | F17: 1438.14 | G17: 0.3917 | H17: 702.89 | I17: 0 | J17: 0 | K17: 0 | L17: 0 | M17: 0.0621 | N17: 111.37 | O17: 0.0021 | P17: 3.82 | Q17: 0 | R17: 0 | S17: 0.1602 | T17: 287.48 | U17: 0.0056 | V17: 9.98 | W17: 1.4232 | X17: 2553.69 | Y17: 4348 | AA17: 1115.55
A18: P8027 | B18: Auxiliar de laboratório | C18: mês | D18: 1649.67 | E18: 0.8025 | F18: 1323.86 | G18: 0.4261 | H18: 702.89 | I18: 0.0183 | J18: 30.22 | K18: 0.0019 | L18: 3.19 | M18: 0.0728 | N18: 120.05 | O18: 0.0026 | P18: 4.22 | Q18: 0 | R18: 0 | S18: 0.1743 | T18: 287.48 | U18: 0.006 | V18: 9.98 | W18: 1.5045 | X18: 2481.9 | Y18: 4131.58 | AA18: 1158.05
A19: P8028 | B19: Auxiliar de topografia | C19: mês | D19: 1496.52 | E19: 0.8046 | F19: 1204.1 | G19: 0.4697 | H19: 702.89 | I19: 0.0202 | J19: 30.22 | K19: 0.0009 | L19: 1.35 | M19: 0.0864 | N19: 129.24 | O19: 0.0031 | P19: 4.69 | Q19: 0 | R19: 0 | S19: 0.1921 | T19: 287.48 | U19: 0.0067 | V19: 9.98 | W19: 1.5836 | X19: 2369.95 | Y19: 3866.47 | AA19: 1165.85
A20: P8032 | B20: Biólogo júnior | C20: mês | D20: 3221.42 | E20: 0.7965 | F20: 2565.86 | G20: 0.2182 | H20: 702.89 | I20: 0.0077 | J20: 24.82 | K20: 0 | L20: 0 | M20: 0.008 | N20: 25.75 | O20: 0.0012 | P20: 3.74 | Q20: 0 | R20: 0 | S20: 0.0892 | T20: 287.48 | U20: 0.0031 | V20: 9.98 | W20: 1.1239 | X20: 3620.53 | Y20: 6841.95 | AA20: 1054.67
A21: P8033 | B21: Biólogo pleno | C21: mês | D21: 4295.23 | E21: 0.7965 | F21: 3421.15 | G21: 0.1636 | H21: 702.89 | I21: 0.0058 | J21: 24.82 | K21: 0 | L21: 0 | M21: 0 | N21: 0 | O21: 0.0009 | P21: 3.74 | Q21: 0 | R21: 0 | S21: 0.0669 | T21: 287.48 | U21: 0.0023 | V21: 9.98 | W21: 1.036 | X21: 4450.07 | Y21: 8745.3 | AA21: 1028.92
A22: P8034 | B22: Biólogo sênior | C22: mês | D22: 7598.64 | E22: 0.7965 | F22: 6052.32 | G22: 0.0925 | H22: 702.89 | I22: 0.0033 | J22: 24.82 | K22: 0 | L22: 0 | M22: 0 | N22: 0 | O22: 0.0005 | P22: 3.74 | Q22: 0 | R22: 0 | S22: 0.0378 | T22: 287.48 | U22: 0.0013 | V22: 9.98 | W22: 0.9319 | X22: 7081.23 | Y22: 14679.87 | AA22: 1028.91
A23: P8038 | B23: Chefe de escritório | C23: mês | D23: 3345.08 | E23: 0.7949 | F23: 2659.01 | G23: 0.2101 | H23: 702.89 | I23: 0 | J23: 0 | K23: 0 | L23: 0 | M23: 0.0055 | N23: 18.33 | O23: 0.0009 | P23: 2.97 | Q23: 0 | R23: 0 | S23: 0.0859 | T23: 287.48 | U23: 0.003 | V23: 9.98 | W23: 1.1003 | X23: 3680.66 | Y23: 7025.74 | AA23: 1021.65
A24: P8040 | B24: Contador júnior | C24: mês | D24: 4102.78 | E24: 0.7942 | F24: 3258.43 | G24: 0.1713 | H24: 702.89 | I24: 0 | J24: 0 | K24: 0 | L24: 0 | M24: 0 | N24: 0 | O24: 0.0006 | P24: 2.54 | Q24: 0 | R24: 0 | S24: 0.0701 | T24: 287.48 | U24: 0.0024 | V24: 9.98 | W24: 1.0386 | X24: 4261.32 | Y24: 8364.1 | AA24: 1002.89
A25: P8041 | B25: Contador pleno | C25: mês | D25: 5470.37 | E25: 0.7942 | F25: 4344.57 | G25: 0.1285 | H25: 702.89 | I25: 0 | J25: 0 | K25: 0 | L25: 0 | M25: 0 | N25: 0 | O25: 0.0005 | P25: 2.54 | Q25: 0 | R25: 0 | S25: 0.0526 | T25: 287.48 | U25: 0.0018 | V25: 9.98 | W25: 0.9775 | X25: 5347.46 | Y25: 10817.83 | AA25: 1002.89
A26: P8042 | B26: Contador sênior | C26: mês | D26: 10477.63 | E26: 0.7942 | F26: 8321.33 | G26: 0.0671 | H26: 702.89 | I26: 0 | J26: 0 | K26: 0 | L26: 0 | M26: 0 | N26: 0 | O26: 0.0002 | P26: 2.54 | Q26: 0 | R26: 0 | S26: 0.0274 | T26: 287.48 | U26: 0.001 | V26: 9.98 | W26: 0.8899 | X26: 9324.23 | Y26: 19801.86 | AA26: 1002.9
A27: P8044 | B27: Coordenador ambiental | C27: mês | D27: 16975.59 | E27: 0.7949 | F27: 13493.89 | G27: 0.0414 | H27: 702.89 | I27: 0.0013 | J27: 22.67 | K27: 0 | L27: 0 | M27: 0 | N27: 0 | O27: 0.0002 | P27: 3.5 | Q27: 0 | R27: 0 | S27: 0.0169 | T27: 287.48 | U27: 0.0006 | V27: 9.98 | W27: 0.8554 | X27: 14520.41 | Y27: 31496 | AA27: 1026.52
A28: P8045 | B28: Economista júnior | C28: mês | D28: 4743.39 | E28: 0.7879 | F28: 3737.32 | G28: 0.1482 | H28: 702.89 | I28: 0 | J28: 0 | K28: 0 | L28: 0 | M28: 0 | N28: 0 | O28: 0.0004 | P28: 1.8 | Q28: 0 | R28: 0 | S28: 0.0606 | T28: 287.48 | U28: 0.0021 | V28: 9.98 | W28: 0.9992 | X28: 4739.47 | Y28: 9482.86 | AA28: 1002.15
A29: P8046 | B29: Economista pleno | C29: mês | D29: 6324.52 | E29: 0.7879 | F29: 4983.09 | G29: 0.1111 | H29: 702.89 | I29: 0 | J29: 0 | K29: 0 | L29: 0 | M29: 0 | N29: 0 | O29: 0.0003 | P29: 1.8 | Q29: 0 | R29: 0 | S29: 0.0455 | T29: 287.48 | U29: 0.0016 | V29: 9.98 | W29: 0.9464 | X29: 5985.24 | Y29: 12309.76 | AA29: 1002.15
A30: P8047 | B30: Economista sênior | C30: mês | D30: 10763.82 | E30: 0.7879 | F30: 8480.82 | G30: 0.0653 | H30: 702.89 | I30: 0 | J30: 0 | K30: 0 | L30: 0 | M30: 0 | N30: 0 | O30: 0.0002 | P30: 1.8 | Q30: 0 | R30: 0 | S30: 0.0267 | T30: 287.48 | U30: 0.0009 | V30: 9.98 | W30: 0.881 | X30: 9482.96 | Y30: 20246.79 | AA30: 1002.15
A31: P8054 | B31: Engenheiro agrônomo júnior | C31: mês | D31: 11220 | E31: 0.7904 | F31: 8868.29 | G31: 0.0626 | H31: 702.89 | I31: 0.0022 | J31: 24.82 | K31: 0 | L31: 0 | M31: 0 | N31: 0 | O31: 0.0002 | P31: 2.31 | Q31: 0 | R31: 0 | S31: 0.0256 | T31: 287.48 | U31: 0.0009 | V31: 9.98 | W31: 0.882 | X31: 9895.77 | Y31: 21115.77 | AA31: 1027.48
A32: P8055 | B32: Engenheiro agrônomo pleno | C32: mês | D32: 11841.21 | E32: 0.7904 | F32: 9359.29 | G32: 0.0594 | H32: 702.89 | I32: 0.0021 | J32: 24.82 | K32: 0 | L32: 0 | M32: 0 | N32: 0 | O32: 0.0002 | P32: 2.31 | Q32: 0 | R32: 0 | S32: 0.0243 | T32: 287.48 | U32: 0.0008 | V32: 9.98 | W32: 0.8772 | X32: 10386.78 | Y32: 22227.99 | AA32: 1027.49
A33: P8056 | B33: Engenheiro agrônomo sênior | C33: mês | D33: 13685.26 | E33: 0.7904 | F33: 10816.83 | G33: 0.0514 | H33: 702.89 | I33: 0.0018 | J33: 24.82 | K33: 0 | L33: 0 | M33: 0 | N33: 0 | O33: 0.0002 | P33: 2.31 | Q33: 0 | R33: 0 | S33: 0.021 | T33: 287.48 | U33: 0.0007 | V33: 9.98 | W33: 0.8655 | X33: 11844.31 | Y33: 25529.58 | AA33: 1027.49
A34: P8057 | B34: Engenheiro ambiental júnior | C34: mês | D34: 11220 | E34: 0.7964 | F34: 8935.61 | G34: 0.0626 | H34: 702.89 | I34: 0.0022 | J34: 24.82 | K34: 0 | L34: 0 | M34: 0 | N34: 0 | O34: 0.0003 | P34: 3.71 | Q34: 0 | R34: 0 | S34: 0.0256 | T34: 287.48 | U34: 0.0009 | V34: 9.98 | W34: 0.8881 | X34: 9964.49 | Y34: 21184.49 | AA34: 1028.88
A35: P8058 | B35: Engenheiro ambiental pleno | C35: mês | D35: 11513.98 | E35: 0.7964 | F35: 9169.73 | G35: 0.061 | H35: 702.89 | I35: 0.0022 | J35: 24.82 | K35: 0 | L35: 0 | M35: 0 | N35: 0 | O35: 0.0003 | P35: 3.71 | Q35: 0 | R35: 0 | S35: 0.025 | T35: 287.48 | U35: 0.0009 | V35: 9.98 | W35: 0.8858 | X35: 10198.62 | Y35: 21712.6 | AA35: 1028.89
A36: P8059 | B36: Engenheiro ambiental sênior | C36: mês | D36: 14163.68 | E36: 0.7964 | F36: 11279.95 | G36: 0.0496 | H36: 702.89 | I36: 0.0018 | J36: 24.82 | K36: 0 | L36: 0 | M36: 0 | N36: 0 | O36: 0.0003 | P36: 3.71 | Q36: 0 | R36: 0 | S36: 0.0203 | T36: 287.48 | U36: 0.0007 | V36: 9.98 | W36: 0.869 | X36: 12308.84 | Y36: 26472.52 | AA36: 1028.89
A37: P8060 | B37: Engenheiro consultor especial | C37: mês | D37: 20846 | E37: 0.7951 | F37: 16574.66 | G37: 0.0337 | H37: 702.89 | I37: 0.0011 | J37: 22.67 | K37: 0 | L37: 0 | M37: 0 | N37: 0 | O37: 0.0002 | P37: 3.72 | Q37: 0 | R37: 0 | S37: 0.0138 | T37: 287.48 | U37: 0.0005 | V37: 9.98 | W37: 0.8444 | X37: 17601.4 | Y37: 38447.41 | AA37: 1026.75
A38: P8061 | B38: Engenheiro coordenador | C38: mês | D38: 17371.67 | E38: 0.7951 | F38: 13812.22 | G38: 0.0405 | H38: 702.89 | I38: 0.0013 | J38: 22.67 | K38: 0 | L38: 0 | M38: 0 | N38: 0 | O38: 0.0002 | P38: 3.72 | Q38: 0 | R38: 0 | S38: 0.0165 | T38: 287.48 | U38: 0.0006 | V38: 9.98 | W38: 0.8542 | X38: 14838.96 | Y38: 32210.63 | AA38: 1026.74
A39: P8062 | B39: Engenheiro de pesca júnior | C39: mês | D39: 11220 | E39: 0.804 | F39: 9020.88 | G39: 0.0626 | H39: 702.89 | I39: 0.0022 | J39: 24.82 | K39: 0 | L39: 0 | M39: 0 | N39: 0 | O39: 0.0004 | P39: 4.63 | Q39: 0 | R39: 0 | S39: 0.0256 | T39: 287.48 | U39: 0.0009 | V39: 9.98 | W39: 0.8958 | X39: 10050.69 | Y39: 21270.69 | AA39: 1029.81
A40: P8063 | B40: Engenheiro de pesca pleno | C40: mês | D40: 12007.3 | E40: 0.804 | F40: 9653.87 | G40: 0.0585 | H40: 702.89 | I40: 0.0021 | J40: 24.82 | K40: 0 | L40: 0 | M40: 0 | N40: 0 | O40: 0.0004 | P40: 4.63 | Q40: 0 | R40: 0 | S40: 0.0239 | T40: 287.48 | U40: 0.0008 | V40: 9.98 | W40: 0.8898 | X40: 10683.68 | Y40: 22690.98 | AA40: 1029.81
A41: P8064 | B41: Engenheiro de pesca sênior | C41: mês | D41: 15859.45 | E41: 0.804 | F41: 12751 | G41: 0.0443 | H41: 702.89 | I41: 0.0016 | J41: 24.82 | K41: 0 | L41: 0 | M41: 0 | N41: 0 | O41: 0.0003 | P41: 4.63 | Q41: 0 | R41: 0 | S41: 0.0181 | T41: 287.48 | U41: 0.0006 | V41: 9.98 | W41: 0.8689 | X41: 13780.8 | Y41: 29640.25 | AA41: 1029.8
A42: P8065 | B42: Engenheiro de projetos júnior | C42: mês | D42: 11220 | E42: 0.7951 | F42: 8921.02 | G42: 0.0626 | H42: 702.89 | I42: 0.0022 | J42: 24.82 | K42: 0 | L42: 0 | M42: 0 | N42: 0 | O42: 0.0003 | P42: 3.72 | Q42: 0 | R42: 0 | S42: 0.0256 | T42: 287.48 | U42: 0.0009 | V42: 9.98 | W42: 0.8868 | X42: 9949.92 | Y42: 21169.92 | AA42: 1028.9
A43: P8066 | B43: Engenheiro de projetos pleno | C43: mês | D43: 11895.06 | E43: 0.7951 | F43: 9457.76 | G43: 0.0591 | H43: 702.89 | I43: 0.0021 | J43: 24.82 | K43: 0 | L43: 0 | M43: 0 | N43: 0 | O43: 0.0003 | P43: 3.72 | Q43: 0 | R43: 0 | S43: 0.0242 | T43: 287.48 | U43: 0.0008 | V43: 9.98 | W43: 0.8816 | X43: 10486.66 | Y43: 22381.71 | AA43: 1028.89
A44: P8067 | B44: Engenheiro de projetos sênior | C44: mês | D44: 15077.28 | E44: 0.7951 | F44: 11987.94 | G44: 0.0466 | H44: 702.89 | I44: 0.0016 | J44: 24.82 | K44: 0 | L44: 0 | M44: 0 | N44: 0 | O44: 0.0002 | P44: 3.72 | Q44: 0 | R44: 0 | S44: 0.0191 | T44: 287.48 | U44: 0.0007 | V44: 9.98 | W44: 0.8633 | X44: 13016.84 | Y44: 28094.11 | AA44: 1028.89
A45: P8068 | B45: Engenheiro florestal júnior | C45: mês | D45: 11220 | E45: 0.804 | F45: 9020.88 | G45: 0.0626 | H45: 702.89 | I45: 0.0022 | J45: 24.82 | K45: 0 | L45: 0 | M45: 0 | N45: 0 | O45: 0.0004 | P45: 4.63 | Q45: 0 | R45: 0 | S45: 0.0256 | T45: 287.48 | U45: 0.0009 | V45: 9.98 | W45: 0.8958 | X45: 10050.69 | Y45: 21270.69 | AA45: 1029.81
A46: P8069 | B46: Engenheiro florestal pleno | C46: mês | D46: 12007.3 | E46: 0.804 | F46: 9653.87 | G46: 0.0585 | H46: 702.89 | I46: 0.0021 | J46: 24.82 | K46: 0 | L46: 0 | M46: 0 | N46: 0 | O46: 0.0004 | P46: 4.63 | Q46: 0 | R46: 0 | S46: 0.0239 | T46: 287.48 | U46: 0.0008 | V46: 9.98 | W46: 0.8898 | X46: 10683.68 | Y46: 22690.98 | AA46: 1029.81
A47: P8070 | B47: Engenheiro florestal sênior | C47: mês | D47: 15859.45 | E47: 0.804 | F47: 12751 | G47: 0.0443 | H47: 702.89 | I47: 0.0016 | J47: 24.82 | K47: 0 | L47: 0 | M47: 0 | N47: 0 | O47: 0.0003 | P47: 4.63 | Q47: 0 | R47: 0 | S47: 0.0181 | T47: 287.48 | U47: 0.0006 | V47: 9.98 | W47: 0.8689 | X47: 13780.8 | Y47: 29640.25 | AA47: 1029.8
A48: P8080 | B48: Geólogo júnior | C48: mês | D48: 10004.5 | E48: 0.8003 | F48: 8006.6 | G48: 0.0703 | H48: 702.89 | I48: 0.0025 | J48: 24.82 | K48: 0 | L48: 0 | M48: 0 | N48: 0 | O48: 0.0004 | P48: 3.73 | Q48: 0 | R48: 0 | S48: 0.0287 | T48: 287.48 | U48: 0.001 | V48: 9.98 | W48: 0.9031 | X48: 9035.51 | Y48: 19040.01 | AA48: 1028.91
A49: P8081 | B49: Geólogo pleno | C49: mês | D49: 11923 | E49: 0.8003 | F49: 9541.97 | G49: 0.059 | H49: 702.89 | I49: 0.0021 | J49: 24.82 | K49: 0 | L49: 0 | M49: 0 | N49: 0 | O49: 0.0003 | P49: 3.73 | Q49: 0 | R49: 0 | S49: 0.0241 | T49: 287.48 | U49: 0.0008 | V49: 9.98 | W49: 0.8866 | X49: 10570.88 | Y49: 22493.88 | AA49: 1028.91
A50: P8082 | B50: Geólogo sênior | C50: mês | D50: 13841.49 | E50: 0.8003 | F50: 11077.35 | G50: 0.0508 | H50: 702.89 | I50: 0.0018 | J50: 24.82 | K50: 0 | L50: 0 | M50: 0 | N50: 0 | O50: 0.0003 | P50: 3.73 | Q50: 0 | R50: 0 | S50: 0.0208 | T50: 287.48 | U50: 0.0007 | V50: 9.98 | W50: 0.8746 | X50: 12106.25 | Y50: 25947.75 | AA50: 1028.91
A51: P8092 | B51: Jornalista júnior | C51: mês | D51: 2844.43 | E51: 0.7961 | F51: 2264.45 | G51: 0.2471 | H51: 702.89 | I51: 0.0087 | J51: 24.82 | K51: 0 | L51: 0 | M51: 0.017 | N51: 48.37 | O51: 0.001 | P51: 2.88 | Q51: 0 | R51: 0 | S51: 0.1011 | T51: 287.48 | U51: 0.0035 | V51: 9.98 | W51: 1.1745 | X51: 3340.86 | Y51: 6185.29 | AA51: 1076.41
A52: P8093 | B52: Jornalista pleno | C52: mês | D52: 3792.57 | E52: 0.7961 | F52: 3019.27 | G52: 0.1853 | H52: 702.89 | I52: 0.0065 | J52: 24.82 | K52: 0 | L52: 0 | M52: 0 | N52: 0 | O52: 0.0008 | P52: 2.88 | Q52: 0 | R52: 0 | S52: 0.0758 | T52: 287.48 | U52: 0.0026 | V52: 9.98 | W52: 1.0672 | X52: 4047.32 | Y52: 7839.89 | AA52: 1028.05
A53: P8094 | B53: Jornalista sênior | C53: mês | D53: 7316.95 | E53: 0.7961 | F53: 5825.02 | G53: 0.0961 | H53: 702.89 | I53: 0.0034 | J53: 24.82 | K53: 0 | L53: 0 | M53: 0 | N53: 0 | O53: 0.0004 | P53: 2.88 | Q53: 0 | R53: 0 | S53: 0.0393 | T53: 287.48 | U53: 0.0014 | V53: 9.98 | W53: 0.9366 | X53: 6853.07 | Y53: 14170.02 | AA53: 1028.05
A54: P8098 | B54: Laboratorista | C54: mês | D54: 2199.57 | E54: 0.8025 | F54: 1765.15 | G54: 0.3196 | H54: 702.89 | I54: 0.0127 | J54: 27.83 | K54: 0 | L54: 0 | M54: 0.0396 | N54: 87.06 | O54: 0.0019 | P54: 4.22 | Q54: 0 | R54: 0 | S54: 0.1307 | T54: 287.48 | U54: 0.0045 | V54: 9.98 | W54: 1.3114 | X54: 2884.61 | Y54: 5084.18 | AA54: 1119.46
A55: P8102 | B55: Médico veterinário | C55: mês | D55: 11220 | E55: 0.7922 | F55: 8888.48 | G55: 0.0626 | H55: 702.89 | I55: 0.0022 | J55: 24.82 | K55: 0 | L55: 0 | M55: 0 | N55: 0 | O55: 0.0003 | P55: 2.82 | Q55: 0 | R55: 0 | S55: 0.0256 | T55: 287.48 | U55: 0.0009 | V55: 9.98 | W55: 0.8838 | X55: 9916.48 | Y55: 21136.48 | AA55: 1028
A56: P8106 | B56: Meteorologista júnior | C56: mês | D56: 5087.64 | E56: 0.7921 | F56: 4029.92 | G56: 0.1382 | H56: 702.89 | I56: 0.0049 | J56: 24.82 | K56: 0 | L56: 0 | M56: 0 | N56: 0 | O56: 0.0005 | P56: 2.69 | Q56: 0 | R56: 0 | S56: 0.0565 | T56: 287.48 | U56: 0.002 | V56: 9.98 | W56: 0.9941 | X56: 5057.78 | Y56: 10145.42 | AA56: 1027.86
A57: P8107 | B57: Meteorologista pleno | C57: mês | D57: 6783.52 | E57: 0.7921 | F57: 5373.23 | G57: 0.1036 | H57: 702.89 | I57: 0.0037 | J57: 24.82 | K57: 0 | L57: 0 | M57: 0 | N57: 0 | O57: 0.0004 | P57: 2.69 | Q57: 0 | R57: 0 | S57: 0.0424 | T57: 287.48 | U57: 0.0015 | V57: 9.98 | W57: 0.9436 | X57: 6401.08 | Y57: 13184.61 | AA57: 1027.86
A58: P8108 | B58: Meteorologista sênior | C58: mês | D58: 11511.99 | E58: 0.7921 | F58: 9118.64 | G58: 0.0611 | H58: 702.89 | I58: 0.0022 | J58: 24.82 | K58: 0 | L58: 0 | M58: 0 | N58: 0 | O58: 0.0002 | P58: 2.69 | Q58: 0 | R58: 0 | S58: 0.025 | T58: 287.48 | U58: 0.0009 | V58: 9.98 | W58: 0.8814 | X58: 10146.5 | Y58: 21658.49 | AA58: 1027.86
A59: P8112 | B59: Motorista de caminhão | C59: mês | D59: 2197.64 | E59: 0.8045 | F59: 1768 | G59: 0.3198 | H59: 702.89 | I59: 0.0137 | J59: 30.22 | K59: 0 | L59: 0 | M59: 0.0397 | N59: 87.17 | O59: 0.0021 | P59: 4.57 | Q59: 0 | R59: 0 | S59: 0.1308 | T59: 287.48 | U59: 0.0045 | V59: 9.98 | W59: 1.3152 | X59: 2890.32 | Y59: 5087.96 | AA59: 1122.32
A60: P8113 | B60: Motorista de veículo leve | C60: mês | D60: 1972.46 | E60: 0.801 | F60: 1579.94 | G60: 0.3564 | H60: 702.89 | I60: 0.0153 | J60: 30.22 | K60: 0 | L60: 0 | M60: 0.051 | N60: 100.68 | O60: 0.0021 | P60: 4.23 | Q60: 0 | R60: 0 | S60: 0.1457 | T60: 287.48 | U60: 0.0051 | V60: 9.98 | W60: 1.3767 | X60: 2715.43 | Y60: 4687.88 | AA60: 1135.48
A61: P8117 | B61: Oceanógrafo júnior | C61: mês | D61: 4737.63 | E61: 0.8002 | F61: 3791.05 | G61: 0.1484 | H61: 702.89 | I61: 0.0052 | J61: 24.82 | K61: 0 | L61: 0 | M61: 0 | N61: 0 | O61: 0.0007 | P61: 3.52 | Q61: 0 | R61: 0 | S61: 0.0607 | T61: 287.48 | U61: 0.0021 | V61: 9.98 | W61: 1.0173 | X61: 4819.75 | Y61: 9557.38 | AA61: 1028.7
A62: P8118 | B62: Oceanógrafo pleno | C62: mês | D62: 6316.84 | E62: 0.8002 | F62: 5054.74 | G62: 0.1113 | H62: 702.89 | I62: 0.0039 | J62: 24.82 | K62: 0 | L62: 0 | M62: 0 | N62: 0 | O62: 0.0006 | P62: 3.52 | Q62: 0 | R62: 0 | S62: 0.0455 | T62: 287.48 | U62: 0.0016 | V62: 9.98 | W62: 0.963 | X62: 6083.43 | Y62: 12400.27 | AA62: 1028.69
A63: P8119 | B63: Oceanógrafo sênior | C63: mês | D63: 11433.23 | E63: 0.8002 | F63: 9148.87 | G63: 0.0615 | H63: 702.89 | I63: 0.0022 | J63: 24.82 | K63: 0 | L63: 0 | M63: 0 | N63: 0 | O63: 0.0003 | P63: 3.52 | Q63: 0 | R63: 0 | S63: 0.0251 | T63: 287.48 | U63: 0.0009 | V63: 9.98 | W63: 0.8902 | X63: 10177.56 | Y63: 21610.79 | AA63: 1028.69
A64: P8129 | B64: Pedagogo júnior | C64: mês | D64: 2381.38 | E64: 0.8221 | F64: 1957.74 | G64: 0.2952 | H64: 702.89 | I64: 0.0104 | J64: 24.82 | K64: 0 | L64: 0 | M64: 0.032 | N64: 76.15 | O64: 0.0033 | P64: 7.79 | Q64: 0 | R64: 0 | S64: 0.1207 | T64: 287.48 | U64: 0.0042 | V64: 9.98 | W64: 1.2878 | X64: 3066.85 | Y64: 5448.23 | AA64: 1109.11
A65: P8130 | B65: Pedagogo pleno | C65: mês | D65: 3175.18 | E65: 0.8221 | F65: 2610.31 | G65: 0.2214 | H65: 702.89 | I65: 0.0078 | J65: 24.82 | K65: 0 | L65: 0 | M65: 0.009 | N65: 28.52 | O65: 0.0025 | P65: 7.79 | Q65: 0 | R65: 0 | S65: 0.0905 | T65: 287.48 | U65: 0.0031 | V65: 9.98 | W65: 1.1564 | X65: 3671.8 | Y65: 6846.98 | AA65: 1061.49
A66: P8131 | B66: Pedagogo sênior | C66: mês | D66: 4835.3 | E66: 0.8221 | F66: 3975.1 | G66: 0.1454 | H66: 702.89 | I66: 0.0051 | J66: 24.82 | K66: 0 | L66: 0 | M66: 0 | N66: 0 | O66: 0.0016 | P66: 7.79 | Q66: 0 | R66: 0 | S66: 0.0595 | T66: 287.48 | U66: 0.0021 | V66: 9.98 | W66: 1.0357 | X66: 5008.07 | Y66: 9843.37 | AA66: 1032.97
A67: P8135 | B67: Secretária | C67: mês | D67: 2466.16 | E67: 0.7987 | F67: 1969.72 | G67: 0.285 | H67: 702.89 | I67: 0 | J67: 0 | K67: 0 | L67: 0 | M67: 0.0288 | N67: 71.06 | O67: 0.0014 | P67: 3.46 | Q67: 0 | R67: 0 | S67: 0.1166 | T67: 287.48 | U67: 0.004 | V67: 9.98 | W67: 1.2346 | X67: 3044.6 | Y67: 5510.77 | AA67: 1074.89
A68: P8139 | B68: Sondador | C68: mês | D68: 1920.73 | E68: 0.7984 | F68: 1533.51 | G68: 0.366 | H68: 702.89 | I68: 0.0145 | J68: 27.83 | K68: 0 | L68: 0 | M68: 0.054 | N68: 103.79 | O68: 0.0018 | P68: 3.47 | Q68: 0 | R68: 0 | S68: 0.1497 | T68: 287.48 | U68: 0.0052 | V68: 9.98 | W68: 1.3895 | X68: 2668.95 | Y68: 4589.68 | AA68: 1135.44
A69: P8143 | B69: Técnico ambiental | C69: mês | D69: 2753.27 | E69: 0.8043 | F69: 2214.46 | G69: 0.2553 | H69: 702.89 | I69: 0.0101 | J69: 27.83 | K69: 0 | L69: 0 | M69: 0.0196 | N69: 53.84 | O69: 0.0019 | P69: 5.22 | Q69: 0 | R69: 0 | S69: 0.1044 | T69: 287.48 | U69: 0.0036 | V69: 9.98 | W69: 1.1992 | X69: 3301.7 | Y69: 6054.97 | AA69: =Y69-F69-D69 -> 1087.24
A70: P8147 | B70: Técnico de obras | C70: mês | D70: 3136.59 | E70: 0.8002 | F70: 2509.9 | G70: 0.2241 | H70: 702.89 | I70: 0.0089 | J70: 27.83 | K70: 0 | L70: 0 | M70: 0.0098 | N70: 30.84 | O70: 0.0012 | P70: 3.85 | Q70: 0 | R70: 0 | S70: 0.0917 | T70: 287.48 | U70: 0.0032 | V70: 9.98 | W70: 1.1391 | X70: 3572.76 | Y70: 6709.35 | AA70: 1062.86
A71: P8151 | B71: Técnico de segurança do trabalho | C71: mês | D71: 4457.84 | E71: 0.807 | F71: 3597.48 | G71: 0.1577 | H71: 702.89 | I71: 0.0062 | J71: 27.83 | K71: 0 | L71: 0 | M71: 0 | N71: 0 | O71: 0.0011 | P71: 4.86 | Q71: 0 | R71: 0 | S71: 0.0645 | T71: 287.48 | U71: 0.0022 | V71: 9.98 | W71: 1.0387 | X71: 4630.52 | Y71: 9088.36 | AA71: 1033.04
A72: P8155 | B72: Técnico em geoprocessamento | C72: mês | D72: 2657.22 | E72: 0.7966 | F72: 2116.75 | G72: 0.2645 | H72: 702.89 | I72: 0.0105 | J72: 27.83 | K72: 0 | L72: 0 | M72: 0.0224 | N72: 59.6 | O72: 0.0016 | P72: 4.28 | Q72: 0 | R72: 0 | S72: 0.1082 | T72: 287.48 | U72: 0.0038 | V72: 9.98 | W72: 1.2076 | X72: 3208.8 | Y72: 5866.03 | AA72: 1092.06
A73: P8159 | B73: Técnico em informática - programador | C73: mês | D73: 4362.56 | E73: 0.7999 | F73: 3489.61 | G73: 0.1611 | H73: 702.89 | I73: 0 | J73: 0 | K73: 0 | L73: 0 | M73: 0 | N73: 0 | O73: 0.0009 | P73: 3.83 | Q73: 0 | R73: 0 | S73: 0.0659 | T73: 287.48 | U73: 0.0023 | V73: 9.98 | W73: 1.0301 | X73: 4493.8 | Y73: 8856.35 | AA73: 1004.18
A74: P8163 | B74: Topógrafo | C74: mês | D74: 2324.62 | E74: 0.8046 | F74: 1870.39 | G74: 0.3024 | H74: 702.89 | I74: 0.012 | J74: 27.83 | K74: 0 | L74: 0 | M74: 0.0342 | N74: 79.55 | O74: 0.002 | P74: 4.69 | Q74: 0 | R74: 0 | S74: 0.1237 | T74: 287.48 | U74: 0.0043 | V74: 9.98 | W74: 1.2831 | X74: 2982.82 | Y74: 5307.44 | AA74: 1112.43
A75: P8167 | B75: Arquivista júnior | C75: mês | D75: 2285.68 | E75: 0.7993 | F75: 1826.95 | G75: 0.3075 | H75: 702.89 | I75: 0 | J75: 0 | K75: 0 | L75: 0 | M75: 0.0358 | N75: 81.89 | O75: 0.0016 | P75: 3.55 | Q75: 0 | R75: 0 | S75: 0.1258 | T75: 287.48 | U75: 0.0044 | V75: 9.98 | W75: 1.2743 | X75: 2912.74 | Y75: 5198.42 | AA75: 1085.79
A76: P8168 | B76: Arquivista pleno | C76: mês | D76: 3047.58 | E76: 0.7993 | F76: 2435.93 | G76: 0.2306 | H76: 702.89 | I76: 0 | J76: 0 | K76: 0 | L76: 0 | M76: 0.0119 | N76: 36.18 | O76: 0.0012 | P76: 3.55 | Q76: 0 | R76: 0 | S76: 0.0943 | T76: 287.48 | U76: 0.0033 | V76: 9.98 | W76: 1.1406 | X76: 3476.01 | Y76: 6523.58 | AA76: 1040.07
A77: P8169 | B77: Arquivista sênior | C77: mês | D77: 4764.54 | E77: 0.7993 | F77: 3808.29 | G77: 0.1475 | H77: 702.89 | I77: 0 | J77: 0 | K77: 0 | L77: 0 | M77: 0 | N77: 0 | O77: 0.0007 | P77: 3.55 | Q77: 0 | R77: 0 | S77: 0.0603 | T77: 287.48 | U77: 0.0021 | V77: 9.98 | W77: 1.01 | X77: 4812.19 | Y77: 9576.73 | AA77: 1003.9
A78: P8173 | B78: Administrador júnior | C78: mês | D78: 3196.19 | E78: 0.7975 | F78: 2548.96 | G78: 0.2199 | H78: 702.89 | I78: 0 | J78: 0 | K78: 0 | L78: 0 | M78: 0.0085 | N78: 27.26 | O78: 0.0012 | P78: 3.9 | Q78: 0 | R78: 0 | S78: 0.0899 | T78: 287.48 | U78: 0.0031 | V78: 9.98 | W78: 1.1202 | X78: 3580.48 | Y78: 6776.68 | AA78: 1031.53
A79: P8174 | B79: Administrador pleno | C79: mês | D79: 4261.59 | E79: 0.7975 | F79: 3398.62 | G79: 0.1649 | H79: 702.89 | I79: 0 | J79: 0 | K79: 0 | L79: 0 | M79: 0 | N79: 0 | O79: 0.0009 | P79: 3.9 | Q79: 0 | R79: 0 | S79: 0.0675 | T79: 287.48 | U79: 0.0023 | V79: 9.98 | W79: 1.0332 | X79: 4402.88 | Y79: 8664.47 | AA79: 1004.26
A80: P8175 | B80: Administrador sênior | C80: mês | D80: 7536.06 | E80: 0.7975 | F80: 6010.01 | G80: 0.0933 | H80: 702.89 | I80: 0 | J80: 0 | K80: 0 | L80: 0 | M80: 0 | N80: 0 | O80: 0.0005 | P80: 3.9 | Q80: 0 | R80: 0 | S80: 0.0381 | T80: 287.48 | U80: 0.0013 | V80: 9.98 | W80: 0.9308 | X80: 7014.27 | Y80: 14550.33 | AA80: 1004.26
A81: P8180 | B81: Engenheiro agrimensor júnior | C81: mês | D81: 11220 | E81: 0.7958 | F81: 8928.88 | G81: 0.0626 | H81: 702.89 | I81: 0.0022 | J81: 24.82 | K81: 0 | L81: 0 | M81: 0 | N81: 0 | O81: 0.0004 | P81: 4.39 | Q81: 0 | R81: 0 | S81: 0.0256 | T81: 287.48 | U81: 0.0009 | V81: 9.98 | W81: 0.8876 | X81: 9958.44 | Y81: 21178.44 | AA81: 1029.56
A82: P8181 | B82: Engenheiro agrimensor pleno | C82: mês | D82: 11653.18 | E82: 0.7958 | F82: 9273.6 | G82: 0.0603 | H82: 702.89 | I82: 0.0021 | J82: 24.82 | K82: 0 | L82: 0 | M82: 0 | N82: 0 | O82: 0.0004 | P82: 4.39 | Q82: 0 | R82: 0 | S82: 0.0247 | T82: 287.48 | U82: 0.0009 | V82: 9.98 | W82: 0.8842 | X82: 10303.16 | Y82: 21956.35 | AA82: 1029.57
A83: P8182 | B83: Engenheiro agrimensor sênior | C83: mês | D83: 13092.54 | E83: 0.7958 | F83: 10419.05 | G83: 0.0537 | H83: 702.89 | I83: 0.0019 | J83: 24.82 | K83: 0 | L83: 0 | M83: 0 | N83: 0 | O83: 0.0003 | P83: 4.39 | Q83: 0 | R83: 0 | S83: 0.022 | T83: 287.48 | U83: 0.0008 | V83: 9.98 | W83: 0.8744 | X83: 11448.61 | Y83: 24541.15 | AA83: 1029.56
A84: P8183 | B84: Geógrafo júnior | C84: mês | D84: 3543.97 | E84: 0.795 | F84: 2817.46 | G84: 0.1983 | H84: 702.89 | I84: 0.007 | J84: 24.82 | K84: 0 | L84: 0 | M84: 0.0018 | N84: 6.39 | O84: 0.0009 | P84: 3.2 | Q84: 0 | R84: 0 | S84: 0.0811 | T84: 287.48 | U84: 0.0028 | V84: 9.98 | W84: 1.087 | X84: 3852.22 | Y84: 7396.19 | AA84: 1034.76
A85: P8184 | B85: Geógrafo pleno | C85: mês | D85: 4725.29 | E85: 0.795 | F85: 3756.61 | G85: 0.1488 | H85: 702.89 | I85: 0.0053 | J85: 24.82 | K85: 0 | L85: 0 | M85: 0 | N85: 0 | O85: 0.0007 | P85: 3.2 | Q85: 0 | R85: 0 | S85: 0.0608 | T85: 287.48 | U85: 0.0021 | V85: 9.98 | W85: 1.0126 | X85: 4784.98 | Y85: 9510.27 | AA85: 1028.37
A86: P8185 | B86: Geógrafo sênior | C86: mês | D86: 9078 | E86: 0.795 | F86: 7217.01 | G86: 0.0774 | H86: 702.89 | I86: 0.0027 | J86: 24.82 | K86: 0 | L86: 0 | M86: 0 | N86: 0 | O86: 0.0004 | P86: 3.2 | Q86: 0 | R86: 0 | S86: 0.0317 | T86: 287.48 | U86: 0.0011 | V86: 9.98 | W86: 0.9083 | X86: 8245.38 | Y86: 17323.38 | AA86: 1028.37
A87: P8186 | B87: Antropólogo júnior | C87: mês | D87: 3046.53 | E87: 0.8188 | F87: 2494.5 | G87: 0.2307 | H87: 702.89 | I87: 0.0081 | J87: 24.82 | K87: 0 | L87: 0 | M87: 0.0119 | N87: 36.24 | O87: 0.0019 | P87: 5.69 | Q87: 0 | R87: 0 | S87: 0.0944 | T87: 287.48 | U87: 0.0033 | V87: 9.98 | W87: 1.1691 | X87: 3561.6 | Y87: 6608.13 | AA87: 1067.1
A88: P8187 | B88: Antropólogo pleno | C88: mês | D88: 4062.04 | E88: 0.8188 | F88: 3326 | G88: 0.173 | H88: 702.89 | I88: 0.0061 | J88: 24.82 | K88: 0 | L88: 0 | M88: 0 | N88: 0 | O88: 0.0014 | P88: 5.69 | Q88: 0 | R88: 0 | S88: 0.0708 | T88: 287.48 | U88: 0.0025 | V88: 9.98 | W88: 1.0726 | X88: 4356.86 | Y88: 8418.9 | AA88: 1030.86
A89: P8188 | B89: Antropólogo sênior | C89: mês | D89: 6052.03 | E89: 0.8188 | F89: 4955.4 | G89: 0.1161 | H89: 702.89 | I89: 0.0041 | J89: 24.82 | K89: 0 | L89: 0 | M89: 0 | N89: 0 | O89: 0.0009 | P89: 5.69 | Q89: 0 | R89: 0 | S89: 0.0475 | T89: 287.48 | U89: 0.0016 | V89: 9.98 | W89: 0.9891 | X89: 5986.27 | Y89: 12038.3 | AA89: 1030.87
A90: P8189 | B90: Arqueólogo júnior | C90: mês | D90: 2880.66 | E90: 0.8 | F90: 2304.53 | G90: 0.244 | H90: 702.89 | I90: 0.0086 | J90: 24.82 | K90: 0 | L90: 0 | M90: 0.016 | N90: 46.19 | O90: 0.0015 | P90: 4.25 | Q90: 0 | R90: 0 | S90: 0.0998 | T90: 287.48 | U90: 0.0035 | V90: 9.98 | W90: 1.1734 | X90: 3380.15 | Y90: 6260.81 | AA90: 1075.62
A91: P8190 | B91: Arqueólogo pleno | C91: mês | D91: 3840.88 | E91: 0.8 | F91: 3072.71 | G91: 0.183 | H91: 702.89 | I91: 0.0065 | J91: 24.82 | K91: 0 | L91: 0 | M91: 0 | N91: 0 | O91: 0.0011 | P91: 4.25 | Q91: 0 | R91: 0 | S91: 0.0748 | T91: 287.48 | U91: 0.0026 | V91: 9.98 | W91: 1.068 | X91: 4102.13 | Y91: 7943.01 | AA91: 1029.42
A92: P8191 | B92: Arqueólogo sênior | C92: mês | D92: 5758.93 | E92: 0.8 | F92: 4607.14 | G92: 0.1221 | H92: 702.89 | I92: 0.0043 | J92: 24.82 | K92: 0 | L92: 0 | M92: 0 | N92: 0 | O92: 0.0007 | P92: 4.25 | Q92: 0 | R92: 0 | S92: 0.0499 | T92: 287.48 | U92: 0.0017 | V92: 9.98 | W92: 0.9788 | X92: 5636.57 | Y92: 11395.5 | AA92: 1029.43
A93: P8192 | B93: Historiador júnior | C93: mês | D93: 3563.77 | E93: 0.8264 | F93: 2945.1 | G93: 0.1972 | H93: 702.89 | I93: 0.007 | J93: 24.82 | K93: 0 | L93: 0 | M93: 0.0015 | N93: 5.21 | O93: 0.0017 | P93: 5.97 | Q93: 0 | R93: 0 | S93: 0.0807 | T93: 287.48 | U93: 0.0028 | V93: 9.98 | W93: 1.1172 | X93: 3981.45 | Y93: 7545.23 | AA93: 1036.36
A94: P8193 | B94: Historiador pleno | C94: mês | D94: 4751.7 | E94: 0.8264 | F94: 3926.8 | G94: 0.1479 | H94: 702.89 | I94: 0.0052 | J94: 24.82 | K94: 0 | L94: 0 | M94: 0 | N94: 0 | O94: 0.0013 | P94: 5.97 | Q94: 0 | R94: 0 | S94: 0.0605 | T94: 287.48 | U94: 0.0021 | V94: 9.98 | W94: 1.0434 | X94: 4957.95 | Y94: 9709.65 | AA94: 1031.15
A95: P8194 | B95: Historiador sênior | C95: mês | D95: 7604.92 | E95: 0.8264 | F95: 6284.71 | G95: 0.0924 | H95: 702.89 | I95: 0.0033 | J95: 24.82 | K95: 0 | L95: 0 | M95: 0 | N95: 0 | O95: 0.0008 | P95: 5.97 | Q95: 0 | R95: 0 | S95: 0.0378 | T95: 287.48 | U95: 0.0013 | V95: 9.98 | W95: 0.962 | X95: 7315.85 | Y95: 14920.77 | AA95: 1031.14
A96: P8195 | B96: Paleontólogo júnior | C96: mês | D96: 3046.53 | E96: 0.8188 | F96: 2494.5 | G96: 0.2307 | H96: 702.89 | I96: 0.0081 | J96: 24.82 | K96: 0 | L96: 0 | M96: 0.0119 | N96: 36.24 | O96: 0.0019 | P96: 5.69 | Q96: 0 | R96: 0 | S96: 0.0944 | T96: 287.48 | U96: 0.0033 | V96: 9.98 | W96: 1.1691 | X96: 3561.6 | Y96: 6608.13 | AA96: 1067.1
A97: P8196 | B97: Paleontólogo pleno | C97: mês | D97: 4062.04 | E97: 0.8188 | F97: 3326 | G97: 0.173 | H97: 702.89 | I97: 0.0061 | J97: 24.82 | K97: 0 | L97: 0 | M97: 0 | N97: 0 | O97: 0.0014 | P97: 5.69 | Q97: 0 | R97: 0 | S97: 0.0708 | T97: 287.48 | U97: 0.0025 | V97: 9.98 | W97: 1.0726 | X97: 4356.86 | Y97: 8418.9 | AA97: 1030.86
A98: P8197 | B98: Paleontólogo sênior | C98: mês | D98: 6052.03 | E98: 0.8188 | F98: 4955.4 | G98: 0.1161 | H98: 702.89 | I98: 0.0041 | J98: 24.82 | K98: 0 | L98: 0 | M98: 0 | N98: 0 | O98: 0.0009 | P98: 5.69 | Q98: 0 | R98: 0 | S98: 0.0475 | T98: 287.48 | U98: 0.0016 | V98: 9.98 | W98: 0.9891 | X98: 5986.27 | Y98: 12038.3 | AA98: 1030.87
A99: P8198 | B99: Sociólogo júnior | C99: mês | D99: 3780.56 | E99: 0.8276 | F99: 3128.79 | G99: 0.1859 | H99: 702.89 | I99: 0.0066 | J99: 24.82 | K99: 0 | L99: 0 | M99: 0 | N99: 0 | O99: 0.0016 | P99: 6.07 | Q99: 0 | R99: 0 | S99: 0.076 | T99: 287.48 | U99: 0.0026 | V99: 9.98 | W99: 1.1004 | X99: 4160.03 | Y99: 7940.59 | AA99: 1031.24
A100: P8199 | B100: Sociólogo pleno | C100: mês | D100: 5040.75 | E100: 0.8276 | F100: 4171.72 | G100: 0.1394 | H100: 702.89 | I100: 0.0049 | J100: 24.82 | K100: 0 | L100: 0 | M100: 0 | N100: 0 | O100: 0.0012 | P100: 6.07 | Q100: 0 | R100: 0 | S100: 0.057 | T100: 287.48 | U100: 0.002 | V100: 9.98 | W100: 1.0322 | X100: 5202.96 | Y100: 10243.71 | AA100: 1031.24
A101: P8200 | B101: Sociólogo sênior | C101: mês | D101: 7810.53 | E101: 0.8276 | F101: 6463.99 | G101: 0.09 | H101: 702.89 | I101: 0.0032 | J101: 24.82 | K101: 0 | L101: 0 | M101: 0 | N101: 0 | O101: 0.0008 | P101: 6.07 | Q101: 0 | R101: 0 | S101: 0.0368 | T101: 287.48 | U101: 0.0013 | V101: 9.98 | W101: 0.9596 | X101: 7495.23 | Y101: 15305.76 | AA101: 1031.24
A102: P8264 | B102: Motorista de veículo leve - horista | C102: h | D102: 8.97 | E102: 1.1318 | F102: 10.15 | G102: 0.4296 | H102: 3.85 | I102: 0.0185 | J102: 0.17 | K102: 0 | L102: 0 | M102: 0.0615 | N102: 0.55 | O102: 0.0026 | P102: 0.02 | Q102: 0 | R102: 0 | S102: 0.1757 | T102: 1.58 | U102: 0.0061 | V102: 0.05 | W102: 1.8258 | X102: 16.37 | Y102: 25.34 | AA102: 6.22
A103: Fonte: FGV IBRE

Sheet SINAPI_ES_RN
